columns,,Body Name,Organisation Code,Service Label,Service Code,Organisation Unit,Expenditure Category,Expenditure Code,Narrative,Date,Transaction No,Net Amount,Supplier ID,Supplier Name
INSERTED DETAIL,,Ealing Council,http://opendatacommunities.org/id/london-borough-council/ealing,PLACE,6,STREET SERVICES,PAYMENTS TO CONTRACTORS,4000,,25/11/2022,41037439,408326.25,28826,GREENER EALING LIMITED
INSERTED DETAIL,,Ealing Council,http://opendatacommunities.org/id/london-borough-council/ealing,PLACE,6,LEISURE,PAYMENTS TO CONTRACTORS -ARBORICULTURAL WORKS,4041,,19/11/2022,41039671,7250,29949,PREMIER TREECARE & CONSERVATION LIMITED
INSERTED DETAIL,,Ealing Council,http://opendatacommunities.org/id/london-borough-council/ealing,PLACE,6,LEISURE,PAYMENTS TO CONTRACTORS -ARBORICULTURAL WORKS,4041,,08/11/2022,41039673,7250,29949,PREMIER TREECARE & CONSERVATION LIMITED
INSERTED DETAIL,,Ealing Council,http://opendatacommunities.org/id/london-borough-council/ealing,PLACE,6,LEISURE,PAYMENTS TO CONTRACTORS -ARBORICULTURAL WORKS,4041,,09/11/2022,41038264,6062.5,11187,COMPLETE TREE CARE LTD
INSERTED DETAIL,,Ealing Council,http://opendatacommunities.org/id/london-borough-council/ealing,PLACE,6,LEISURE,PAYMENTS TO CONTRACTORS -ARBORICULTURAL WORKS,4041,,10/11/2022,41038515,605,11187,COMPLETE TREE CARE LTD
INSERTED DETAIL,,Ealing Council,http://opendatacommunities.org/id/london-borough-council/ealing,PLACE,6,LEISURE,PAYMENTS TO CONTRACTORS -ARBORICULTURAL WORKS,4041,,31/10/2022,41038535,25976,11187,COMPLETE TREE CARE LTD
INSERTED DETAIL,,Ealing Council,http://opendatacommunities.org/id/london-borough-council/ealing,PLACE,6,LEISURE,PAYMENTS TO CONTRACTORS -ARBORICULTURAL WORKS,4041,,11/10/2022,41037653,19230,29948,ARTEMIS TREE SERVICES LIMITED
INSERTED DETAIL,,Ealing Council,http://opendatacommunities.org/id/london-borough-council/ealing,PLACE,6,LEISURE,PAYMENTS TO CONTRACTORS -ARBORICULTURAL WORKS,4041,,13/09/2022,41037553,974.5,12919,REDACTED SENSITIVE SUPPLIER
INSERTED DETAIL,,Ealing Council,http://opendatacommunities.org/id/london-borough-council/ealing,PLACE,6,LEISURE,PAYMENTS TO CONTRACTORS -ARBORICULTURAL WORKS,4041,,01/11/2022,41038249,30040.14,25486,BARBER ENVIRONMENTAL LIMITED
INSERTED DETAIL,,Ealing Council,http://opendatacommunities.org/id/london-borough-council/ealing,PLACE,6,LEISURE,CONTRACT PAYMENTS -PARKS GROUNDS MAINTENANCE,4040,,02/11/2022,41035065,1000,28953,MY LOCAL PITCH LTD T/A PLAYFINDER
INSERTED DETAIL,,Ealing Council,http://opendatacommunities.org/id/london-borough-council/ealing,PLACE,6,LEISURE,CONTRACT PAYMENTS -PARKS GROUNDS MAINTENANCE,4040,,21/10/2022,41035085,480,27422,EUROLOOS LIMITED
INSERTED DETAIL,,Ealing Council,http://opendatacommunities.org/id/london-borough-council/ealing,PLACE,6,LEISURE,CONTRACT PAYMENTS -PARKS GROUNDS MAINTENANCE,4040,,19/10/2022,41036060,3574.93,28826,GREENER EALING LIMITED
INSERTED DETAIL,,Ealing Council,http://opendatacommunities.org/id/london-borough-council/ealing,PLACE,6,LEISURE,CONTRACT PAYMENTS -PARKS GROUNDS MAINTENANCE,4040,,19/10/2022,41036061,4304.52,28826,GREENER EALING LIMITED
INSERTED DETAIL,,Ealing Council,http://opendatacommunities.org/id/london-borough-council/ealing,PLACE,6,LEISURE,CONTRACT PAYMENTS -PARKS GROUNDS MAINTENANCE,4040,,19/10/2022,41036071,4847.42,28826,GREENER EALING LIMITED
INSERTED DETAIL,,Ealing Council,http://opendatacommunities.org/id/london-borough-council/ealing,PLACE,6,LEISURE,CONTRACT PAYMENTS -PARKS GROUNDS MAINTENANCE,4040,,24/10/2022,41035857,642.15,11538,DRAYTON FENCING COMPANY
INSERTED DETAIL,,Ealing Council,http://opendatacommunities.org/id/london-borough-council/ealing,CHILDREN & ADULTS,1,DISABILITIES,EXTERNAL TECHNICAL ADVICE,4060,,24/10/2022,41035847,500,26485,RHM BUILDING INFRASTRUCTURE SERVICES LTD
INSERTED DETAIL,,Ealing Council,http://opendatacommunities.org/id/london-borough-council/ealing,CHILDREN & ADULTS,1,DISABILITIES,STATION. & CONSUMABLE EQUIP.,3820,,17/11/2022,41039677,1191.4,10774,BUNZL CLEANING & HYGIENE SUPPLIES
INSERTED DETAIL,,Ealing Council,http://opendatacommunities.org/id/london-borough-council/ealing,CHILDREN & ADULTS,1,"PLANNING, COMMISSIONING & PARTNERSHIPS",ACTIVITIES,4196,,31/05/2022,41036833,5000,29533,YOUNG EALING FOUNDATION
INSERTED DETAIL,,Ealing Council,http://opendatacommunities.org/id/london-borough-council/ealing,CHILDREN & ADULTS,1,"PLANNING, COMMISSIONING & PARTNERSHIPS",ACTIVITIES,4196,,10/10/2022,41036705,12700,29715,THE VIOLENCE INTERVENTION PROJECT
INSERTED DETAIL,,Ealing Council,http://opendatacommunities.org/id/london-borough-council/ealing,CHILDREN & ADULTS,1,"PLANNING, COMMISSIONING & PARTNERSHIPS",ACTIVITIES,4196,,09/11/2022,41038379,10300,29715,THE VIOLENCE INTERVENTION PROJECT
INSERTED DETAIL,,Ealing Council,http://opendatacommunities.org/id/london-borough-council/ealing,CHILDREN & ADULTS,1,"PLANNING, COMMISSIONING & PARTNERSHIPS",MINOR EQUIP PURCHASE,3320,,10/02/2022,41038988,400,27936,HAWK INCENTIVES LIMITED (CCS FRAMEWORK)
INSERTED DETAIL,,Ealing Council,http://opendatacommunities.org/id/london-borough-council/ealing,CHILDREN & ADULTS,1,SAFEGUARDING & SUPP - BS &A&F,PAYMENTS TO CONTRACTORS,4000,,31/10/2022,41036729,420,28815,THE PURPLE ELEPHANT PROJECT
INSERTED DETAIL,,Ealing Council,http://opendatacommunities.org/id/london-borough-council/ealing,CHILDREN & ADULTS,1,SAFEGUARDING & SUPP - BS &A&F,PAYMENTS TO CONTRACTORS,4000,,31/10/2022,41037370,315,28815,THE PURPLE ELEPHANT PROJECT
INSERTED DETAIL,,Ealing Council,http://opendatacommunities.org/id/london-borough-council/ealing,CHILDREN & ADULTS,1,SAFEGUARDING & SUPP - BS &A&F,PAYMENTS TO CONTRACTORS,4000,,31/10/2022,41037387,630,28815,THE PURPLE ELEPHANT PROJECT
INSERTED DETAIL,,Ealing Council,http://opendatacommunities.org/id/london-borough-council/ealing,CHILDREN & ADULTS,1,SAFEGUARDING & SUPP - BS &A&F,PAYMENTS TO CONTRACTORS,4000,,31/10/2022,41038444,800,23809,FAMILY FUTURES CIC
INSERTED DETAIL,,Ealing Council,http://opendatacommunities.org/id/london-borough-council/ealing,CHILDREN & ADULTS,1,SAFEGUARDING & SUPP - BS &A&F,PAYMENTS TO CONTRACTORS,4000,,31/10/2022,41036474,4960,23809,FAMILY FUTURES CIC
INSERTED DETAIL,,Ealing Council,http://opendatacommunities.org/id/london-borough-council/ealing,CHILDREN & ADULTS,1,SAFEGUARDING & SUPP - BS &A&F,PAYMENTS TO CONTRACTORS,4000,,31/10/2022,41038246,394.8,11872,FAMILY ACTION LTD T/A PAC-UK
INSERTED DETAIL,,Ealing Council,http://opendatacommunities.org/id/london-borough-council/ealing,CHILDREN & ADULTS,1,SAFEGUARDING & SUPP - BS &A&F,PAYMENTS TO CONTRACTORS,4000,,31/10/2022,41037087,1733.94,11872,FAMILY ACTION LTD T/A PAC-UK
INSERTED DETAIL,,Ealing Council,http://opendatacommunities.org/id/london-borough-council/ealing,CHILDREN & ADULTS,1,SAFEGUARDING & SUPP - BS &A&F,PAYMENTS TO CONTRACTORS,4000,,31/10/2022,41038170,-1733.94,11872,FAMILY ACTION LTD T/A PAC-UK
INSERTED DETAIL,,Ealing Council,http://opendatacommunities.org/id/london-borough-council/ealing,CHILDREN & ADULTS,1,SAFEGUARDING & SUPP - BS &A&F,PAYMENTS TO CONTRACTORS,4000,,03/10/2022,41032786,480,29262,REDACTED SENSITIVE SUPPLIER
INSERTED DETAIL,,Ealing Council,http://opendatacommunities.org/id/london-borough-council/ealing,CHILDREN & ADULTS,1,SAFEGUARDING & SUPP - BS &A&F,PAYMENTS TO CONTRACTORS,4000,,03/10/2022,41032787,280,29262,REDACTED SENSITIVE SUPPLIER
INSERTED DETAIL,,Ealing Council,http://opendatacommunities.org/id/london-borough-council/ealing,CHILDREN & ADULTS,1,SAFEGUARDING & SUPP - BS &A&F,PAYMENTS TO CONTRACTORS,4000,,03/10/2022,41032788,560,29262,REDACTED SENSITIVE SUPPLIER
INSERTED DETAIL,,Ealing Council,http://opendatacommunities.org/id/london-borough-council/ealing,PLACE,6,STREET SERVICES,HAZARDOUS SUB. REMOVAL,1450,,13/10/2022,41034785,19094.99,11249,CITY OF LONDON
INSERTED DETAIL,,Ealing Council,http://opendatacommunities.org/id/london-borough-council/ealing,PLACE,6,STREET SERVICES,COMP OUTSOURCED SERVICES,3220,,03/11/2022,41037433,22000,12460,IBASE SYSTEMS LTD
INSERTED DETAIL,,Ealing Council,http://opendatacommunities.org/id/london-borough-council/ealing,PLACE,6,STREET SERVICES,PAYMENTS TO CONTRACTORS,4000,,15/11/2022,41039456,62213.89,28826,GREENER EALING LIMITED
INSERTED DETAIL,,Ealing Council,http://opendatacommunities.org/id/london-borough-council/ealing,PLACE,6,STREET SERVICES,PAYMENTS TO CONTRACTORS,4000,,05/09/2022,41035377,375,16351,MPM GRAFFITI SOLUTIONS
INSERTED DETAIL,,Ealing Council,http://opendatacommunities.org/id/london-borough-council/ealing,PLACE,6,STREET SERVICES,PAYMENTS TO CONTRACTORS,4000,,13/09/2022,41035378,3655.54,16351,MPM GRAFFITI SOLUTIONS
INSERTED DETAIL,,Ealing Council,http://opendatacommunities.org/id/london-borough-council/ealing,PLACE,6,LEISURE,HEALTH & SAFETY,2880,,04/07/2022,41039587,461.78,15735,LBS (SERVING BIOTECHNOLGY) LTD
INSERTED DETAIL,,Ealing Council,http://opendatacommunities.org/id/london-borough-council/ealing,PLACE,6,LEISURE,CIS REPAIRS AND MAINTENANCE,1411,,30/09/2022,41036750,4676,27273,ALPHA BUILD CONSTRUCTION LTD
INSERTED DETAIL,,Ealing Council,http://opendatacommunities.org/id/london-borough-council/ealing,PLACE,6,LEISURE,CIS REPAIRS AND MAINTENANCE,1411,,30/09/2022,41036750,6984,27273,ALPHA BUILD CONSTRUCTION LTD
INSERTED DETAIL,,Ealing Council,http://opendatacommunities.org/id/london-borough-council/ealing,PLACE,6,LEISURE,HEALTH & SAFETY,2880,,25/10/2022,41036083,425,25871,CENTURIAN SURFACING LTD - T/A CENTURIAN SERVICES
INSERTED DETAIL,,Ealing Council,http://opendatacommunities.org/id/london-borough-council/ealing,PLACE,6,LEISURE,HEALTH & SAFETY,2880,,11/11/2022,41039584,473.04,28826,GREENER EALING LIMITED
INSERTED DETAIL,,Ealing Council,http://opendatacommunities.org/id/london-borough-council/ealing,PLACE,6,LEISURE,HEALTH & SAFETY,2880,,28/10/2022,41036716,452.8,15735,LBS (SERVING BIOTECHNOLGY) LTD
INSERTED DETAIL,,Ealing Council,http://opendatacommunities.org/id/london-borough-council/ealing,PLACE,6,LEISURE,MATERIALS,3310,,02/11/2022,41035057,283.75,15851,BRENT LODGE PARK ANIMAL CENTRE
INSERTED DETAIL,,Ealing Council,http://opendatacommunities.org/id/london-borough-council/ealing,PLACE,6,LEISURE,MATERIALS,3310,,02/11/2022,41035057,1555.86,15851,BRENT LODGE PARK ANIMAL CENTRE
INSERTED DETAIL,,Ealing Council,http://opendatacommunities.org/id/london-borough-council/ealing,PLACE,6,LEISURE,STATION. & CONSUMABLE EQUIP.,3820,,11/11/2022,41039613,545,14641,SHAW & SONS LTD
INSERTED DETAIL,,Ealing Council,http://opendatacommunities.org/id/london-borough-council/ealing,PLACE,6,LEISURE,CIS REPAIRS AND MAINTENANCE,1411,,04/11/2022,41038218,3750,25871,CENTURIAN SURFACING LTD - T/A CENTURIAN SERVICES
INSERTED DETAIL,,Ealing Council,http://opendatacommunities.org/id/london-borough-council/ealing,PLACE,6,LEISURE,CIS REPAIRS AND MAINTENANCE,1411,,04/11/2022,41038218,9898.62,25871,CENTURIAN SURFACING LTD - T/A CENTURIAN SERVICES
INSERTED DETAIL,,Ealing Council,http://opendatacommunities.org/id/london-borough-council/ealing,PLACE,6,LEISURE,CIS REPAIRS AND MAINTENANCE,1411,,09/11/2022,41038377,5766.35,25871,CENTURIAN SURFACING LTD - T/A CENTURIAN SERVICES
INSERTED DETAIL,,Ealing Council,http://opendatacommunities.org/id/london-borough-council/ealing,PLACE,6,LEISURE,CIS REPAIRS AND MAINTENANCE,1411,,09/11/2022,41038377,3750,25871,CENTURIAN SURFACING LTD - T/A CENTURIAN SERVICES
INSERTED DETAIL,,Ealing Council,http://opendatacommunities.org/id/london-borough-council/ealing,PLACE,6,LEISURE,PAYMENTS TO CONTRACTORS,4000,,17/11/2022,41039468,975,12788,KENWARD & SON LIMITED
INSERTED DETAIL,,Ealing Council,http://opendatacommunities.org/id/london-borough-council/ealing,PLACE,6,LEISURE,PAYMENTS TO CONTRACTORS,4000,,19/11/2022,41039665,780,12788,KENWARD & SON LIMITED
INSERTED DETAIL,,Ealing Council,http://opendatacommunities.org/id/london-borough-council/ealing,PLACE,6,LEISURE,PAYMENTS TO CONTRACTORS,4000,,10/11/2022,41039437,1179.6,11865,FALON NAMEPLATES
INSERTED DETAIL,,Ealing Council,http://opendatacommunities.org/id/london-borough-council/ealing,PLACE,6,LEISURE,PAYMENTS TO CONTRACTORS,4000,,03/11/2022,41037477,1278,12788,KENWARD & SON LIMITED
INSERTED DETAIL,,Ealing Council,http://opendatacommunities.org/id/london-borough-council/ealing,PLACE,6,LEISURE,PAYMENTS TO CONTRACTORS,4000,,13/10/2022,41037498,2145,12788,KENWARD & SON LIMITED
INSERTED DETAIL,,Ealing Council,http://opendatacommunities.org/id/london-borough-council/ealing,PLACE,6,LEISURE,PAYMENTS TO CONTRACTORS,4000,,03/11/2022,41037131,1842,12788,KENWARD & SON LIMITED
INSERTED DETAIL,,Ealing Council,http://opendatacommunities.org/id/london-borough-council/ealing,PLACE,6,LEISURE,PAYMENTS TO CONTRACTORS,4000,,12/10/2022,41036064,1762.4,11538,DRAYTON FENCING COMPANY
INSERTED DETAIL,,Ealing Council,http://opendatacommunities.org/id/london-borough-council/ealing,PLACE,6,"ARTS, HERITAGE AND LIBRARIES",HEALTH & SAFETY,2880,,01/03/2022,41035273,3088.8,20797,ST JOHN AMBULANCE
INSERTED DETAIL,,Ealing Council,http://opendatacommunities.org/id/london-borough-council/ealing,CHILDREN & ADULTS,1,BUSINESS MANAGEMENT,Services Contracts Agency Interim Consultants,2970,,27/10/2022,41036848,139000,15652,WEST LONDON NHS TRUST
INSERTED DETAIL,,Ealing Council,http://opendatacommunities.org/id/london-borough-council/ealing,CHILDREN & ADULTS,1,BUSINESS MANAGEMENT,AUDIT FEES,2870,,03/11/2022,41037291,25000,26953,CARE ANALYTICS (UK)  LTD
INSERTED DETAIL,,Ealing Council,http://opendatacommunities.org/id/london-borough-council/ealing,CHILDREN & ADULTS,1,BUSINESS MANAGEMENT,Services Contracts Agency Interim Consultants,2970,,31/08/2022,41033795,4375,9900014,PRIVATE PUBLIC LTD (PPL)
INSERTED DETAIL,,Ealing Council,http://opendatacommunities.org/id/london-borough-council/ealing,CHILDREN & ADULTS,1,BUSINESS MANAGEMENT,COMP OUTSOURCED SERVICES,3220,,03/11/2022,41037071,6630,29833,INDIGO SMART SOLUTIONS LTD
INSERTED DETAIL,,Ealing Council,http://opendatacommunities.org/id/london-borough-council/ealing,CHILDREN & ADULTS,1,SAFEGUARDING & SUPPORT - SM,PAYMENTS TO CONTRACTORS,4000,,20/04/2022,41036427,20200,10665,LONDON BOROUGH OF BRENT - GENERAL
INSERTED DETAIL,,Ealing Council,http://opendatacommunities.org/id/london-borough-council/ealing,CHILDREN & ADULTS,1,DISABILITIES,DOMICILIARY CARE - BLOCK,4240,,01/11/2022,23239195,3500,27955,EAGER HEALTH LTD T/A CARE24SEVEN
INSERTED DETAIL,,Ealing Council,http://opendatacommunities.org/id/london-borough-council/ealing,CHILDREN & ADULTS,1,DISABILITIES,DOMICILIARY CARE - BLOCK,4240,,01/11/2022,23239195,5553.5,27955,EAGER HEALTH LTD T/A CARE24SEVEN
INSERTED DETAIL,,Ealing Council,http://opendatacommunities.org/id/london-borough-council/ealing,CHILDREN & ADULTS,1,DISABILITIES,RESIDENTIAL HOMES EXTERNAL,4220,,01/10/2022,23239713,5248.36,10372,ASHFORD HOUSE LTD
INSERTED DETAIL,,Ealing Council,http://opendatacommunities.org/id/london-borough-council/ealing,CHILDREN & ADULTS,1,DISABILITIES,RESIDENTIAL HOMES EXTERNAL,4220,,01/10/2022,23239723,6730.56,28040,ASHINGHAM HOUSE LTD
INSERTED DETAIL,,Ealing Council,http://opendatacommunities.org/id/london-borough-council/ealing,CHILDREN & ADULTS,1,DISABILITIES,RESIDENTIAL HOMES EXTERNAL,4220,,09/11/2022,23243544,2436.44,10869,HF TRUST LIMITED
INSERTED DETAIL,,Ealing Council,http://opendatacommunities.org/id/london-borough-council/ealing,CHILDREN & ADULTS,1,DISABILITIES,DIRECT PAYMENTS-INCOME,8787,,31/10/2022,23239120,-331.8,80119,REDACTED SENSITIVE SUPPLIER
INSERTED DETAIL,,Ealing Council,http://opendatacommunities.org/id/london-borough-council/ealing,PLACE,6,CAPITAL DELIVERY,PAYMENTS TO CONTRACTORS,4000,,31/10/2022,41036275,1950,28751,CARTER JONAS SERVICE COMPANY
INSERTED DETAIL,,Ealing Council,http://opendatacommunities.org/id/london-borough-council/ealing,PLACE,6,STREET SERVICES,PAYMENTS TO CONTRACTORS,4000,,01/11/2022,41037552,3073.4,19441,SDK (ENVIROMENTAL) LTD
INSERTED DETAIL,,Ealing Council,http://opendatacommunities.org/id/london-borough-council/ealing,PLACE,6,LEISURE,PAYMENTS TO CONTRACTORS,4000,,14/10/2022,41034590,4917,25875,SPORTS & LEISURE MANAGEMENT LTD T/A EVERYONE ACTIVE
INSERTED DETAIL,,Ealing Council,http://opendatacommunities.org/id/london-borough-council/ealing,PLACE,6,LEISURE,PAYMENTS TO CONTRACTORS,4000,,02/11/2022,41037012,4917,25875,SPORTS & LEISURE MANAGEMENT LTD T/A EVERYONE ACTIVE
INSERTED DETAIL,,Ealing Council,http://opendatacommunities.org/id/london-borough-council/ealing,PLACE,6,STREET SERVICES,PAYMENTS TO CONTRACTORS,4000,,01/11/2022,41036811,1074.36,28826,GREENER EALING LIMITED
INSERTED DETAIL,,Ealing Council,http://opendatacommunities.org/id/london-borough-council/ealing,CHILDREN & ADULTS,1,SAFEGUARDING & SUPPORT - CIC,SECTION 2(16) PAYROLL TRANSACTIONS,4270,,14/09/2022,50001932,716.2,18273,CONTACT PROFESSIONALS LTD
INSERTED DETAIL,,Ealing Council,http://opendatacommunities.org/id/london-borough-council/ealing,CHILDREN & ADULTS,1,SAFEGUARDING & SUPPORT - CIC,SECTION 2(16) PAYROLL TRANSACTIONS,4270,,14/09/2022,50001932,265.1,18273,CONTACT PROFESSIONALS LTD
INSERTED DETAIL,,Ealing Council,http://opendatacommunities.org/id/london-borough-council/ealing,CHILDREN & ADULTS,1,SAFEGUARDING & SUPPORT - CIC,SECTION 2(16) PAYROLL TRANSACTIONS,4270,,14/09/2022,50001932,290.8,18273,CONTACT PROFESSIONALS LTD
INSERTED DETAIL,,Ealing Council,http://opendatacommunities.org/id/london-borough-council/ealing,CHILDREN & ADULTS,1,SAFEGUARDING & SUPPORT - CIC,SECTION 2(16) PAYROLL TRANSACTIONS,4270,,19/10/2022,50001936,314.7,18273,CONTACT PROFESSIONALS LTD
INSERTED DETAIL,,Ealing Council,http://opendatacommunities.org/id/london-borough-council/ealing,CHILDREN & ADULTS,1,SAFEGUARDING & SUPPORT - CIC,SECTION 2(16) PAYROLL TRANSACTIONS,4270,,04/11/2022,41037524,1860,13769,NORTH HANWELL BAPTIST CHURCH
INSERTED DETAIL,,Ealing Council,http://opendatacommunities.org/id/london-borough-council/ealing,CHILDREN & ADULTS,1,SAFEGUARDING & SUPPORT - SM,ADVERTISING,2690,,08/11/2022,41038126,2160,9900014,COMPASS CAREER OPPORTUNITIES LTD
INSERTED DETAIL,,Ealing Council,http://opendatacommunities.org/id/london-borough-council/ealing,CHILDREN & ADULTS,1,SAFEGUARDING & SUPPORT - SM,MANAGEMENT CHARGES,2600,,01/07/2022,41020223,7369.2,22929,GOODSHAPE UK LIMITED
INSERTED DETAIL,,Ealing Council,http://opendatacommunities.org/id/london-borough-council/ealing,CHILDREN & ADULTS,1,SAFEGUARDING & SUPPORT - SM,TRAINING,80,,27/10/2022,41035103,725,20249,T-THREE PUBLIC SECTOR CONSULTING LTD
INSERTED DETAIL,,Ealing Council,http://opendatacommunities.org/id/london-borough-council/ealing,CHILDREN & ADULTS,1,SAFEGUARDING & SUPPORT - SM,TRAINING,80,,29/09/2022,41035517,725,20249,T-THREE PUBLIC SECTOR CONSULTING LTD
INSERTED DETAIL,,Ealing Council,http://opendatacommunities.org/id/london-borough-council/ealing,CHILDREN & ADULTS,1,SAFEGUARDING & SUPPORT - SM,PAYMENTS TO CONTRACTORS,4000,,04/05/2022,41027402,7954.2,10033,CORAM VOICE
INSERTED DETAIL,,Ealing Council,http://opendatacommunities.org/id/london-borough-council/ealing,CHILDREN & ADULTS,1,SAFEGUARDING & SUPPORT - SM,PAYMENTS TO CONTRACTORS,4000,,28/09/2022,41036759,5476.8,10033,CORAM VOICE
INSERTED DETAIL,,Ealing Council,http://opendatacommunities.org/id/london-borough-council/ealing,CHILDREN & ADULTS,1,SAFEGUARDING & SUPPORT - SM,COMP OUTSOURCED SERVICES,3220,,31/10/2022,41035552,5400,26815,RAINMAKER PEOPLE LIMITED
INSERTED DETAIL,,Ealing Council,http://opendatacommunities.org/id/london-borough-council/ealing,CHILDREN & ADULTS,1,SAFEGUARDING & SUPPORT - SM,INTERPRETERS,2910,,31/10/2022,41034795,361.24,16019,LANGUAGE IS EVERYTHING LIMITED
INSERTED DETAIL,,Ealing Council,http://opendatacommunities.org/id/london-borough-council/ealing,CHILDREN & ADULTS,1,SAFEGUARDING & SUPPORT - SM,INTERPRETERS,2910,,31/10/2022,41034798,570.5,16019,LANGUAGE IS EVERYTHING LIMITED
INSERTED DETAIL,,Ealing Council,http://opendatacommunities.org/id/london-borough-council/ealing,CHILDREN & ADULTS,1,SAFEGUARDING & SUPPORT - SM,INTERPRETERS,2910,,31/10/2022,41034865,321.24,16019,LANGUAGE IS EVERYTHING LIMITED
INSERTED DETAIL,,Ealing Council,http://opendatacommunities.org/id/london-borough-council/ealing,CHILDREN & ADULTS,1,SAFEGUARDING & SUPPORT - SM,INTERPRETERS,2910,,29/11/2022,41039654,304.15,16019,LANGUAGE IS EVERYTHING LIMITED
INSERTED DETAIL,,Ealing Council,http://opendatacommunities.org/id/london-borough-council/ealing,CHILDREN & ADULTS,1,EALING SERVICE FOR CHILDREN WITH ADDITIONAL NEEDS,COMP SOFTWARE,3210,,24/10/2022,41035275,17910.79,20109,IMOSPHERE LTD
INSERTED DETAIL,,Ealing Council,http://opendatacommunities.org/id/london-borough-council/ealing,CHILDREN & ADULTS,1,SAFEGUARDING & SUPPORT - CIC,SOCIAL SERVICES -INDEPENDENT FOSTERING,4221,,14/11/2022,23244422,3319.44,13641,NATIONAL FOSTERING AGENCY LTD
INSERTED DETAIL,,Ealing Council,http://opendatacommunities.org/id/london-borough-council/ealing,CHILDREN & ADULTS,1,SAFEGUARDING & SUPPORT - CIC,SOCIAL SERVICES -INDEPENDENT FOSTERING,4221,,01/04/2021,41035440,428.56,26074,BRIDGING GAPS LIMITED
INSERTED DETAIL,,Ealing Council,http://opendatacommunities.org/id/london-borough-council/ealing,CHILDREN & ADULTS,1,SAFEGUARDING & SUPPORT - CIC,SOCIAL SERVICES -INDEPENDENT FOSTERING,4221,,01/04/2021,41035442,400,26074,BRIDGING GAPS LIMITED
INSERTED DETAIL,,Ealing Council,http://opendatacommunities.org/id/london-borough-council/ealing,CHILDREN & ADULTS,1,SAFEGUARDING & SUPPORT - CIC,RESIDENTIAL HOMES EXTERNAL,4220,,14/11/2022,23244449,1285.71,26585,CARE 4 CHILDREN RESIDENTIAL SERVICES LTD
INSERTED DETAIL,,Ealing Council,http://opendatacommunities.org/id/london-borough-council/ealing,CHILDREN & ADULTS,1,SAFEGUARDING & SUPPORT - CIC,RESIDENTIAL HOMES EXTERNAL,4220,,14/11/2022,23244449,18601.43,26585,CARE 4 CHILDREN RESIDENTIAL SERVICES LTD
INSERTED DETAIL,,Ealing Council,http://opendatacommunities.org/id/london-borough-council/ealing,CHILDREN & ADULTS,1,SAFEGUARDING & SUPPORT - CIC,CHILDRENS SERVICES -ELIGIBLE CHILDREN OTHER COSTS,4282,,14/11/2022,23244449,1771.43,26585,CARE 4 CHILDREN RESIDENTIAL SERVICES LTD
INSERTED DETAIL,,Ealing Council,http://opendatacommunities.org/id/london-borough-council/ealing,CHILDREN & ADULTS,1,SAFEGUARDING & SUPPORT - CIC,CHILDRENS SERVICES -ELIGIBLE CHILDREN OTHER COSTS,4282,,14/11/2022,23244449,2657.14,26585,CARE 4 CHILDREN RESIDENTIAL SERVICES LTD
INSERTED DETAIL,,Ealing Council,http://opendatacommunities.org/id/london-borough-council/ealing,CHILDREN & ADULTS,1,SAFEGUARDING & SUPPORT - CIC,CHILDRENS SERVICES -ELIGIBLE CHILDREN ACCOMMODATIO,4281,,14/11/2022,23244479,17050,29427,ATHENA FAMILY SERVICES LIMITED
INSERTED DETAIL,,Ealing Council,http://opendatacommunities.org/id/london-borough-council/ealing,CHILDREN & ADULTS,1,SAFEGUARDING & SUPPORT - CIC,CHILDRENS SERVICES -ELIGIBLE CHILDREN ACCOMMODATIO,4281,,14/11/2022,23244541,1771.43,29870,WELLSPRING CARE SERVICES LTD
INSERTED DETAIL,,Ealing Council,http://opendatacommunities.org/id/london-borough-council/ealing,CHILDREN & ADULTS,1,SAFEGUARDING & SUPPORT - CIC,CHILDRENS SERVICES -ELIGIBLE CHILDREN ACCOMMODATIO,4281,,14/11/2022,23244541,1992.86,29870,WELLSPRING CARE SERVICES LTD
INSERTED DETAIL,,Ealing Council,http://opendatacommunities.org/id/london-borough-council/ealing,PLACE,6,STREET SERVICES,PAYMENTS TO CONTRACTORS,4000,,31/10/2022,41036718,336.55,14514,WERNICK HIRE LTD
INSERTED DETAIL,,Ealing Council,http://opendatacommunities.org/id/london-borough-council/ealing,PLACE,6,STREET SERVICES,PAYMENTS TO CONTRACTORS,4000,,28/02/2022,41038778,304,14514,WERNICK HIRE LTD
INSERTED DETAIL,,Ealing Council,http://opendatacommunities.org/id/london-borough-council/ealing,PLACE,6,STREET SERVICES,CONTRACT PAYMENTS -CLEAN & GREEN,4010,,31/10/2022,41036910,3336.12,16351,MPM GRAFFITI SOLUTIONS
INSERTED DETAIL,,Ealing Council,http://opendatacommunities.org/id/london-borough-council/ealing,PLACE,6,LEISURE,REPAIR AND MAINTENANCE,1410,,09/11/2022,41038810,297.73,29721,NETWORK RAIL INFRASTRUCTURE LTD PROPERTY COLLECTION A/C
INSERTED DETAIL,,Ealing Council,http://opendatacommunities.org/id/london-borough-council/ealing,PLACE,6,LEISURE,CIS REPAIRS AND MAINTENANCE,1411,,16/09/2022,41035787,81523,28826,GREENER EALING LIMITED
INSERTED DETAIL,,Ealing Council,http://opendatacommunities.org/id/london-borough-council/ealing,PLACE,6,LEISURE,PAYMENTS TO CONTRACTORS,4000,,01/11/2022,41036875,5385,28826,GREENER EALING LIMITED
INSERTED DETAIL,,Ealing Council,http://opendatacommunities.org/id/london-borough-council/ealing,PLACE,6,LEISURE,PAYMENTS TO CONTRACTORS,4000,,24/10/2022,41037021,750,29406,PROFESSIONAL SPORTSTURF DESIGN (NORTH WEST) LTD
INSERTED DETAIL,,Ealing Council,http://opendatacommunities.org/id/london-borough-council/ealing,PLACE,6,LEISURE,PAYMENTS TO CONTRACTORS,4000,,05/10/2022,41038454,3200,29319,TOTAL-PLAY LTD
INSERTED DETAIL,,Ealing Council,http://opendatacommunities.org/id/london-borough-council/ealing,PLACE,6,LEISURE,PAYMENTS TO CONTRACTORS,4000,,21/10/2022,41038700,-8558.35,29813,NICHOLLS COUNTRYSIDE CONSTRUCTION LTD
INSERTED DETAIL,,Ealing Council,http://opendatacommunities.org/id/london-borough-council/ealing,PLACE,6,LEISURE,PAYMENTS TO CONTRACTORS,4000,,21/10/2022,41038818,11308.5,29813,NICHOLLS COUNTRYSIDE CONSTRUCTION LTD
INSERTED DETAIL,,Ealing Council,http://opendatacommunities.org/id/london-borough-council/ealing,PLACE,6,LEISURE,PAYMENTS TO CONTRACTORS,4000,,21/10/2022,41038820,8558.35,29813,NICHOLLS COUNTRYSIDE CONSTRUCTION LTD
INSERTED DETAIL,,Ealing Council,http://opendatacommunities.org/id/london-borough-council/ealing,CHILDREN & ADULTS,1,DISABILITIES,HEALTH & SAFETY,2880,,03/11/2022,41038240,323.99,17546,MEDISAVE UK LTD
INSERTED DETAIL,,Ealing Council,http://opendatacommunities.org/id/london-borough-council/ealing,CHILDREN & ADULTS,1,SAFEGUARDING & SUPP - BS &A&F,DEBT COLLECTION COST (DCC),2850,,01/06/2022,41034815,1371.2,9900014,CREDIT LIMITS INTERNATIONAL LTD
INSERTED DETAIL,,Ealing Council,http://opendatacommunities.org/id/london-borough-council/ealing,CHILDREN & ADULTS,1,EALING SERVICE FOR CHILDREN WITH ADDITIONAL NEEDS,TRAINING,80,,02/11/2022,41035495,1195,9900014,TEAM DYNAMIS LTD
INSERTED DETAIL,,Ealing Council,http://opendatacommunities.org/id/london-borough-council/ealing,CHILDREN & ADULTS,1,EALING SERVICE FOR CHILDREN WITH ADDITIONAL NEEDS,CHILDRENS SERVICE -RESPITE CARE SCHEME,4661,,07/11/2022,23242377,395.84,22024,SHOOTING STAR CHILDRENS HOSPICE
INSERTED DETAIL,,Ealing Council,http://opendatacommunities.org/id/london-borough-council/ealing,CHILDREN & ADULTS,1,EALING SERVICE FOR CHILDREN WITH ADDITIONAL NEEDS,CHILDRENS SERVICE -RESPITE CARE SCHEME,4661,,07/11/2022,23242377,395.84,22024,SHOOTING STAR CHILDRENS HOSPICE
INSERTED DETAIL,,Ealing Council,http://opendatacommunities.org/id/london-borough-council/ealing,CHILDREN & ADULTS,1,EALING SERVICE FOR CHILDREN WITH ADDITIONAL NEEDS,CHILDRENS SERVICE -RESPITE CARE SCHEME,4661,,07/11/2022,23242378,7200,13057,LONDON BOROUGH OF HOUNSLOW
INSERTED DETAIL,,Ealing Council,http://opendatacommunities.org/id/london-borough-council/ealing,CHILDREN & ADULTS,1,EALING SERVICE FOR CHILDREN WITH ADDITIONAL NEEDS,CHILDRENS SERVICE -RESPITE CARE SCHEME,4661,,07/11/2022,23242378,7200,13057,LONDON BOROUGH OF HOUNSLOW
INSERTED DETAIL,,Ealing Council,http://opendatacommunities.org/id/london-borough-council/ealing,CHILDREN & ADULTS,1,EALING SERVICE FOR CHILDREN WITH ADDITIONAL NEEDS,SOCIAL SERVICES DIRECT PAYMENTS,4231,,01/11/2022,23239205,630.8,27062,REDACTED SENSITIVE SUPPLIER
INSERTED DETAIL,,Ealing Council,http://opendatacommunities.org/id/london-borough-council/ealing,CHILDREN & ADULTS,1,EALING SERVICE FOR CHILDREN WITH ADDITIONAL NEEDS,DOMICILIARY CARE - BLOCK,4240,,07/11/2022,23242383,306.04,14755,OASIS CARE & TRAINING AGENCY (OCTA)
INSERTED DETAIL,,Ealing Council,http://opendatacommunities.org/id/london-borough-council/ealing,CHILDREN & ADULTS,1,EALING SERVICE FOR CHILDREN WITH ADDITIONAL NEEDS,DOMICILIARY CARE - BLOCK,4240,,07/11/2022,23242383,300,14755,OASIS CARE & TRAINING AGENCY (OCTA)
INSERTED DETAIL,,Ealing Council,http://opendatacommunities.org/id/london-borough-council/ealing,CHILDREN & ADULTS,1,EALING SERVICE FOR CHILDREN WITH ADDITIONAL NEEDS,DOMICILIARY CARE - BLOCK,4240,,07/11/2022,23242383,2977.92,14755,OASIS CARE & TRAINING AGENCY (OCTA)
INSERTED DETAIL,,Ealing Council,http://opendatacommunities.org/id/london-borough-council/ealing,CHILDREN & ADULTS,1,EALING SERVICE FOR CHILDREN WITH ADDITIONAL NEEDS,DOMICILIARY CARE - BLOCK,4240,,07/11/2022,23242383,322.4,14755,OASIS CARE & TRAINING AGENCY (OCTA)
INSERTED DETAIL,,Ealing Council,http://opendatacommunities.org/id/london-borough-council/ealing,CHILDREN & ADULTS,1,EALING SERVICE FOR CHILDREN WITH ADDITIONAL NEEDS,DOMICILIARY CARE - BLOCK,4240,,07/11/2022,23242383,452,14755,OASIS CARE & TRAINING AGENCY (OCTA)
INSERTED DETAIL,,Ealing Council,http://opendatacommunities.org/id/london-borough-council/ealing,CHILDREN & ADULTS,1,EALING SERVICE FOR CHILDREN WITH ADDITIONAL NEEDS,DOMICILIARY CARE - BLOCK,4240,,07/11/2022,23242383,640,14755,OASIS CARE & TRAINING AGENCY (OCTA)
INSERTED DETAIL,,Ealing Council,http://opendatacommunities.org/id/london-borough-council/ealing,CHILDREN & ADULTS,1,EALING SERVICE FOR CHILDREN WITH ADDITIONAL NEEDS,DOMICILIARY CARE - BLOCK,4240,,07/11/2022,23242383,917,14755,OASIS CARE & TRAINING AGENCY (OCTA)
INSERTED DETAIL,,Ealing Council,http://opendatacommunities.org/id/london-borough-council/ealing,CHILDREN & ADULTS,1,EALING SERVICE FOR CHILDREN WITH ADDITIONAL NEEDS,DOMICILIARY CARE - BLOCK,4240,,07/11/2022,23242383,1847.44,14755,OASIS CARE & TRAINING AGENCY (OCTA)
INSERTED DETAIL,,Ealing Council,http://opendatacommunities.org/id/london-borough-council/ealing,CHILDREN & ADULTS,1,EALING SERVICE FOR CHILDREN WITH ADDITIONAL NEEDS,DOMICILIARY CARE - BLOCK,4240,,07/11/2022,23242383,433.16,14755,OASIS CARE & TRAINING AGENCY (OCTA)
INSERTED DETAIL,,Ealing Council,http://opendatacommunities.org/id/london-borough-council/ealing,CHILDREN & ADULTS,1,EALING SERVICE FOR CHILDREN WITH ADDITIONAL NEEDS,DOMICILIARY CARE - BLOCK,4240,,07/11/2022,23242383,288.72,14755,OASIS CARE & TRAINING AGENCY (OCTA)
INSERTED DETAIL,,Ealing Council,http://opendatacommunities.org/id/london-borough-council/ealing,CHILDREN & ADULTS,1,EALING SERVICE FOR CHILDREN WITH ADDITIONAL NEEDS,DOMICILIARY CARE - BLOCK,4240,,07/11/2022,23242383,481.2,14755,OASIS CARE & TRAINING AGENCY (OCTA)
INSERTED DETAIL,,Ealing Council,http://opendatacommunities.org/id/london-borough-council/ealing,CHILDREN & ADULTS,1,EALING SERVICE FOR CHILDREN WITH ADDITIONAL NEEDS,DOMICILIARY CARE - BLOCK,4240,,07/11/2022,23242383,459.75,14755,OASIS CARE & TRAINING AGENCY (OCTA)
INSERTED DETAIL,,Ealing Council,http://opendatacommunities.org/id/london-borough-council/ealing,PLACE,6,STREET SERVICES,PAYMENTS TO CONTRACTORS,4000,,30/09/2022,41032834,13006.4,16351,MPM GRAFFITI SOLUTIONS
INSERTED DETAIL,,Ealing Council,http://opendatacommunities.org/id/london-borough-council/ealing,PLACE,6,STREET SERVICES,PAYMENTS TO CONTRACTORS,4000,,30/09/2022,41034648,-591.2,16351,MPM GRAFFITI SOLUTIONS
INSERTED DETAIL,,Ealing Council,http://opendatacommunities.org/id/london-borough-council/ealing,PLACE,6,STREET SERVICES,PAYMENTS TO CONTRACTORS,4000,,31/10/2022,41036826,12695.2,16351,MPM GRAFFITI SOLUTIONS
INSERTED DETAIL,,Ealing Council,http://opendatacommunities.org/id/london-borough-council/ealing,PLACE,6,STREET SERVICES,MINOR EQUIP PURCHASE,3320,,01/11/2022,41037326,14002,28673,STORM ENVIRONMENTAL LTD
INSERTED DETAIL,,Ealing Council,http://opendatacommunities.org/id/london-borough-council/ealing,PLACE,6,STREET SERVICES,STATION. & CONSUMABLE EQUIP.,3820,,02/09/2022,41028801,14198.8,28804,STRAIGHT MANUFACTURING LTD
INSERTED DETAIL,,Ealing Council,http://opendatacommunities.org/id/london-borough-council/ealing,PLACE,6,STREET SERVICES,MINOR EQUIP PURCHASE,3320,,24/10/2022,41035886,1790,28673,STORM ENVIRONMENTAL LTD
INSERTED DETAIL,,Ealing Council,http://opendatacommunities.org/id/london-borough-council/ealing,PLACE,6,STREET SERVICES,PAYMENTS TO CONTRACTORS,4000,,25/11/2022,41037439,781464.32,28826,GREENER EALING LIMITED
INSERTED DETAIL,,Ealing Council,http://opendatacommunities.org/id/london-borough-council/ealing,PLACE,6,"ARTS, HERITAGE AND LIBRARIES",PAYMENTS TO CONTRACTORS,4000,,15/06/2022,41034729,7640.88,14795,ENERVEO LTD
INSERTED DETAIL,,Ealing Council,http://opendatacommunities.org/id/london-borough-council/ealing,PLACE,6,"ARTS, HERITAGE AND LIBRARIES",PAYMENTS TO CONTRACTORS,4000,,10/06/2022,41033640,369,9900018,REDACTED SENSITIVE SUPPLIER
INSERTED DETAIL,,Ealing Council,http://opendatacommunities.org/id/london-borough-council/ealing,CHILDREN & ADULTS,1,DISABILITIES,SOCIAL SERVICES CONTRACTUAL CARERS ALLOWANCES,4380,,07/11/2022,41035923,3642.86,22385,REDACTED SENSITIVE SUPPLIER
INSERTED DETAIL,,Ealing Council,http://opendatacommunities.org/id/london-borough-council/ealing,CHILDREN & ADULTS,1,DISABILITIES,SOCIAL SERVICES CONTRACTUAL CARERS ALLOWANCES,4380,,03/11/2022,41035292,1714.28,16941,REDACTED SENSITIVE SUPPLIER
INSERTED DETAIL,,Ealing Council,http://opendatacommunities.org/id/london-borough-council/ealing,CHILDREN & ADULTS,1,DISABILITIES,SOCIAL SERVICES CONTRACTUAL CARERS ALLOWANCES,4380,,04/11/2022,41035730,642.87,28245,REDACTED SENSITIVE SUPPLIER
INSERTED DETAIL,,Ealing Council,http://opendatacommunities.org/id/london-borough-council/ealing,CHILDREN & ADULTS,1,DISABILITIES,SOCIAL SERVICES CONTRACTUAL CARERS ALLOWANCES,4380,,03/11/2022,41035294,1313,27515,REDACTED SENSITIVE SUPPLIER
INSERTED DETAIL,,Ealing Council,http://opendatacommunities.org/id/london-borough-council/ealing,CHILDREN & ADULTS,1,DISABILITIES,SOCIAL SERVICES CONTRACTUAL CARERS ALLOWANCES,4380,,03/11/2022,41035295,1500.18,23161,REDACTED SENSITIVE SUPPLIER
INSERTED DETAIL,,Ealing Council,http://opendatacommunities.org/id/london-borough-council/ealing,CHILDREN & ADULTS,1,DISABILITIES,SOCIAL SERVICES CONTRACTUAL CARERS ALLOWANCES,4380,,03/11/2022,41035291,1285.88,20075,REDACTED SENSITIVE SUPPLIER
INSERTED DETAIL,,Ealing Council,http://opendatacommunities.org/id/london-borough-council/ealing,CHILDREN & ADULTS,1,DISABILITIES,SOCIAL SERVICES CONTRACTUAL CARERS ALLOWANCES,4380,,03/11/2022,41035296,1285.88,200134,REDACTED SENSITIVE SUPPLIER
INSERTED DETAIL,,Ealing Council,http://opendatacommunities.org/id/london-borough-council/ealing,CHILDREN & ADULTS,1,EARLY YEARS CHILDCARE & SAFE,ACTIVITIES,4196,,02/11/2022,41038520,19280,9900014,OUR TIME
INSERTED DETAIL,,Ealing Council,http://opendatacommunities.org/id/london-borough-council/ealing,CHILDREN & ADULTS,1,EARLY YEARS CHILDCARE & SAFE,PAYMENTS TO OTHER ESTAB.,4350,,31/03/2022,41035951,90000,40001,CONTACT A FAMILY (EALING)
INSERTED DETAIL,,Ealing Council,http://opendatacommunities.org/id/london-borough-council/ealing,CHILDREN & ADULTS,1,EARLY YEARS CHILDCARE & SAFE,TRAINING,80,,01/11/2022,41034858,270,23440,ADULT DYSLEXIA CENTRE (THAMES VALLEY)
INSERTED DETAIL,,Ealing Council,http://opendatacommunities.org/id/london-borough-council/ealing,CHILDREN & ADULTS,1,EARLY YEARS CHILDCARE & SAFE,STATION. & CONSUMABLE EQUIP.,3820,,30/09/2022,41038186,275,9900014,REDBLAZER
INSERTED DETAIL,,Ealing Council,http://opendatacommunities.org/id/london-borough-council/ealing,CHILDREN & ADULTS,1,SAFEGUARDING & SUPP - BS &A&F,SPECIAL GUARDIANSHIP ALLOWANCE (SOC SERV),4663,,01/11/2022,23239419,410,200735,REDACTED SENSITIVE SUPPLIER
INSERTED DETAIL,,Ealing Council,http://opendatacommunities.org/id/london-borough-council/ealing,CHILDREN & ADULTS,1,SAFEGUARDING & SUPP - BS &A&F,SPECIAL GUARDIANSHIP ALLOWANCE (SOC SERV),4663,,01/11/2022,23239419,410,200735,REDACTED SENSITIVE SUPPLIER
INSERTED DETAIL,,Ealing Council,http://opendatacommunities.org/id/london-borough-council/ealing,CHILDREN & ADULTS,1,SAFEGUARDING & SUPP - BS &A&F,SPECIAL GUARDIANSHIP ALLOWANCE (SOC SERV),4663,,15/11/2022,23244659,410,200735,REDACTED SENSITIVE SUPPLIER
INSERTED DETAIL,,Ealing Council,http://opendatacommunities.org/id/london-borough-council/ealing,CHILDREN & ADULTS,1,SAFEGUARDING & SUPP - BS &A&F,SPECIAL GUARDIANSHIP ALLOWANCE (SOC SERV),4663,,15/11/2022,23244659,410,200735,REDACTED SENSITIVE SUPPLIER
INSERTED DETAIL,,Ealing Council,http://opendatacommunities.org/id/london-borough-council/ealing,CHILDREN & ADULTS,1,SAFEGUARDING & SUPP - BS &A&F,SPECIAL GUARDIANSHIP ALLOWANCE (SOC SERV),4663,,22/11/2022,23246386,410,200735,REDACTED SENSITIVE SUPPLIER
INSERTED DETAIL,,Ealing Council,http://opendatacommunities.org/id/london-borough-council/ealing,CHILDREN & ADULTS,1,SAFEGUARDING & SUPP - BS &A&F,SPECIAL GUARDIANSHIP ALLOWANCE (SOC SERV),4663,,22/11/2022,23246386,410,200735,REDACTED SENSITIVE SUPPLIER
INSERTED DETAIL,,Ealing Council,http://opendatacommunities.org/id/london-borough-council/ealing,CHILDREN & ADULTS,1,SAFEGUARDING & SUPP - BS &A&F,CHILDRENS SERVICES ADOPTION ALLOWANCE,4387,,01/11/2022,23239355,298.39,200134,REDACTED SENSITIVE SUPPLIER
INSERTED DETAIL,,Ealing Council,http://opendatacommunities.org/id/london-borough-council/ealing,CHILDREN & ADULTS,1,SAFEGUARDING & SUPP - BS &A&F,CHILDRENS SERVICES ADOPTION ALLOWANCE,4387,,01/11/2022,23239469,308.5,200117,REDACTED SENSITIVE SUPPLIER
INSERTED DETAIL,,Ealing Council,http://opendatacommunities.org/id/london-borough-council/ealing,CHILDREN & ADULTS,1,SAFEGUARDING & SUPP - BS &A&F,CHILDRENS SERVICES ADOPTION ALLOWANCE,4387,,08/11/2022,23242431,298.39,200134,REDACTED SENSITIVE SUPPLIER
INSERTED DETAIL,,Ealing Council,http://opendatacommunities.org/id/london-borough-council/ealing,PLACE,6,STREET SERVICES,PAYMENTS TO CONTRACTORS,4000,,25/11/2022,41037439,426026.41,28826,GREENER EALING LIMITED
INSERTED DETAIL,,Ealing Council,http://opendatacommunities.org/id/london-borough-council/ealing,PLACE,6,STREET SERVICES,PAYMENTS TO CONTRACTORS,4000,,18/10/2022,41036074,662.44,28826,GREENER EALING LIMITED
INSERTED DETAIL,,Ealing Council,http://opendatacommunities.org/id/london-borough-council/ealing,PLACE,6,STREET SERVICES,PAYMENTS TO CONTRACTORS,4000,,01/11/2022,41036812,2223.64,28826,GREENER EALING LIMITED
INSERTED DETAIL,,Ealing Council,http://opendatacommunities.org/id/london-borough-council/ealing,PLACE,6,STREET SERVICES,CIS REPAIRS AND MAINTENANCE,1411,,25/08/2022,41036081,1873.04,28826,GREENER EALING LIMITED
INSERTED DETAIL,,Ealing Council,http://opendatacommunities.org/id/london-borough-council/ealing,PLACE,6,STREET SERVICES,PAYMENTS TO CONTRACTORS,4000,,30/06/2022,41034333,46179,28454,L A SUPPORT LIMITED
INSERTED DETAIL,,Ealing Council,http://opendatacommunities.org/id/london-borough-council/ealing,PLACE,6,STREET SERVICES,PAYMENTS TO CONTRACTORS,4000,,31/07/2022,41034334,34181,28454,L A SUPPORT LIMITED
INSERTED DETAIL,,Ealing Council,http://opendatacommunities.org/id/london-borough-council/ealing,PLACE,6,STREET SERVICES,PAYMENTS TO CONTRACTORS,4000,,30/09/2022,41036156,41587,28454,L A SUPPORT LIMITED
INSERTED DETAIL,,Ealing Council,http://opendatacommunities.org/id/london-borough-council/ealing,PLACE,6,LEISURE,CIS REPAIRS AND MAINTENANCE,1411,,25/10/2022,41035546,5169.43,25871,CENTURIAN SURFACING LTD - T/A CENTURIAN SERVICES
INSERTED DETAIL,,Ealing Council,http://opendatacommunities.org/id/london-borough-council/ealing,PLACE,6,LEISURE,CIS REPAIRS AND MAINTENANCE,1411,,25/10/2022,41035546,1000,25871,CENTURIAN SURFACING LTD - T/A CENTURIAN SERVICES
INSERTED DETAIL,,Ealing Council,http://opendatacommunities.org/id/london-borough-council/ealing,PLACE,6,LEISURE,CIS REPAIRS AND MAINTENANCE,1411,,25/10/2022,41036062,2250,25871,CENTURIAN SURFACING LTD - T/A CENTURIAN SERVICES
INSERTED DETAIL,,Ealing Council,http://opendatacommunities.org/id/london-borough-council/ealing,PLACE,6,LEISURE,CIS REPAIRS AND MAINTENANCE,1411,,25/10/2022,41036062,17750,25871,CENTURIAN SURFACING LTD - T/A CENTURIAN SERVICES
INSERTED DETAIL,,Ealing Council,http://opendatacommunities.org/id/london-borough-council/ealing,PLACE,6,LEISURE,PAYMENTS TO CONTRACTORS -ARBORICULTURAL WORKS,4041,,26/10/2022,41036129,48150,28160,CONTRACT & PERSONNEL SERVICES LTD
INSERTED DETAIL,,Ealing Council,http://opendatacommunities.org/id/london-borough-council/ealing,CHILDREN & ADULTS,1,DISABILITIES,FURNITURE,3360,,13/10/2022,41036299,425,18054,KUDOS CONTRACT FURNITURE
INSERTED DETAIL,,Ealing Council,http://opendatacommunities.org/id/london-borough-council/ealing,CHILDREN & ADULTS,1,DISABILITIES,FURNITURE,3360,,02/11/2022,41037661,335,18054,KUDOS CONTRACT FURNITURE
INSERTED DETAIL,,Ealing Council,http://opendatacommunities.org/id/london-borough-council/ealing,CHILDREN & ADULTS,1,DISABILITIES,EXTERNAL TECHNICAL ADVICE,4060,,24/10/2022,41035848,500,26485,RHM BUILDING INFRASTRUCTURE SERVICES LTD
INSERTED DETAIL,,Ealing Council,http://opendatacommunities.org/id/london-borough-council/ealing,CHILDREN & ADULTS,1,DISABILITIES,FURNITURE,3360,,14/10/2022,41036300,500,18054,KUDOS CONTRACT FURNITURE
INSERTED DETAIL,,Ealing Council,http://opendatacommunities.org/id/london-borough-council/ealing,CHILDREN & ADULTS,1,DISABILITIES,FURNITURE,3360,,02/11/2022,41037662,375,18054,KUDOS CONTRACT FURNITURE
INSERTED DETAIL,,Ealing Council,http://opendatacommunities.org/id/london-borough-council/ealing,CHILDREN & ADULTS,1,SAFEGUARDING & SUPPORT - SM,Services Contracts Agency Interim Consultants,2970,,09/11/2022,41039495,7920,23024,VENN GROUP LTD
INSERTED DETAIL,,Ealing Council,http://opendatacommunities.org/id/london-borough-council/ealing,CHILDREN & ADULTS,1,SAFEGUARDING & SUPPORT - SM,Services Contracts Agency Interim Consultants,2970,,12/10/2022,41035032,7040,23024,VENN GROUP LTD
INSERTED DETAIL,,Ealing Council,http://opendatacommunities.org/id/london-borough-council/ealing,CHILDREN & ADULTS,1,ILT,AGENCY,70,,18/11/2022,41039744,2250,28602,1 TO 1 HEALTHCARE LTD
INSERTED DETAIL,,Ealing Council,http://opendatacommunities.org/id/london-borough-council/ealing,CHILDREN & ADULTS,1,ILT,AGENCY,70,,16/11/2022,41039389,712,28602,1 TO 1 HEALTHCARE LTD
INSERTED DETAIL,,Ealing Council,http://opendatacommunities.org/id/london-borough-council/ealing,CHILDREN & ADULTS,1,ILT,AGENCY,70,,14/11/2022,41039129,900,28602,1 TO 1 HEALTHCARE LTD
INSERTED DETAIL,,Ealing Council,http://opendatacommunities.org/id/london-borough-council/ealing,CHILDREN & ADULTS,1,ILT,AGENCY,70,,14/11/2022,41039127,675,28602,1 TO 1 HEALTHCARE LTD
INSERTED DETAIL,,Ealing Council,http://opendatacommunities.org/id/london-borough-council/ealing,CHILDREN & ADULTS,1,ILT,AGENCY,70,,18/11/2022,41039745,5175,28602,1 TO 1 HEALTHCARE LTD
INSERTED DETAIL,,Ealing Council,http://opendatacommunities.org/id/london-borough-council/ealing,CHILDREN & ADULTS,1,ILT,AGENCY,70,,14/11/2022,41039131,1350,28602,1 TO 1 HEALTHCARE LTD
INSERTED DETAIL,,Ealing Council,http://opendatacommunities.org/id/london-borough-council/ealing,CHILDREN & ADULTS,1,ILT,AGENCY,70,,14/11/2022,41039123,1350,28602,1 TO 1 HEALTHCARE LTD
INSERTED DETAIL,,Ealing Council,http://opendatacommunities.org/id/london-borough-council/ealing,CHILDREN & ADULTS,1,ILT,AGENCY,70,,31/10/2022,41036626,3825,28602,1 TO 1 HEALTHCARE LTD
INSERTED DETAIL,,Ealing Council,http://opendatacommunities.org/id/london-borough-council/ealing,CHILDREN & ADULTS,1,ILT,AGENCY,70,,31/10/2022,41036469,4725,28602,1 TO 1 HEALTHCARE LTD
INSERTED DETAIL,,Ealing Council,http://opendatacommunities.org/id/london-borough-council/ealing,CHILDREN & ADULTS,1,ILT,AGENCY,70,,24/10/2022,41035581,3825,28602,1 TO 1 HEALTHCARE LTD
INSERTED DETAIL,,Ealing Council,http://opendatacommunities.org/id/london-borough-council/ealing,CHILDREN & ADULTS,1,ILT,AGENCY,70,,08/11/2022,41038248,1350,28602,1 TO 1 HEALTHCARE LTD
INSERTED DETAIL,,Ealing Council,http://opendatacommunities.org/id/london-borough-council/ealing,CHILDREN & ADULTS,1,SAFEGUARDING & SUPPORT - CIC,CHILDRENS SERVICES -ELIGIBLE CHILDREN ACCOMMODATIO,4281,,01/11/2022,23239589,269.95,200934,REDACTED SENSITIVE SUPPLIER
INSERTED DETAIL,,Ealing Council,http://opendatacommunities.org/id/london-borough-council/ealing,CHILDREN & ADULTS,1,SAFEGUARDING & SUPPORT - CIC,CHILDRENS SERVICES -ELIGIBLE CHILDREN ACCOMMODATIO,4281,,08/11/2022,23242662,269.95,200934,REDACTED SENSITIVE SUPPLIER
INSERTED DETAIL,,Ealing Council,http://opendatacommunities.org/id/london-borough-council/ealing,CHILDREN & ADULTS,1,SAFEGUARDING & SUPPORT - CIC,CHILDRENS SERVICES -ELIGIBLE CHILDREN ACCOMMODATIO,4281,,14/11/2022,23244554,553.57,24903,PURPLE PEBBLES (CHILDCARE SERVICES) LTD
INSERTED DETAIL,,Ealing Council,http://opendatacommunities.org/id/london-borough-council/ealing,CHILDREN & ADULTS,1,SAFEGUARDING & SUPPORT - CIC,CHILDRENS SERVICES -ELIGIBLE CHILDREN ACCOMMODATIO,4281,,14/11/2022,23244554,1439.29,24903,PURPLE PEBBLES (CHILDCARE SERVICES) LTD
INSERTED DETAIL,,Ealing Council,http://opendatacommunities.org/id/london-borough-council/ealing,CHILDREN & ADULTS,1,SAFEGUARDING & SUPPORT - CIC,CHILDRENS SERVICES -ELIGIBLE CHILDREN ACCOMMODATIO,4281,,15/11/2022,23244825,269.95,200934,REDACTED SENSITIVE SUPPLIER
INSERTED DETAIL,,Ealing Council,http://opendatacommunities.org/id/london-borough-council/ealing,CHILDREN & ADULTS,1,SAFEGUARDING & SUPPORT - CIC,CHILDRENS SERVICES -ELIGIBLE CHILDREN ACCOMMODATIO,4281,,22/11/2022,23246551,269.95,200934,REDACTED SENSITIVE SUPPLIER
INSERTED DETAIL,,Ealing Council,http://opendatacommunities.org/id/london-borough-council/ealing,PLACE,6,STREET SERVICES,PAYMENTS TO CONTRACTORS,4000,,25/11/2022,41037439,83452.85,28826,GREENER EALING LIMITED
INSERTED DETAIL,,Ealing Council,http://opendatacommunities.org/id/london-borough-council/ealing,PLACE,6,LEISURE,FENCING,1472,,12/09/2022,41037084,7642.79,11538,DRAYTON FENCING COMPANY
INSERTED DETAIL,,Ealing Council,http://opendatacommunities.org/id/london-borough-council/ealing,PLACE,6,LEISURE,FENCING,1472,,24/10/2022,41035297,1258.26,11538,DRAYTON FENCING COMPANY
INSERTED DETAIL,,Ealing Council,http://opendatacommunities.org/id/london-borough-council/ealing,CHILDREN & ADULTS,1,OLDER PEOPLE,SPECIALIST TECHNICAL CONTRACTORS,4050,,31/10/2022,41037155,1100,28927,LIBRA PARTNERSHIP LTD
INSERTED DETAIL,,Ealing Council,http://opendatacommunities.org/id/london-borough-council/ealing,CHILDREN & ADULTS,1,OLDER PEOPLE,SPECIALIST TECHNICAL CONTRACTORS,4050,,31/08/2022,41028835,1602.4,28927,LIBRA PARTNERSHIP LTD
INSERTED DETAIL,,Ealing Council,http://opendatacommunities.org/id/london-borough-council/ealing,CHILDREN & ADULTS,1,OLDER PEOPLE,MEDICAL REPORTS,2560,,12/10/2022,41034438,3575,26801,HOJONA LTD
INSERTED DETAIL,,Ealing Council,http://opendatacommunities.org/id/london-borough-council/ealing,CHILDREN & ADULTS,1,OLDER PEOPLE,MEDICAL REPORTS,2560,,19/10/2022,41034833,2475,26801,HOJONA LTD
INSERTED DETAIL,,Ealing Council,http://opendatacommunities.org/id/london-borough-council/ealing,CHILDREN & ADULTS,1,OLDER PEOPLE,MEDICAL REPORTS,2560,,26/10/2022,41035883,4950,26801,HOJONA LTD
INSERTED DETAIL,,Ealing Council,http://opendatacommunities.org/id/london-borough-council/ealing,CHILDREN & ADULTS,1,OLDER PEOPLE,PAYMENTS TO HEALTH AUTHS.,4360,,16/11/2022,41039401,1925,26801,HOJONA LTD
INSERTED DETAIL,,Ealing Council,http://opendatacommunities.org/id/london-borough-council/ealing,CHILDREN & ADULTS,1,OLDER PEOPLE,PAYMENTS TO HEALTH AUTHS.,4360,,12/10/2022,41034436,3575,26801,HOJONA LTD
INSERTED DETAIL,,Ealing Council,http://opendatacommunities.org/id/london-borough-council/ealing,CHILDREN & ADULTS,1,OLDER PEOPLE,PAYMENTS TO HEALTH AUTHS.,4360,,26/10/2022,41035882,4950,26801,HOJONA LTD
INSERTED DETAIL,,Ealing Council,http://opendatacommunities.org/id/london-borough-council/ealing,CHILDREN & ADULTS,1,OLDER PEOPLE,PAYMENTS TO HEALTH AUTHS.,4360,,27/10/2022,41036167,-275,26801,HOJONA LTD
INSERTED DETAIL,,Ealing Council,http://opendatacommunities.org/id/london-borough-council/ealing,CHILDREN & ADULTS,1,OLDER PEOPLE,PAYMENTS TO HEALTH AUTHS.,4360,,19/10/2022,41034835,2475,26801,HOJONA LTD
INSERTED DETAIL,,Ealing Council,http://opendatacommunities.org/id/london-borough-council/ealing,CHILDREN & ADULTS,1,OLDER PEOPLE,PAYMENTS TO HEALTH AUTHS.,4360,,19/10/2022,41035021,-275,26801,HOJONA LTD
INSERTED DETAIL,,Ealing Council,http://opendatacommunities.org/id/london-borough-council/ealing,CHILDREN & ADULTS,1,OLDER PEOPLE,PAYMENTS TO HEALTH AUTHS.,4360,,09/11/2022,41038389,3025,26801,HOJONA LTD
INSERTED DETAIL,,Ealing Council,http://opendatacommunities.org/id/london-borough-council/ealing,CHILDREN & ADULTS,1,SAFEGUARDING & SUPPORT - CIN,SECTION 17 INTENTIONALLY HOMELESS FROM HOUSING,4299,,01/11/2022,41037545,1680,24831,DEFINITE FINANCE COMPANY LTD
INSERTED DETAIL,,Ealing Council,http://opendatacommunities.org/id/london-borough-council/ealing,CHILDREN & ADULTS,1,SAFEGUARDING & SUPPORT - CIN,SECTION 17 INTENTIONALLY HOMELESS FROM HOUSING,4299,,01/11/2022,41038913,3500,27916,MIDLAND RELOCATION LTD
INSERTED DETAIL,,Ealing Council,http://opendatacommunities.org/id/london-borough-council/ealing,CHILDREN & ADULTS,1,EALING SERVICE FOR CHILDREN WITH ADDITIONAL NEEDS,RESIDENTIAL HOMES EXTERNAL,4220,,14/11/2022,23244418,22318.18,24301,THE CHILDRENS TRUST
INSERTED DETAIL,,Ealing Council,http://opendatacommunities.org/id/london-borough-council/ealing,CHILDREN & ADULTS,1,PERFORMANCE & TRAINING,REFRESHMENTS,3010,,17/11/2022,41039676,306,17782,ELITE CATERING WEST LONDON LIMITED
INSERTED DETAIL,,Ealing Council,http://opendatacommunities.org/id/london-borough-council/ealing,CHILDREN & ADULTS,1,SAFEGUARDING & SUPPORT - CIN,VEHICLE HIRE,2010,,11/10/2022,41036669,2120.8,15767,WRIXON CARE SERVICES
INSERTED DETAIL,,Ealing Council,http://opendatacommunities.org/id/london-borough-council/ealing,CHILDREN & ADULTS,1,SAFEGUARDING & SUPPORT - CIN,SECTION 17,4290,,23/11/2022,41038850,2700,9900014,THE FAMILY LEARNING HUB LIMITED
INSERTED DETAIL,,Ealing Council,http://opendatacommunities.org/id/london-borough-council/ealing,CHIEF EXECUTIVE DIRECTORATE,5,CUSTOMER & TRANSACTIONAL SERVICES,HIRE OF HALLS,2810,,02/11/2022,41035175,2650,10672,BRENTHAM CLUB LTD
INSERTED DETAIL,,Ealing Council,http://opendatacommunities.org/id/london-borough-council/ealing,CHIEF EXECUTIVE DIRECTORATE,5,CUSTOMER & TRANSACTIONAL SERVICES,HIRE OF HALLS,2810,,04/10/2022,41035176,2750,10672,BRENTHAM CLUB LTD
INSERTED DETAIL,,Ealing Council,http://opendatacommunities.org/id/london-borough-council/ealing,CHIEF EXECUTIVE DIRECTORATE,5,CUSTOMER & TRANSACTIONAL SERVICES,HIRE OF HALLS,2810,,01/09/2022,41028366,2725,10672,BRENTHAM CLUB LTD
INSERTED DETAIL,,Ealing Council,http://opendatacommunities.org/id/london-borough-council/ealing,PLACE,6,HIGHWAYS,CONTRACT PAYMENTS -HIGHWAYS,4005,,28/07/2022,41039863,3421.25,28919,DRAINCARE LTD
INSERTED DETAIL,,Ealing Council,http://opendatacommunities.org/id/london-borough-council/ealing,PLACE,6,HIGHWAYS,CONTRACT PAYMENTS -HIGHWAYS,4005,,01/11/2022,41034981,93394.37,13593,MURRILL CONSTRUCTION LIMITED
INSERTED DETAIL,,Ealing Council,http://opendatacommunities.org/id/london-borough-council/ealing,PLACE,6,HIGHWAYS,CONTRACT PAYMENTS -HIGHWAYS,4005,,22/11/2022,41038727,82080.17,13593,MURRILL CONSTRUCTION LIMITED
INSERTED DETAIL,,Ealing Council,http://opendatacommunities.org/id/london-borough-council/ealing,PLACE,6,HIGHWAYS,SUBSCRIPTIONS,3600,,05/07/2022,41036894,14747.62,29204,BRIGHTLY SOFTWARE LIMITED
INSERTED DETAIL,,Ealing Council,http://opendatacommunities.org/id/london-borough-council/ealing,PLACE,6,HIGHWAYS,SUBSCRIPTIONS,3600,,01/09/2022,41037000,14747.62,29204,BRIGHTLY SOFTWARE LIMITED
INSERTED DETAIL,,Ealing Council,http://opendatacommunities.org/id/london-borough-council/ealing,PLACE,6,HIGHWAYS,PAYMENTS TO CONTRACTORS,4000,,31/10/2022,41035072,2843.76,26979,XAIS ASSET MANAGEMENT LTD
INSERTED DETAIL,,Ealing Council,http://opendatacommunities.org/id/london-borough-council/ealing,PLACE,6,HIGHWAYS,PAYMENTS TO CONTRACTORS,4000,,31/10/2022,41036285,5421.39,26979,XAIS ASSET MANAGEMENT LTD
INSERTED DETAIL,,Ealing Council,http://opendatacommunities.org/id/london-borough-council/ealing,PLACE,6,ECONOMIC GROWTH,PAYMENTS TO CONTRACTORS,4000,,16/10/2022,41039832,6050,29667,WE MADE THAT LLP
INSERTED DETAIL,,Ealing Council,http://opendatacommunities.org/id/london-borough-council/ealing,CHILDREN & ADULTS,1,SAFEGUARDING & SUPP - BS &A&F,CHILDRENS SERVICES ADOPTION ALLOWANCE,4387,,08/11/2022,23242546,308.5,200117,REDACTED SENSITIVE SUPPLIER
INSERTED DETAIL,,Ealing Council,http://opendatacommunities.org/id/london-borough-council/ealing,CHILDREN & ADULTS,1,SAFEGUARDING & SUPP - BS &A&F,SPECIAL GUARDIANSHIP ALLOWANCE (SOC SERV),4663,,01/11/2022,23239548,426.3,200871,REDACTED SENSITIVE SUPPLIER
INSERTED DETAIL,,Ealing Council,http://opendatacommunities.org/id/london-borough-council/ealing,CHILDREN & ADULTS,1,SAFEGUARDING & SUPP - BS &A&F,SPECIAL GUARDIANSHIP ALLOWANCE (SOC SERV),4663,,01/11/2022,23239548,426.3,200871,REDACTED SENSITIVE SUPPLIER
INSERTED DETAIL,,Ealing Council,http://opendatacommunities.org/id/london-borough-council/ealing,CHILDREN & ADULTS,1,SAFEGUARDING & SUPP - BS &A&F,SPECIAL GUARDIANSHIP ALLOWANCE (SOC SERV),4663,,08/11/2022,23242624,426.3,200871,REDACTED SENSITIVE SUPPLIER
INSERTED DETAIL,,Ealing Council,http://opendatacommunities.org/id/london-borough-council/ealing,CHILDREN & ADULTS,1,SAFEGUARDING & SUPP - BS &A&F,SPECIAL GUARDIANSHIP ALLOWANCE (SOC SERV),4663,,08/11/2022,23242624,426.3,200871,REDACTED SENSITIVE SUPPLIER
INSERTED DETAIL,,Ealing Council,http://opendatacommunities.org/id/london-borough-council/ealing,CHILDREN & ADULTS,1,SAFEGUARDING & SUPP - BS &A&F,SPECIAL GUARDIANSHIP ALLOWANCE (SOC SERV),4663,,15/11/2022,23244787,426.3,200871,REDACTED SENSITIVE SUPPLIER
INSERTED DETAIL,,Ealing Council,http://opendatacommunities.org/id/london-borough-council/ealing,CHILDREN & ADULTS,1,SAFEGUARDING & SUPP - BS &A&F,SPECIAL GUARDIANSHIP ALLOWANCE (SOC SERV),4663,,15/11/2022,23244787,426.3,200871,REDACTED SENSITIVE SUPPLIER
INSERTED DETAIL,,Ealing Council,http://opendatacommunities.org/id/london-borough-council/ealing,CHILDREN & ADULTS,1,SAFEGUARDING & SUPP - BS &A&F,SPECIAL GUARDIANSHIP ALLOWANCE (SOC SERV),4663,,22/11/2022,23246514,426.3,200871,REDACTED SENSITIVE SUPPLIER
INSERTED DETAIL,,Ealing Council,http://opendatacommunities.org/id/london-borough-council/ealing,CHILDREN & ADULTS,1,SAFEGUARDING & SUPP - BS &A&F,SPECIAL GUARDIANSHIP ALLOWANCE (SOC SERV),4663,,22/11/2022,23246514,426.3,200871,REDACTED SENSITIVE SUPPLIER
INSERTED DETAIL,,Ealing Council,http://opendatacommunities.org/id/london-borough-council/ealing,CHILDREN & ADULTS,1,SAFEGUARDING & SUPP - BS &A&F,SPECIAL GUARDIANSHIP ALLOWANCE (SOC SERV),4663,,01/11/2022,23239352,365,200078,REDACTED SENSITIVE SUPPLIER
INSERTED DETAIL,,Ealing Council,http://opendatacommunities.org/id/london-borough-council/ealing,CHILDREN & ADULTS,1,SAFEGUARDING & SUPP - BS &A&F,SPECIAL GUARDIANSHIP ALLOWANCE (SOC SERV),4663,,08/11/2022,23242428,365,200078,REDACTED SENSITIVE SUPPLIER
INSERTED DETAIL,,Ealing Council,http://opendatacommunities.org/id/london-borough-council/ealing,CHILDREN & ADULTS,1,SAFEGUARDING & SUPP - BS &A&F,SPECIAL GUARDIANSHIP ALLOWANCE (SOC SERV),4663,,01/11/2022,23239457,366,200093,REDACTED SENSITIVE SUPPLIER
INSERTED DETAIL,,Ealing Council,http://opendatacommunities.org/id/london-borough-council/ealing,CHILDREN & ADULTS,1,SAFEGUARDING & SUPP - BS &A&F,SPECIAL GUARDIANSHIP ALLOWANCE (SOC SERV),4663,,15/11/2022,23244588,365,200078,REDACTED SENSITIVE SUPPLIER
INSERTED DETAIL,,Ealing Council,http://opendatacommunities.org/id/london-borough-council/ealing,CHILDREN & ADULTS,1,SAFEGUARDING & SUPP - BS &A&F,SPECIAL GUARDIANSHIP ALLOWANCE (SOC SERV),4663,,22/11/2022,23246314,365,200078,REDACTED SENSITIVE SUPPLIER
INSERTED DETAIL,,Ealing Council,http://opendatacommunities.org/id/london-borough-council/ealing,CHILDREN & ADULTS,1,SAFEGUARDING & SUPP - BS &A&F,SPECIAL GUARDIANSHIP ALLOWANCE (SOC SERV),4663,,08/11/2022,23242534,366,200093,REDACTED SENSITIVE SUPPLIER
INSERTED DETAIL,,Ealing Council,http://opendatacommunities.org/id/london-borough-council/ealing,CHILDREN & ADULTS,1,SAFEGUARDING & SUPP - BS &A&F,CHILDRENS SERVICES ADOPTION ALLOWANCE,4387,,01/11/2022,23239371,308.95,200296,REDACTED SENSITIVE SUPPLIER
INSERTED DETAIL,,Ealing Council,http://opendatacommunities.org/id/london-borough-council/ealing,CHILDREN & ADULTS,1,SAFEGUARDING & SUPP - BS &A&F,SPECIAL GUARDIANSHIP ALLOWANCE (SOC SERV),4663,,01/11/2022,23239380,255.95,200312,REDACTED SENSITIVE SUPPLIER
INSERTED DETAIL,,Ealing Council,http://opendatacommunities.org/id/london-borough-council/ealing,CHILDREN & ADULTS,1,SAFEGUARDING & SUPP - BS &A&F,SPECIAL GUARDIANSHIP ALLOWANCE (SOC SERV),4663,,01/11/2022,23239429,314.21,200049,REDACTED SENSITIVE SUPPLIER
INSERTED DETAIL,,Ealing Council,http://opendatacommunities.org/id/london-borough-council/ealing,CHILDREN & ADULTS,1,SAFEGUARDING & SUPP - BS &A&F,CHILDRENS SERVICES ADOPTION ALLOWANCE,4387,,01/11/2022,23239525,287.67,200411,REDACTED SENSITIVE SUPPLIER
INSERTED DETAIL,,Ealing Council,http://opendatacommunities.org/id/london-borough-council/ealing,CHILDREN & ADULTS,1,SAFEGUARDING & SUPP - BS &A&F,CHILDRENS SERVICES ADOPTION ALLOWANCE,4387,,01/11/2022,23239599,356.05,200820,REDACTED SENSITIVE SUPPLIER
INSERTED DETAIL,,Ealing Council,http://opendatacommunities.org/id/london-borough-council/ealing,CHILDREN & ADULTS,1,SAFEGUARDING & SUPPORT - CIC,CHILDRENS SERVICES -ELIGIBLE CHILDREN ACCOMMODATIO,4281,,14/11/2022,23244541,1660.71,29870,WELLSPRING CARE SERVICES LTD
INSERTED DETAIL,,Ealing Council,http://opendatacommunities.org/id/london-borough-council/ealing,CHILDREN & ADULTS,1,SAFEGUARDING & SUPPORT - CIC,CHILDRENS SERVICES -ELIGIBLE CHILDREN ACCOMMODATIO,4281,,14/11/2022,23244541,305.52,29870,WELLSPRING CARE SERVICES LTD
INSERTED DETAIL,,Ealing Council,http://opendatacommunities.org/id/london-borough-council/ealing,CHILDREN & ADULTS,1,SAFEGUARDING & SUPPORT - CIC,CHILDRENS SERVICES -ELIGIBLE CHILDREN ACCOMMODATIO,4281,,14/11/2022,23244544,3764.29,29880,JW INDEPENDENCE LTD
INSERTED DETAIL,,Ealing Council,http://opendatacommunities.org/id/london-borough-council/ealing,CHILDREN & ADULTS,1,SAFEGUARDING & SUPPORT - CIC,CHILDRENS SERVICES -ELIGIBLE CHILDREN ACCOMMODATIO,4281,,14/11/2022,23244544,1328.57,29880,JW INDEPENDENCE LTD
INSERTED DETAIL,,Ealing Council,http://opendatacommunities.org/id/london-borough-council/ealing,CHILDREN & ADULTS,1,SAFEGUARDING & SUPPORT - CIC,CHILDRENS SERVICES -ELIGIBLE CHILDREN ACCOMMODATIO,4281,,14/11/2022,23244547,855.02,29922,SPIRE SQUARED SUPPORTED LIVING LTD
INSERTED DETAIL,,Ealing Council,http://opendatacommunities.org/id/london-borough-council/ealing,CHILDREN & ADULTS,1,SAFEGUARDING & SUPPORT - CIC,CHILDRENS SERVICES -ELIGIBLE CHILDREN ACCOMMODATIO,4281,,14/11/2022,23244547,1644.77,29922,SPIRE SQUARED SUPPORTED LIVING LTD
INSERTED DETAIL,,Ealing Council,http://opendatacommunities.org/id/london-borough-council/ealing,CHILDREN & ADULTS,1,SAFEGUARDING & SUPPORT - CIC,CHILDRENS SERVICES -ELIGIBLE CHILDREN ACCOMMODATIO,4281,,14/11/2022,23244547,2099.67,29922,SPIRE SQUARED SUPPORTED LIVING LTD
INSERTED DETAIL,,Ealing Council,http://opendatacommunities.org/id/london-borough-council/ealing,CHILDREN & ADULTS,1,SAFEGUARDING & SUPPORT - CIC,CHILDRENS SERVICES -ELIGIBLE CHILDREN ACCOMMODATIO,4281,,14/11/2022,23244547,270.36,29922,SPIRE SQUARED SUPPORTED LIVING LTD
INSERTED DETAIL,,Ealing Council,http://opendatacommunities.org/id/london-borough-council/ealing,CHILDREN & ADULTS,1,SAFEGUARDING & SUPPORT - CIC,CHILDRENS SERVICES -ELIGIBLE CHILDREN ACCOMMODATIO,4281,,31/10/2022,23244969,442.86,29639,ON TRACK CARE SERVICES
INSERTED DETAIL,,Ealing Council,http://opendatacommunities.org/id/london-borough-council/ealing,CHILDREN & ADULTS,1,SAFEGUARDING & SUPPORT - CIC,CHILDRENS SERVICES -ELIGIBLE CHILDREN ACCOMMODATIO,4281,,31/10/2022,23244969,1550,29639,ON TRACK CARE SERVICES
INSERTED DETAIL,,Ealing Council,http://opendatacommunities.org/id/london-borough-council/ealing,CHILDREN & ADULTS,1,SAFEGUARDING & SUPPORT - CIC,CHILDRENS SERVICES -ELIGIBLE CHILDREN ACCOMMODATIO,4281,,25/10/2022,23244962,270.36,28394,EMPOWER HOUSE LTD
INSERTED DETAIL,,Ealing Council,http://opendatacommunities.org/id/london-borough-council/ealing,CHILDREN & ADULTS,1,SAFEGUARDING & SUPPORT - CIC,CHILDRENS SERVICES -ELIGIBLE CHILDREN ACCOMMODATIO,4281,,25/10/2022,23244962,442.86,28394,EMPOWER HOUSE LTD
INSERTED DETAIL,,Ealing Council,http://opendatacommunities.org/id/london-borough-council/ealing,CHILDREN & ADULTS,1,SAFEGUARDING & SUPPORT - CIC,CHILDRENS SERVICES -ELIGIBLE CHILDREN ACCOMMODATIO,4281,,25/10/2022,23244962,3099.99,28394,EMPOWER HOUSE LTD
INSERTED DETAIL,,Ealing Council,http://opendatacommunities.org/id/london-borough-council/ealing,CHILDREN & ADULTS,1,SAFEGUARDING & SUPPORT - CIC,CHILDRENS SERVICES -ELIGIBLE CHILDREN ACCOMMODATIO,4281,,25/10/2022,23244968,2878.57,28394,EMPOWER HOUSE LTD
INSERTED DETAIL,,Ealing Council,http://opendatacommunities.org/id/london-borough-council/ealing,CHILDREN & ADULTS,1,SAFEGUARDING & SUPPORT - CIC,CHILDRENS SERVICES -ELIGIBLE CHILDREN OTHER COSTS,4282,,14/11/2022,23244411,6045,10339,ARNFIELD CARE LTD
INSERTED DETAIL,,Ealing Council,http://opendatacommunities.org/id/london-borough-council/ealing,CHILDREN & ADULTS,1,SAFEGUARDING & SUPPORT - CIC,CHILDRENS SERVICES -ELIGIBLE CHILDREN OTHER COSTS,4282,,14/11/2022,23244413,10864.29,25444,ALICIE ENTERPRISES LIMITED
INSERTED DETAIL,,Ealing Council,http://opendatacommunities.org/id/london-borough-council/ealing,CHILDREN & ADULTS,1,SAFEGUARDING & SUPPORT - CIC,CHILDRENS SERVICES -ELIGIBLE CHILDREN OTHER COSTS,4282,,14/11/2022,23244413,1017.85,25444,ALICIE ENTERPRISES LIMITED
INSERTED DETAIL,,Ealing Council,http://opendatacommunities.org/id/london-borough-council/ealing,CHILDREN & ADULTS,1,SAFEGUARDING & SUPPORT - CIC,CHILDRENS SERVICES -ELIGIBLE CHILDREN OTHER COSTS,4282,,14/11/2022,23244468,3100,29517,CARE 2 CARE CHILDREN�S HOMES LTD
INSERTED DETAIL,,Ealing Council,http://opendatacommunities.org/id/london-borough-council/ealing,CHILDREN & ADULTS,1,SAFEGUARDING & SUPPORT - CIC,CHILDRENS SERVICES -ELIGIBLE CHILDREN OTHER COSTS,4282,,14/11/2022,23244468,2945,29517,CARE 2 CARE CHILDREN�S HOMES LTD
INSERTED DETAIL,,Ealing Council,http://opendatacommunities.org/id/london-borough-council/ealing,CHILDREN & ADULTS,1,SAFEGUARDING & SUPPORT - CIC,CHILDRENS SERVICES -ELIGIBLE CHILDREN OTHER COSTS,4282,,14/11/2022,23244468,2214.29,29517,CARE 2 CARE CHILDREN�S HOMES LTD
INSERTED DETAIL,,Ealing Council,http://opendatacommunities.org/id/london-borough-council/ealing,CHILDREN & ADULTS,1,SAFEGUARDING & SUPPORT - CIC,CHILDRENS SERVICES -ELIGIBLE CHILDREN ACCOMMODATIO,4281,,14/11/2022,23244487,3100,20842,LITTLE ACORN SERVICES LTD
INSERTED DETAIL,,Ealing Council,http://opendatacommunities.org/id/london-borough-council/ealing,CHILDREN & ADULTS,1,SAFEGUARDING & SUPPORT - CIC,CHILDRENS SERVICES -ELIGIBLE CHILDREN ACCOMMODATIO,4281,,14/11/2022,23244487,1328.57,20842,LITTLE ACORN SERVICES LTD
INSERTED DETAIL,,Ealing Council,http://opendatacommunities.org/id/london-borough-council/ealing,CHILDREN & ADULTS,1,SAFEGUARDING & SUPPORT - CIC,CHILDRENS SERVICES -ELIGIBLE CHILDREN ACCOMMODATIO,4281,,14/11/2022,23244492,270.36,20842,LITTLE ACORN SERVICES LTD
INSERTED DETAIL,,Ealing Council,http://opendatacommunities.org/id/london-borough-council/ealing,CHILDREN & ADULTS,1,SAFEGUARDING & SUPPORT - CIC,CHILDRENS SERVICES -ELIGIBLE CHILDREN ACCOMMODATIO,4281,,14/11/2022,23244492,1771.43,20842,LITTLE ACORN SERVICES LTD
INSERTED DETAIL,,Ealing Council,http://opendatacommunities.org/id/london-borough-council/ealing,CHILDREN & ADULTS,1,SAFEGUARDING & SUPPORT - CIC,CHILDRENS SERVICES -ELIGIBLE CHILDREN ACCOMMODATIO,4281,,14/11/2022,23244492,3100,20842,LITTLE ACORN SERVICES LTD
INSERTED DETAIL,,Ealing Council,http://opendatacommunities.org/id/london-borough-council/ealing,CHILDREN & ADULTS,1,SAFEGUARDING & SUPPORT - CIC,CHILDRENS SERVICES -ELIGIBLE CHILDREN ACCOMMODATIO,4281,,14/11/2022,23244493,3098.86,27883,PREFER HOMES LIMITED
INSERTED DETAIL,,Ealing Council,http://opendatacommunities.org/id/london-borough-council/ealing,CHILDREN & ADULTS,1,SAFEGUARDING & SUPPORT - CIC,CHILDRENS SERVICES -ELIGIBLE CHILDREN ACCOMMODATIO,4281,,14/11/2022,23244493,7331.2,27883,PREFER HOMES LIMITED
INSERTED DETAIL,,Ealing Council,http://opendatacommunities.org/id/london-borough-council/ealing,CHILDREN & ADULTS,1,SAFEGUARDING & SUPPORT - CIC,CHILDRENS SERVICES -ELIGIBLE CHILDREN ACCOMMODATIO,4281,,14/11/2022,23244493,-4855.37,27883,PREFER HOMES LIMITED
INSERTED DETAIL,,Ealing Council,http://opendatacommunities.org/id/london-borough-council/ealing,CHILDREN & ADULTS,1,SAFEGUARDING & SUPPORT - CIC,CHILDRENS SERVICES -ELIGIBLE CHILDREN ACCOMMODATIO,4281,,14/11/2022,23244493,270.36,27883,PREFER HOMES LIMITED
INSERTED DETAIL,,Ealing Council,http://opendatacommunities.org/id/london-borough-council/ealing,CHILDREN & ADULTS,1,EALING SERVICE FOR CHILDREN WITH ADDITIONAL NEEDS,DOMICILIARY CARE - BLOCK,4240,,07/11/2022,23242383,1676,14755,OASIS CARE & TRAINING AGENCY (OCTA)
INSERTED DETAIL,,Ealing Council,http://opendatacommunities.org/id/london-borough-council/ealing,CHILDREN & ADULTS,1,EALING SERVICE FOR CHILDREN WITH ADDITIONAL NEEDS,DOMICILIARY CARE - BLOCK,4240,,07/11/2022,23242383,3352,14755,OASIS CARE & TRAINING AGENCY (OCTA)
INSERTED DETAIL,,Ealing Council,http://opendatacommunities.org/id/london-borough-council/ealing,CHILDREN & ADULTS,1,EALING SERVICE FOR CHILDREN WITH ADDITIONAL NEEDS,DOMICILIARY CARE - BLOCK,4240,,07/11/2022,23242383,452,14755,OASIS CARE & TRAINING AGENCY (OCTA)
INSERTED DETAIL,,Ealing Council,http://opendatacommunities.org/id/london-borough-council/ealing,CHILDREN & ADULTS,1,EALING SERVICE FOR CHILDREN WITH ADDITIONAL NEEDS,DOMICILIARY CARE - BLOCK,4240,,07/11/2022,23242383,361.6,14755,OASIS CARE & TRAINING AGENCY (OCTA)
INSERTED DETAIL,,Ealing Council,http://opendatacommunities.org/id/london-borough-council/ealing,CHILDREN & ADULTS,1,EALING SERVICE FOR CHILDREN WITH ADDITIONAL NEEDS,DOMICILIARY CARE - BLOCK,4240,,07/11/2022,23242383,305.25,14755,OASIS CARE & TRAINING AGENCY (OCTA)
INSERTED DETAIL,,Ealing Council,http://opendatacommunities.org/id/london-borough-council/ealing,CHILDREN & ADULTS,1,EALING SERVICE FOR CHILDREN WITH ADDITIONAL NEEDS,DOMICILIARY CARE - BLOCK,4240,,07/11/2022,23242383,406.8,14755,OASIS CARE & TRAINING AGENCY (OCTA)
INSERTED DETAIL,,Ealing Council,http://opendatacommunities.org/id/london-borough-council/ealing,CHILDREN & ADULTS,1,EALING SERVICE FOR CHILDREN WITH ADDITIONAL NEEDS,DOMICILIARY CARE - BLOCK,4240,,07/11/2022,23242383,404.88,14755,OASIS CARE & TRAINING AGENCY (OCTA)
INSERTED DETAIL,,Ealing Council,http://opendatacommunities.org/id/london-borough-council/ealing,CHILDREN & ADULTS,1,EALING SERVICE FOR CHILDREN WITH ADDITIONAL NEEDS,DOMICILIARY CARE - BLOCK,4240,,07/11/2022,23242383,578.4,14755,OASIS CARE & TRAINING AGENCY (OCTA)
INSERTED DETAIL,,Ealing Council,http://opendatacommunities.org/id/london-borough-council/ealing,CHILDREN & ADULTS,1,EALING SERVICE FOR CHILDREN WITH ADDITIONAL NEEDS,DOMICILIARY CARE - BLOCK,4240,,07/11/2022,23242383,1898.96,14755,OASIS CARE & TRAINING AGENCY (OCTA)
INSERTED DETAIL,,Ealing Council,http://opendatacommunities.org/id/london-borough-council/ealing,CHILDREN & ADULTS,1,EALING SERVICE FOR CHILDREN WITH ADDITIONAL NEEDS,DOMICILIARY CARE - BLOCK,4240,,07/11/2022,23242383,1166.2,14755,OASIS CARE & TRAINING AGENCY (OCTA)
INSERTED DETAIL,,Ealing Council,http://opendatacommunities.org/id/london-borough-council/ealing,CHILDREN & ADULTS,1,EALING SERVICE FOR CHILDREN WITH ADDITIONAL NEEDS,DOMICILIARY CARE - BLOCK,4240,,07/11/2022,23242383,332.8,14755,OASIS CARE & TRAINING AGENCY (OCTA)
INSERTED DETAIL,,Ealing Council,http://opendatacommunities.org/id/london-borough-council/ealing,CHILDREN & ADULTS,1,EALING SERVICE FOR CHILDREN WITH ADDITIONAL NEEDS,DOMICILIARY CARE - BLOCK,4240,,07/11/2022,23242383,406.92,14755,OASIS CARE & TRAINING AGENCY (OCTA)
INSERTED DETAIL,,Ealing Council,http://opendatacommunities.org/id/london-borough-council/ealing,CHILDREN & ADULTS,1,EALING SERVICE FOR CHILDREN WITH ADDITIONAL NEEDS,DOMICILIARY CARE - BLOCK,4240,,07/11/2022,23242383,1224.16,14755,OASIS CARE & TRAINING AGENCY (OCTA)
INSERTED DETAIL,,Ealing Council,http://opendatacommunities.org/id/london-borough-council/ealing,CHILDREN & ADULTS,1,EALING SERVICE FOR CHILDREN WITH ADDITIONAL NEEDS,DOMICILIARY CARE - BLOCK,4240,,07/11/2022,23242383,451.36,14755,OASIS CARE & TRAINING AGENCY (OCTA)
INSERTED DETAIL,,Ealing Council,http://opendatacommunities.org/id/london-borough-council/ealing,CHILDREN & ADULTS,1,EALING SERVICE FOR CHILDREN WITH ADDITIONAL NEEDS,DOMICILIARY CARE - BLOCK,4240,,07/11/2022,23242383,386.88,14755,OASIS CARE & TRAINING AGENCY (OCTA)
INSERTED DETAIL,,Ealing Council,http://opendatacommunities.org/id/london-borough-council/ealing,CHILDREN & ADULTS,1,EALING SERVICE FOR CHILDREN WITH ADDITIONAL NEEDS,DOMICILIARY CARE - BLOCK,4240,,07/11/2022,23242383,360,14755,OASIS CARE & TRAINING AGENCY (OCTA)
INSERTED DETAIL,,Ealing Council,http://opendatacommunities.org/id/london-borough-council/ealing,CHILDREN & ADULTS,1,EALING SERVICE FOR CHILDREN WITH ADDITIONAL NEEDS,DOMICILIARY CARE - BLOCK,4240,,07/11/2022,23242383,885.28,14755,OASIS CARE & TRAINING AGENCY (OCTA)
INSERTED DETAIL,,Ealing Council,http://opendatacommunities.org/id/london-borough-council/ealing,CHILDREN & ADULTS,1,EALING SERVICE FOR CHILDREN WITH ADDITIONAL NEEDS,DOMICILIARY CARE - BLOCK,4240,,07/11/2022,23242383,620.4,14755,OASIS CARE & TRAINING AGENCY (OCTA)
INSERTED DETAIL,,Ealing Council,http://opendatacommunities.org/id/london-borough-council/ealing,CHILDREN & ADULTS,1,EALING SERVICE FOR CHILDREN WITH ADDITIONAL NEEDS,DOMICILIARY CARE - BLOCK,4240,,07/11/2022,23242383,266.24,14755,OASIS CARE & TRAINING AGENCY (OCTA)
INSERTED DETAIL,,Ealing Council,http://opendatacommunities.org/id/london-borough-council/ealing,CHILDREN & ADULTS,1,EALING SERVICE FOR CHILDREN WITH ADDITIONAL NEEDS,DOMICILIARY CARE - BLOCK,4240,,07/11/2022,23242383,1364,14755,OASIS CARE & TRAINING AGENCY (OCTA)
INSERTED DETAIL,,Ealing Council,http://opendatacommunities.org/id/london-borough-council/ealing,CHILDREN & ADULTS,1,EALING SERVICE FOR CHILDREN WITH ADDITIONAL NEEDS,DOMICILIARY CARE - BLOCK,4240,,07/11/2022,23242383,512,14755,OASIS CARE & TRAINING AGENCY (OCTA)
INSERTED DETAIL,,Ealing Council,http://opendatacommunities.org/id/london-borough-council/ealing,CHILDREN & ADULTS,1,EALING SERVICE FOR CHILDREN WITH ADDITIONAL NEEDS,DOMICILIARY CARE - BLOCK,4240,,07/11/2022,23242383,347.04,14755,OASIS CARE & TRAINING AGENCY (OCTA)
INSERTED DETAIL,,Ealing Council,http://opendatacommunities.org/id/london-borough-council/ealing,CHILDREN & ADULTS,1,EALING SERVICE FOR CHILDREN WITH ADDITIONAL NEEDS,DOMICILIARY CARE - BLOCK,4240,,07/11/2022,23242387,424.68,24264,ELITE SPECIALIST CARE LTD
INSERTED DETAIL,,Ealing Council,http://opendatacommunities.org/id/london-borough-council/ealing,CHILDREN & ADULTS,1,EALING SERVICE FOR CHILDREN WITH ADDITIONAL NEEDS,DOMICILIARY CARE - BLOCK,4240,,07/11/2022,23242387,914.28,24264,ELITE SPECIALIST CARE LTD
INSERTED DETAIL,,Ealing Council,http://opendatacommunities.org/id/london-borough-council/ealing,CHILDREN & ADULTS,1,EALING SERVICE FOR CHILDREN WITH ADDITIONAL NEEDS,DOMICILIARY CARE - BLOCK,4240,,07/11/2022,23242387,1218,24264,ELITE SPECIALIST CARE LTD
INSERTED DETAIL,,Ealing Council,http://opendatacommunities.org/id/london-borough-council/ealing,CHILDREN & ADULTS,1,EALING SERVICE FOR CHILDREN WITH ADDITIONAL NEEDS,DOMICILIARY CARE - BLOCK,4240,,07/11/2022,23242387,666,24264,ELITE SPECIALIST CARE LTD
INSERTED DETAIL,,Ealing Council,http://opendatacommunities.org/id/london-borough-council/ealing,CHILDREN & ADULTS,1,EALING SERVICE FOR CHILDREN WITH ADDITIONAL NEEDS,DOMICILIARY CARE - BLOCK,4240,,07/11/2022,23242387,430.88,24264,ELITE SPECIALIST CARE LTD
INSERTED DETAIL,,Ealing Council,http://opendatacommunities.org/id/london-borough-council/ealing,CHILDREN & ADULTS,1,EALING SERVICE FOR CHILDREN WITH ADDITIONAL NEEDS,DOMICILIARY CARE - BLOCK,4240,,07/11/2022,23242390,532.8,25216,OLAM QUALITY CARE LTD - T/A CAREMARK EALING
INSERTED DETAIL,,Ealing Council,http://opendatacommunities.org/id/london-borough-council/ealing,CHILDREN & ADULTS,1,EALING SERVICE FOR CHILDREN WITH ADDITIONAL NEEDS,DOMICILIARY CARE - BLOCK,4240,,07/11/2022,23242390,576,25216,OLAM QUALITY CARE LTD - T/A CAREMARK EALING
INSERTED DETAIL,,Ealing Council,http://opendatacommunities.org/id/london-borough-council/ealing,CHILDREN & ADULTS,1,DISABILITIES,RESIDENTIAL HOMES EXTERNAL,4220,,09/11/2022,23243588,251.31,25292,ALLFOR CARE
INSERTED DETAIL,,Ealing Council,http://opendatacommunities.org/id/london-borough-council/ealing,CHILDREN & ADULTS,1,DISABILITIES,RESIDENTIAL HOMES EXTERNAL,4220,,09/11/2022,23243588,615.68,25292,ALLFOR CARE
INSERTED DETAIL,,Ealing Council,http://opendatacommunities.org/id/london-borough-council/ealing,CHILDREN & ADULTS,1,DISABILITIES,RESIDENTIAL HOMES EXTERNAL,4220,,09/11/2022,23243588,890.2,25292,ALLFOR CARE
INSERTED DETAIL,,Ealing Council,http://opendatacommunities.org/id/london-borough-council/ealing,CHILDREN & ADULTS,1,DISABILITIES,RESIDENTIAL HOMES EXTERNAL,4220,,09/11/2022,23243588,402.96,25292,ALLFOR CARE
INSERTED DETAIL,,Ealing Council,http://opendatacommunities.org/id/london-borough-council/ealing,CHILDREN & ADULTS,1,DISABILITIES,RESIDENTIAL HOMES EXTERNAL,4220,,09/11/2022,23243606,3950.88,19568,CONNIFERS CARE
INSERTED DETAIL,,Ealing Council,http://opendatacommunities.org/id/london-borough-council/ealing,CHILDREN & ADULTS,1,DISABILITIES,RESIDENTIAL HOMES EXTERNAL,4220,,09/11/2022,23243666,5040,19568,CONNIFERS CARE
INSERTED DETAIL,,Ealing Council,http://opendatacommunities.org/id/london-borough-council/ealing,CHILDREN & ADULTS,1,DISABILITIES,RESIDENTIAL HOMES EXTERNAL,4220,,09/11/2022,23243709,320,26408,NEWTON CARE HOMES LTD
INSERTED DETAIL,,Ealing Council,http://opendatacommunities.org/id/london-borough-council/ealing,CHILDREN & ADULTS,1,DISABILITIES,RESIDENTIAL HOMES EXTERNAL,4220,,09/11/2022,23243808,7832.88,29910,VANI LTD T/A SAIVAN CARE SERVICES
INSERTED DETAIL,,Ealing Council,http://opendatacommunities.org/id/london-borough-council/ealing,CHILDREN & ADULTS,1,DISABILITIES,RESIDENTIAL HOMES EXTERNAL,4220,,09/11/2022,23243808,8096.88,29910,VANI LTD T/A SAIVAN CARE SERVICES
INSERTED DETAIL,,Ealing Council,http://opendatacommunities.org/id/london-borough-council/ealing,CHILDREN & ADULTS,1,DISABILITIES,DOMICILIARY CARE - BLOCK,4240,,03/11/2022,23243835,618,25292,ALLFOR CARE
INSERTED DETAIL,,Ealing Council,http://opendatacommunities.org/id/london-borough-council/ealing,CHILDREN & ADULTS,1,DISABILITIES,DOMICILIARY CARE - BLOCK,4240,,03/11/2022,23243835,546.6,25292,ALLFOR CARE
INSERTED DETAIL,,Ealing Council,http://opendatacommunities.org/id/london-borough-council/ealing,CHILDREN & ADULTS,1,DISABILITIES,DOMICILIARY CARE - BLOCK,4240,,03/11/2022,23243835,1389.48,25292,ALLFOR CARE
INSERTED DETAIL,,Ealing Council,http://opendatacommunities.org/id/london-borough-council/ealing,CHILDREN & ADULTS,1,DISABILITIES,DOMICILIARY CARE - BLOCK,4240,,03/11/2022,23243835,337.5,25292,ALLFOR CARE
INSERTED DETAIL,,Ealing Council,http://opendatacommunities.org/id/london-borough-council/ealing,CHILDREN & ADULTS,1,DISABILITIES,DOMICILIARY CARE - BLOCK,4240,,07/11/2022,23243837,1015,24264,ELITE SPECIALIST CARE LTD
INSERTED DETAIL,,Ealing Council,http://opendatacommunities.org/id/london-borough-council/ealing,CHILDREN & ADULTS,1,DISABILITIES,DOMICILIARY CARE - BLOCK,4240,,14/11/2022,23243866,4187.52,25292,ALLFOR CARE
INSERTED DETAIL,,Ealing Council,http://opendatacommunities.org/id/london-borough-council/ealing,CHILDREN & ADULTS,1,DISABILITIES,RESIDENTIAL HOMES EXTERNAL,4220,,01/11/2022,23245484,9380,10542,ASHFIELD CARE HOMES LTD
INSERTED DETAIL,,Ealing Council,http://opendatacommunities.org/id/london-borough-council/ealing,CHILDREN & ADULTS,1,DISABILITIES,DOMICILIARY CARE - BLOCK,4240,,23/03/2022,23246288,928.14,25292,ALLFOR CARE
INSERTED DETAIL,,Ealing Council,http://opendatacommunities.org/id/london-borough-council/ealing,CHILDREN & ADULTS,1,DISABILITIES,DOMICILIARY CARE - BLOCK,4240,,07/04/2022,23246288,1190.64,25292,ALLFOR CARE
INSERTED DETAIL,,Ealing Council,http://opendatacommunities.org/id/london-borough-council/ealing,CHILDREN & ADULTS,1,DISABILITIES,DOMICILIARY CARE - BLOCK,4240,,08/06/2022,23246288,1584.4,25292,ALLFOR CARE
INSERTED DETAIL,,Ealing Council,http://opendatacommunities.org/id/london-borough-council/ealing,CHILDREN & ADULTS,1,DISABILITIES,DOMICILIARY CARE - BLOCK,4240,,26/07/2022,23246288,1387.52,25292,ALLFOR CARE
INSERTED DETAIL,,Ealing Council,http://opendatacommunities.org/id/london-borough-council/ealing,CHILDREN & ADULTS,1,DISABILITIES,DOMICILIARY CARE - BLOCK,4240,,08/08/2022,23246288,1387.52,25292,ALLFOR CARE
INSERTED DETAIL,,Ealing Council,http://opendatacommunities.org/id/london-borough-council/ealing,CHILDREN & ADULTS,1,DISABILITIES,RESIDENTIAL HOMES EXTERNAL,4220,,09/11/2022,23243692,4144,28298,CARE PLUS MORE LTD
INSERTED DETAIL,,Ealing Council,http://opendatacommunities.org/id/london-borough-council/ealing,CHILDREN & ADULTS,1,DISABILITIES,RESIDENTIAL HOMES EXTERNAL,4220,,09/11/2022,23243695,7073.76,14434,VOYAGE LTD
INSERTED DETAIL,,Ealing Council,http://opendatacommunities.org/id/london-borough-council/ealing,CHILDREN & ADULTS,1,DISABILITIES,RESIDENTIAL HOMES EXTERNAL,4220,,09/11/2022,23243698,8426,13361,VOYAGE 1 LIMITED
INSERTED DETAIL,,Ealing Council,http://opendatacommunities.org/id/london-borough-council/ealing,CHILDREN & ADULTS,1,DISABILITIES,RESIDENTIAL HOMES EXTERNAL,4220,,09/11/2022,23243750,3626,28298,CARE PLUS MORE LTD
INSERTED DETAIL,,Ealing Council,http://opendatacommunities.org/id/london-borough-council/ealing,CHILDREN & ADULTS,1,DISABILITIES,DOMICILIARY CARE - BLOCK,4240,,07/11/2022,23243845,370.6,29243,PARAMOUNT OPTIONS LTD
INSERTED DETAIL,,Ealing Council,http://opendatacommunities.org/id/london-borough-council/ealing,CHILDREN & ADULTS,1,DISABILITIES,DOMICILIARY CARE - BLOCK,4240,,07/11/2022,23243851,340,29187,PREMIUM HOMECARE LTD
INSERTED DETAIL,,Ealing Council,http://opendatacommunities.org/id/london-borough-council/ealing,CHILDREN & ADULTS,1,DISABILITIES,DOMICILIARY CARE - BLOCK,4240,,07/11/2022,23243864,4410,27968,INVICTA CARE AND TRAINING LTD
INSERTED DETAIL,,Ealing Council,http://opendatacommunities.org/id/london-borough-council/ealing,CHILDREN & ADULTS,1,DISABILITIES,DOMICILIARY CARE - BLOCK,4240,,07/11/2022,23243864,2700,27968,INVICTA CARE AND TRAINING LTD
INSERTED DETAIL,,Ealing Council,http://opendatacommunities.org/id/london-borough-council/ealing,CHILDREN & ADULTS,1,DISABILITIES,DOMICILIARY CARE - BLOCK,4240,,07/11/2022,23243864,2700,27968,INVICTA CARE AND TRAINING LTD
INSERTED DETAIL,,Ealing Council,http://opendatacommunities.org/id/london-borough-council/ealing,CHILDREN & ADULTS,1,DISABILITIES,RESIDENTIAL HOMES EXTERNAL,4220,,21/11/2022,23245499,-505.05,19913,LONDON CARE LTD
INSERTED DETAIL,,Ealing Council,http://opendatacommunities.org/id/london-borough-council/ealing,CHILDREN & ADULTS,1,DISABILITIES,RESIDENTIAL HOMES EXTERNAL,4220,,06/11/2022,23252886,9123.4,12213,GROVE CARE PARTNERSHIP LTD
INSERTED DETAIL,,Ealing Council,http://opendatacommunities.org/id/london-borough-council/ealing,CHILDREN & ADULTS,1,DISABILITIES,RESIDENTIAL HOMES EXTERNAL,4220,,06/11/2022,23252886,9039.16,12213,GROVE CARE PARTNERSHIP LTD
INSERTED DETAIL,,Ealing Council,http://opendatacommunities.org/id/london-borough-council/ealing,CHILDREN & ADULTS,1,DISABILITIES,RESIDENTIAL HOMES EXTERNAL,4220,,06/11/2022,23252886,9695.48,12213,GROVE CARE PARTNERSHIP LTD
INSERTED DETAIL,,Ealing Council,http://opendatacommunities.org/id/london-borough-council/ealing,CHILDREN & ADULTS,1,DISABILITIES,RESIDENTIAL HOMES EXTERNAL,4220,,06/11/2022,23252887,7471.76,12213,GROVE CARE PARTNERSHIP LTD
INSERTED DETAIL,,Ealing Council,http://opendatacommunities.org/id/london-borough-council/ealing,CHILDREN & ADULTS,1,DISABILITIES,RESIDENTIAL HOMES EXTERNAL,4220,,06/11/2022,23252887,8424.48,12213,GROVE CARE PARTNERSHIP LTD
INSERTED DETAIL,,Ealing Council,http://opendatacommunities.org/id/london-borough-council/ealing,CHILDREN & ADULTS,1,SAFEGUARDING & SUPP - BS &A&F,PAYMENTS TO CONTRACTORS,4000,,03/10/2022,41032789,660,29262,REDACTED SENSITIVE SUPPLIER
INSERTED DETAIL,,Ealing Council,http://opendatacommunities.org/id/london-borough-council/ealing,CHILDREN & ADULTS,1,SAFEGUARDING & SUPP - BS &A&F,PAYMENTS TO CONTRACTORS,4000,,03/10/2022,41032790,280,29262,REDACTED SENSITIVE SUPPLIER
INSERTED DETAIL,,Ealing Council,http://opendatacommunities.org/id/london-borough-council/ealing,CHILDREN & ADULTS,1,SAFEGUARDING & SUPP - BS &A&F,PAYMENTS TO CONTRACTORS,4000,,03/10/2022,41032792,420,29262,REDACTED SENSITIVE SUPPLIER
INSERTED DETAIL,,Ealing Council,http://opendatacommunities.org/id/london-borough-council/ealing,CHILDREN & ADULTS,1,SAFEGUARDING & SUPP - BS &A&F,PAYMENTS TO CONTRACTORS,4000,,19/10/2022,41034502,480,28611,REDACTED SENSITIVE SUPPLIER
INSERTED DETAIL,,Ealing Council,http://opendatacommunities.org/id/london-borough-council/ealing,CHILDREN & ADULTS,1,SAFEGUARDING & SUPP - BS &A&F,PAYMENTS TO CONTRACTORS,4000,,30/09/2022,41035474,255,28495,PASST LIMITED
INSERTED DETAIL,,Ealing Council,http://opendatacommunities.org/id/london-borough-council/ealing,CHILDREN & ADULTS,1,SAFEGUARDING & SUPP - BS &A&F,PAYMENTS TO CONTRACTORS,4000,,30/09/2022,41035476,255,28495,PASST LIMITED
INSERTED DETAIL,,Ealing Council,http://opendatacommunities.org/id/london-borough-council/ealing,CHILDREN & ADULTS,1,SAFEGUARDING & SUPP - BS &A&F,PAYMENTS TO CONTRACTORS,4000,,30/09/2022,41035478,425,28495,PASST LIMITED
INSERTED DETAIL,,Ealing Council,http://opendatacommunities.org/id/london-borough-council/ealing,CHILDREN & ADULTS,1,SAFEGUARDING & SUPP - BS &A&F,PAYMENTS TO CONTRACTORS,4000,,30/09/2022,41035479,255,28495,PASST LIMITED
INSERTED DETAIL,,Ealing Council,http://opendatacommunities.org/id/london-borough-council/ealing,CHILDREN & ADULTS,1,SAFEGUARDING & SUPP - BS &A&F,PAYMENTS TO CONTRACTORS,4000,,30/09/2022,41035482,425,28495,PASST LIMITED
INSERTED DETAIL,,Ealing Council,http://opendatacommunities.org/id/london-borough-council/ealing,CHILDREN & ADULTS,1,SAFEGUARDING & SUPP - BS &A&F,PAYMENTS TO CONTRACTORS,4000,,30/09/2022,41035483,255,28495,PASST LIMITED
INSERTED DETAIL,,Ealing Council,http://opendatacommunities.org/id/london-borough-council/ealing,CHILDREN & ADULTS,1,SAFEGUARDING & SUPP - BS &A&F,PAYMENTS TO CONTRACTORS,4000,,30/09/2022,41035485,595,28495,PASST LIMITED
INSERTED DETAIL,,Ealing Council,http://opendatacommunities.org/id/london-borough-council/ealing,CHILDREN & ADULTS,1,SAFEGUARDING & SUPP - BS &A&F,PAYMENTS TO CONTRACTORS,4000,,30/09/2022,41035488,425,28495,PASST LIMITED
INSERTED DETAIL,,Ealing Council,http://opendatacommunities.org/id/london-borough-council/ealing,CHILDREN & ADULTS,1,SAFEGUARDING & SUPP - BS &A&F,PAYMENTS TO CONTRACTORS,4000,,30/09/2022,41035490,340,28495,PASST LIMITED
INSERTED DETAIL,,Ealing Council,http://opendatacommunities.org/id/london-borough-council/ealing,CHILDREN & ADULTS,1,SAFEGUARDING & SUPP - BS &A&F,PAYMENTS TO CONTRACTORS,4000,,30/10/2022,41036312,480,25902,REDACTED SENSITIVE SUPPLIER
INSERTED DETAIL,,Ealing Council,http://opendatacommunities.org/id/london-borough-council/ealing,CHILDREN & ADULTS,1,SAFEGUARDING & SUPP - BS &A&F,PAYMENTS TO CONTRACTORS,4000,,30/10/2022,41036313,960,25902,REDACTED SENSITIVE SUPPLIER
INSERTED DETAIL,,Ealing Council,http://opendatacommunities.org/id/london-borough-council/ealing,CHILDREN & ADULTS,1,SAFEGUARDING & SUPP - BS &A&F,PAYMENTS TO CONTRACTORS,4000,,31/10/2022,41036573,450,28611,REDACTED SENSITIVE SUPPLIER
INSERTED DETAIL,,Ealing Council,http://opendatacommunities.org/id/london-borough-council/ealing,CHILDREN & ADULTS,1,SAFEGUARDING & SUPP - BS &A&F,PAYMENTS TO CONTRACTORS,4000,,01/11/2022,41036581,255,28495,PASST LIMITED
INSERTED DETAIL,,Ealing Council,http://opendatacommunities.org/id/london-borough-council/ealing,CHILDREN & ADULTS,1,SAFEGUARDING & SUPP - BS &A&F,PAYMENTS TO CONTRACTORS,4000,,01/11/2022,41036583,425,28495,PASST LIMITED
INSERTED DETAIL,,Ealing Council,http://opendatacommunities.org/id/london-borough-council/ealing,CHILDREN & ADULTS,1,SAFEGUARDING & SUPP - BS &A&F,PAYMENTS TO CONTRACTORS,4000,,01/11/2022,41036585,595,28495,PASST LIMITED
INSERTED DETAIL,,Ealing Council,http://opendatacommunities.org/id/london-borough-council/ealing,CHILDREN & ADULTS,1,SAFEGUARDING & SUPP - BS &A&F,PAYMENTS TO CONTRACTORS,4000,,01/11/2022,41036588,340,28495,PASST LIMITED
INSERTED DETAIL,,Ealing Council,http://opendatacommunities.org/id/london-borough-council/ealing,CHILDREN & ADULTS,1,SAFEGUARDING & SUPP - BS &A&F,PAYMENTS TO CONTRACTORS,4000,,31/10/2022,41036589,727.5,28611,REDACTED SENSITIVE SUPPLIER
INSERTED DETAIL,,Ealing Council,http://opendatacommunities.org/id/london-borough-council/ealing,CHILDREN & ADULTS,1,SAFEGUARDING & SUPP - BS &A&F,PAYMENTS TO CONTRACTORS,4000,,01/11/2022,41036592,340,28495,PASST LIMITED
INSERTED DETAIL,,Ealing Council,http://opendatacommunities.org/id/london-borough-council/ealing,CHILDREN & ADULTS,1,SAFEGUARDING & SUPP - BS &A&F,PAYMENTS TO CONTRACTORS,4000,,01/11/2022,41036593,680,28495,PASST LIMITED
INSERTED DETAIL,,Ealing Council,http://opendatacommunities.org/id/london-borough-council/ealing,CHILDREN & ADULTS,1,SAFEGUARDING & SUPP - BS &A&F,PAYMENTS TO CONTRACTORS,4000,,01/11/2022,41036597,425,28495,PASST LIMITED
INSERTED DETAIL,,Ealing Council,http://opendatacommunities.org/id/london-borough-council/ealing,CHILDREN & ADULTS,1,SAFEGUARDING & SUPP - BS &A&F,PAYMENTS TO CONTRACTORS,4000,,01/11/2022,41036598,340,28495,PASST LIMITED
INSERTED DETAIL,,Ealing Council,http://opendatacommunities.org/id/london-borough-council/ealing,CHILDREN & ADULTS,1,SAFEGUARDING & SUPP - BS &A&F,PAYMENTS TO CONTRACTORS,4000,,01/11/2022,41036600,340,28495,PASST LIMITED
INSERTED DETAIL,,Ealing Council,http://opendatacommunities.org/id/london-borough-council/ealing,CHILDREN & ADULTS,1,SAFEGUARDING & SUPP - BS &A&F,PAYMENTS TO CONTRACTORS,4000,,01/11/2022,41036603,255,28495,PASST LIMITED
INSERTED DETAIL,,Ealing Council,http://opendatacommunities.org/id/london-borough-council/ealing,CHILDREN & ADULTS,1,SAFEGUARDING & SUPP - BS &A&F,PAYMENTS TO CONTRACTORS,4000,,17/10/2022,41034672,1220,29262,REDACTED SENSITIVE SUPPLIER
INSERTED DETAIL,,Ealing Council,http://opendatacommunities.org/id/london-borough-council/ealing,CHILDREN & ADULTS,1,SAFEGUARDING & SUPP - BS &A&F,PAYMENTS TO CONTRACTORS,4000,,02/11/2022,41037223,420,29262,REDACTED SENSITIVE SUPPLIER
INSERTED DETAIL,,Ealing Council,http://opendatacommunities.org/id/london-borough-council/ealing,CHILDREN & ADULTS,1,SAFEGUARDING & SUPP - BS &A&F,PAYMENTS TO CONTRACTORS,4000,,02/11/2022,41037227,420,29262,REDACTED SENSITIVE SUPPLIER
INSERTED DETAIL,,Ealing Council,http://opendatacommunities.org/id/london-borough-council/ealing,CHILDREN & ADULTS,1,SAFEGUARDING & SUPP - BS &A&F,PAYMENTS TO CONTRACTORS,4000,,02/11/2022,41037230,680,29262,REDACTED SENSITIVE SUPPLIER
INSERTED DETAIL,,Ealing Council,http://opendatacommunities.org/id/london-borough-council/ealing,CHILDREN & ADULTS,1,SAFEGUARDING & SUPP - BS &A&F,PAYMENTS TO CONTRACTORS,4000,,02/11/2022,41037233,560,29262,REDACTED SENSITIVE SUPPLIER
INSERTED DETAIL,,Ealing Council,http://opendatacommunities.org/id/london-borough-council/ealing,CHILDREN & ADULTS,1,SAFEGUARDING & SUPP - BS &A&F,PAYMENTS TO CONTRACTORS,4000,,03/11/2022,41037237,540,29262,REDACTED SENSITIVE SUPPLIER
INSERTED DETAIL,,Ealing Council,http://opendatacommunities.org/id/london-borough-council/ealing,CHILDREN & ADULTS,1,SAFEGUARDING & SUPP - BS &A&F,PAYMENTS TO CONTRACTORS,4000,,03/11/2022,41037243,280,29262,REDACTED SENSITIVE SUPPLIER
INSERTED DETAIL,,Ealing Council,http://opendatacommunities.org/id/london-borough-council/ealing,CHILDREN & ADULTS,1,SAFEGUARDING & SUPPORT - CIC,CHILDRENS SERVICES -ELIGIBLE CHILDREN ACCOMMODATIO,4281,,30/06/2022,41037120,2004.07,15654,WEST LONDON YMCA
INSERTED DETAIL,,Ealing Council,http://opendatacommunities.org/id/london-borough-council/ealing,CHILDREN & ADULTS,1,SAFEGUARDING & SUPPORT - CIC,CHILDRENS SERVICES -ELIGIBLE CHILDREN ACCOMMODATIO,4281,,31/10/2022,41036687,574.86,15654,WEST LONDON YMCA
INSERTED DETAIL,,Ealing Council,http://opendatacommunities.org/id/london-borough-council/ealing,CHILDREN & ADULTS,1,SAFEGUARDING & SUPPORT - CIC,CHILDRENS SERVICES -ELIGIBLE CHILDREN ACCOMMODATIO,4281,,31/10/2022,41036688,1002.03,15654,WEST LONDON YMCA
INSERTED DETAIL,,Ealing Council,http://opendatacommunities.org/id/london-borough-council/ealing,CHILDREN & ADULTS,1,SAFEGUARDING & SUPPORT - CIC,CHILDRENS SERVICES -ELIGIBLE CHILDREN ACCOMMODATIO,4281,,31/10/2022,41038468,2112.03,15654,WEST LONDON YMCA
INSERTED DETAIL,,Ealing Council,http://opendatacommunities.org/id/london-borough-council/ealing,CHILDREN & ADULTS,1,SAFEGUARDING & SUPPORT - CIC,CHILDRENS SERVICES -ELIGIBLE CHILDREN OTHER COSTS,4282,,01/11/2022,23239684,-270.37,200973,REDACTED SENSITIVE SUPPLIER
INSERTED DETAIL,,Ealing Council,http://opendatacommunities.org/id/london-borough-council/ealing,CHILDREN & ADULTS,1,SAFEGUARDING & SUPPORT - CIC,CHILDRENS SERVICES -ELIGIBLE CHILDREN ACCOMMODATIO,4281,,01/11/2022,23239413,269.95,200588,REDACTED SENSITIVE SUPPLIER
INSERTED DETAIL,,Ealing Council,http://opendatacommunities.org/id/london-borough-council/ealing,CHILDREN & ADULTS,1,SAFEGUARDING & SUPPORT - CIC,CHILDRENS SERVICES -ELIGIBLE CHILDREN ACCOMMODATIO,4281,,01/11/2022,23239527,269.95,200523,REDACTED SENSITIVE SUPPLIER
INSERTED DETAIL,,Ealing Council,http://opendatacommunities.org/id/london-borough-council/ealing,CHILDREN & ADULTS,1,SAFEGUARDING & SUPPORT - CIC,CHILDRENS SERVICES -ELIGIBLE CHILDREN OTHER COSTS,4282,,01/11/2022,23239539,458,200429,REDACTED SENSITIVE SUPPLIER
INSERTED DETAIL,,Ealing Council,http://opendatacommunities.org/id/london-borough-council/ealing,CHILDREN & ADULTS,1,SAFEGUARDING & SUPPORT - CIC,CHILDRENS SERVICES -ELIGIBLE CHILDREN ACCOMMODATIO,4281,,01/11/2022,23239546,269.95,200608,REDACTED SENSITIVE SUPPLIER
INSERTED DETAIL,,Ealing Council,http://opendatacommunities.org/id/london-borough-council/ealing,CHILDREN & ADULTS,1,SAFEGUARDING & SUPPORT - CIC,CHILDRENS SERVICES -ELIGIBLE CHILDREN ACCOMMODATIO,4281,,01/11/2022,23239663,269.95,200241,REDACTED SENSITIVE SUPPLIER
INSERTED DETAIL,,Ealing Council,http://opendatacommunities.org/id/london-borough-council/ealing,CHILDREN & ADULTS,1,SAFEGUARDING & SUPPORT - CIC,CHILDRENS SERVICES -ELIGIBLE CHILDREN ACCOMMODATIO,4281,,08/11/2022,23242491,269.95,200588,REDACTED SENSITIVE SUPPLIER
INSERTED DETAIL,,Ealing Council,http://opendatacommunities.org/id/london-borough-council/ealing,CHILDREN & ADULTS,1,SAFEGUARDING & SUPPORT - CIC,CHILDRENS SERVICES -ELIGIBLE CHILDREN ACCOMMODATIO,4281,,08/11/2022,23242604,269.95,200523,REDACTED SENSITIVE SUPPLIER
INSERTED DETAIL,,Ealing Council,http://opendatacommunities.org/id/london-borough-council/ealing,CHILDREN & ADULTS,1,SAFEGUARDING & SUPPORT - CIC,CHILDRENS SERVICES -ELIGIBLE CHILDREN ACCOMMODATIO,4281,,08/11/2022,23242622,269.95,200608,REDACTED SENSITIVE SUPPLIER
INSERTED DETAIL,,Ealing Council,http://opendatacommunities.org/id/london-borough-council/ealing,CHILDREN & ADULTS,1,SAFEGUARDING & SUPPORT - CIC,CHILDRENS SERVICES -ELIGIBLE CHILDREN ACCOMMODATIO,4281,,08/11/2022,23242738,269.95,200241,REDACTED SENSITIVE SUPPLIER
INSERTED DETAIL,,Ealing Council,http://opendatacommunities.org/id/london-borough-council/ealing,CHILDREN & ADULTS,1,SAFEGUARDING & SUPPORT - CIC,CHILDRENS SERVICES -ELIGIBLE CHILDREN ACCOMMODATIO,4281,,15/11/2022,23244653,269.95,200588,REDACTED SENSITIVE SUPPLIER
INSERTED DETAIL,,Ealing Council,http://opendatacommunities.org/id/london-borough-council/ealing,CHILDREN & ADULTS,1,SAFEGUARDING & SUPPORT - CIC,CHILDRENS SERVICES -ELIGIBLE CHILDREN ACCOMMODATIO,4281,,01/11/2022,23239520,269.95,200414,REDACTED SENSITIVE SUPPLIER
INSERTED DETAIL,,Ealing Council,http://opendatacommunities.org/id/london-borough-council/ealing,CHILDREN & ADULTS,1,SAFEGUARDING & SUPPORT - CIC,CHILDRENS SERVICES -ELIGIBLE CHILDREN ACCOMMODATIO,4281,,08/11/2022,23242597,269.95,200414,REDACTED SENSITIVE SUPPLIER
INSERTED DETAIL,,Ealing Council,http://opendatacommunities.org/id/london-borough-council/ealing,CHILDREN & ADULTS,1,SAFEGUARDING & SUPPORT - CIC,CHILDRENS SERVICES -ELIGIBLE CHILDREN ACCOMMODATIO,4281,,15/11/2022,23244760,269.95,200414,REDACTED SENSITIVE SUPPLIER
INSERTED DETAIL,,Ealing Council,http://opendatacommunities.org/id/london-borough-council/ealing,CHILDREN & ADULTS,1,SAFEGUARDING & SUPPORT - CIC,CHILDRENS SERVICES -ELIGIBLE CHILDREN OTHER COSTS,4282,,15/11/2022,23244944,3500,201085,REDACTED SENSITIVE SUPPLIER
INSERTED DETAIL,,Ealing Council,http://opendatacommunities.org/id/london-borough-council/ealing,CHILDREN & ADULTS,1,SAFEGUARDING & SUPPORT - CIC,CHILDRENS SERVICES -ELIGIBLE CHILDREN OTHER COSTS,4282,,15/11/2022,23244944,3000,201085,REDACTED SENSITIVE SUPPLIER
INSERTED DETAIL,,Ealing Council,http://opendatacommunities.org/id/london-borough-council/ealing,CHILDREN & ADULTS,1,SAFEGUARDING & SUPPORT - CIC,CHILDRENS SERVICES -ELIGIBLE CHILDREN ACCOMMODATIO,4281,,22/11/2022,23246488,269.95,200414,REDACTED SENSITIVE SUPPLIER
INSERTED DETAIL,,Ealing Council,http://opendatacommunities.org/id/london-borough-council/ealing,CHILDREN & ADULTS,1,SAFEGUARDING & SUPPORT - CIC,CHILDRENS SERVICES -ELIGIBLE CHILDREN OTHER COSTS,4282,,01/11/2022,23239588,1512,200711,REDACTED SENSITIVE SUPPLIER
INSERTED DETAIL,,Ealing Council,http://opendatacommunities.org/id/london-borough-council/ealing,CHILDREN & ADULTS,1,SAFEGUARDING & SUPPORT - CIC,CHILDRENS SERVICES -ELIGIBLE CHILDREN ACCOMMODATIO,4281,,22/11/2022,23246661,3046.58,201010,REDACTED SENSITIVE SUPPLIER
INSERTED DETAIL,,Ealing Council,http://opendatacommunities.org/id/london-borough-council/ealing,CHILDREN & ADULTS,1,SAFEGUARDING & SUPPORT - CIC,CHILDRENS SERVICES -ELIGIBLE CHILDREN ACCOMMODATIO,4281,,14/11/2022,23244525,1882.14,29141,WYF VENTURES LTD T/A TOTAL CARE
INSERTED DETAIL,,Ealing Council,http://opendatacommunities.org/id/london-borough-council/ealing,CHILDREN & ADULTS,1,SAFEGUARDING & SUPPORT - CIC,CHILDRENS SERVICES -ELIGIBLE CHILDREN ACCOMMODATIO,4281,,14/11/2022,23244525,4500,29141,WYF VENTURES LTD T/A TOTAL CARE
INSERTED DETAIL,,Ealing Council,http://opendatacommunities.org/id/london-borough-council/ealing,CHILDREN & ADULTS,1,SAFEGUARDING & SUPPORT - CIC,CHILDRENS SERVICES -ELIGIBLE CHILDREN ACCOMMODATIO,4281,,14/11/2022,23244532,553.57,29141,WYF VENTURES LTD T/A TOTAL CARE
INSERTED DETAIL,,Ealing Council,http://opendatacommunities.org/id/london-borough-council/ealing,CHILDREN & ADULTS,1,SAFEGUARDING & SUPPORT - CIC,CHILDRENS SERVICES -ELIGIBLE CHILDREN ACCOMMODATIO,4281,,14/11/2022,23244532,1882.14,29141,WYF VENTURES LTD T/A TOTAL CARE
INSERTED DETAIL,,Ealing Council,http://opendatacommunities.org/id/london-borough-council/ealing,CHILDREN & ADULTS,1,SAFEGUARDING & SUPPORT - CIC,CHILDRENS SERVICES -ELIGIBLE CHILDREN ACCOMMODATIO,4281,,14/11/2022,23244533,265.71,29808,PHASE II CARE LTD
INSERTED DETAIL,,Ealing Council,http://opendatacommunities.org/id/london-borough-council/ealing,CHILDREN & ADULTS,1,SAFEGUARDING & SUPP - BS &A&F,CHILDRENS SERVICES ADOPTION ALLOWANCE,4387,,01/11/2022,23239599,348.95,200820,REDACTED SENSITIVE SUPPLIER
INSERTED DETAIL,,Ealing Council,http://opendatacommunities.org/id/london-borough-council/ealing,CHILDREN & ADULTS,1,SAFEGUARDING & SUPP - BS &A&F,CHILDRENS SERVICES ADOPTION ALLOWANCE,4387,,01/11/2022,23239599,356.05,200820,REDACTED SENSITIVE SUPPLIER
INSERTED DETAIL,,Ealing Council,http://opendatacommunities.org/id/london-borough-council/ealing,CHILDREN & ADULTS,1,SAFEGUARDING & SUPP - BS &A&F,CHILDRENS SERVICES ADOPTION ALLOWANCE,4387,,08/11/2022,23242447,308.95,200296,REDACTED SENSITIVE SUPPLIER
INSERTED DETAIL,,Ealing Council,http://opendatacommunities.org/id/london-borough-council/ealing,CHILDREN & ADULTS,1,SAFEGUARDING & SUPP - BS &A&F,SPECIAL GUARDIANSHIP ALLOWANCE (SOC SERV),4663,,08/11/2022,23242456,255.95,200312,REDACTED SENSITIVE SUPPLIER
INSERTED DETAIL,,Ealing Council,http://opendatacommunities.org/id/london-borough-council/ealing,CHILDREN & ADULTS,1,SAFEGUARDING & SUPP - BS &A&F,SPECIAL GUARDIANSHIP ALLOWANCE (SOC SERV),4663,,08/11/2022,23242506,314.21,200049,REDACTED SENSITIVE SUPPLIER
INSERTED DETAIL,,Ealing Council,http://opendatacommunities.org/id/london-borough-council/ealing,CHILDREN & ADULTS,1,SAFEGUARDING & SUPP - BS &A&F,CHILDRENS SERVICES ADOPTION ALLOWANCE,4387,,08/11/2022,23242602,287.67,200411,REDACTED SENSITIVE SUPPLIER
INSERTED DETAIL,,Ealing Council,http://opendatacommunities.org/id/london-borough-council/ealing,CHILDREN & ADULTS,1,SAFEGUARDING & SUPP - BS &A&F,CHILDRENS SERVICES ADOPTION ALLOWANCE,4387,,08/11/2022,23242673,348.95,200820,REDACTED SENSITIVE SUPPLIER
INSERTED DETAIL,,Ealing Council,http://opendatacommunities.org/id/london-borough-council/ealing,CHILDREN & ADULTS,1,SAFEGUARDING & SUPP - BS &A&F,CHILDRENS SERVICES ADOPTION ALLOWANCE,4387,,08/11/2022,23242673,356.05,200820,REDACTED SENSITIVE SUPPLIER
INSERTED DETAIL,,Ealing Council,http://opendatacommunities.org/id/london-borough-council/ealing,CHILDREN & ADULTS,1,SAFEGUARDING & SUPP - BS &A&F,CHILDRENS SERVICES ADOPTION ALLOWANCE,4387,,08/11/2022,23242673,356.05,200820,REDACTED SENSITIVE SUPPLIER
INSERTED DETAIL,,Ealing Council,http://opendatacommunities.org/id/london-borough-council/ealing,CHILDREN & ADULTS,1,SAFEGUARDING & SUPP - BS &A&F,SPECIAL GUARDIANSHIP ALLOWANCE (SOC SERV),4663,,15/11/2022,23244697,366,200093,REDACTED SENSITIVE SUPPLIER
INSERTED DETAIL,,Ealing Council,http://opendatacommunities.org/id/london-borough-council/ealing,CHILDREN & ADULTS,1,SAFEGUARDING & SUPP - BS &A&F,SPECIAL GUARDIANSHIP ALLOWANCE (SOC SERV),4663,,22/11/2022,23246424,366,200093,REDACTED SENSITIVE SUPPLIER
INSERTED DETAIL,,Ealing Council,http://opendatacommunities.org/id/london-borough-council/ealing,CHILDREN & ADULTS,1,SAFEGUARDING & SUPP - BS &A&F,CHILDRENS SERVICES ADOPTION ALLOWANCE,4387,,15/11/2022,23244609,308.95,200296,REDACTED SENSITIVE SUPPLIER
INSERTED DETAIL,,Ealing Council,http://opendatacommunities.org/id/london-borough-council/ealing,CHILDREN & ADULTS,1,SAFEGUARDING & SUPP - BS &A&F,SPECIAL GUARDIANSHIP ALLOWANCE (SOC SERV),4663,,15/11/2022,23244619,255.95,200312,REDACTED SENSITIVE SUPPLIER
INSERTED DETAIL,,Ealing Council,http://opendatacommunities.org/id/london-borough-council/ealing,CHILDREN & ADULTS,1,SAFEGUARDING & SUPP - BS &A&F,SPECIAL GUARDIANSHIP ALLOWANCE (SOC SERV),4663,,15/11/2022,23244669,314.21,200049,REDACTED SENSITIVE SUPPLIER
INSERTED DETAIL,,Ealing Council,http://opendatacommunities.org/id/london-borough-council/ealing,CHILDREN & ADULTS,1,SAFEGUARDING & SUPP - BS &A&F,CHILDRENS SERVICES ADOPTION ALLOWANCE,4387,,15/11/2022,23244765,287.67,200411,REDACTED SENSITIVE SUPPLIER
INSERTED DETAIL,,Ealing Council,http://opendatacommunities.org/id/london-borough-council/ealing,CHILDREN & ADULTS,1,SAFEGUARDING & SUPP - BS &A&F,CHILDRENS SERVICES ADOPTION ALLOWANCE,4387,,15/11/2022,23244835,356.05,200820,REDACTED SENSITIVE SUPPLIER
INSERTED DETAIL,,Ealing Council,http://opendatacommunities.org/id/london-borough-council/ealing,CHILDREN & ADULTS,1,SAFEGUARDING & SUPP - BS &A&F,CHILDRENS SERVICES ADOPTION ALLOWANCE,4387,,15/11/2022,23244835,348.95,200820,REDACTED SENSITIVE SUPPLIER
INSERTED DETAIL,,Ealing Council,http://opendatacommunities.org/id/london-borough-council/ealing,CHILDREN & ADULTS,1,SAFEGUARDING & SUPP - BS &A&F,CHILDRENS SERVICES ADOPTION ALLOWANCE,4387,,15/11/2022,23244835,356.05,200820,REDACTED SENSITIVE SUPPLIER
INSERTED DETAIL,,Ealing Council,http://opendatacommunities.org/id/london-borough-council/ealing,CHILDREN & ADULTS,1,SAFEGUARDING & SUPP - BS &A&F,CHILDRENS SERVICES ADOPTION ALLOWANCE,4387,,22/11/2022,23246335,308.95,200296,REDACTED SENSITIVE SUPPLIER
INSERTED DETAIL,,Ealing Council,http://opendatacommunities.org/id/london-borough-council/ealing,CHILDREN & ADULTS,1,SAFEGUARDING & SUPP - BS &A&F,SPECIAL GUARDIANSHIP ALLOWANCE (SOC SERV),4663,,22/11/2022,23246345,255.95,200312,REDACTED SENSITIVE SUPPLIER
INSERTED DETAIL,,Ealing Council,http://opendatacommunities.org/id/london-borough-council/ealing,PLACE,6,HOUSING BUSINESS PLANNING,TRAINING,80,,20/10/2022,41034985,429.3,15338,TMP (UK) LIMITED
INSERTED DETAIL,,Ealing Council,http://opendatacommunities.org/id/london-borough-council/ealing,PLACE,6,HOUSING BUSINESS PLANNING,RENTS,1200,,31/10/2022,41036746,965.6,23040,ALLPAY.NET
INSERTED DETAIL,,Ealing Council,http://opendatacommunities.org/id/london-borough-council/ealing,PLACE,6,HOUSING BUSINESS PLANNING,RENTS,1200,,31/10/2022,41036747,2506.91,23040,ALLPAY.NET
INSERTED DETAIL,,Ealing Council,http://opendatacommunities.org/id/london-borough-council/ealing,PLACE,6,HOUSING BUSINESS PLANNING,PAYMENTS TO CONTRACTORS,4000,,23/11/2022,41038878,1400,16396,THE OYSTER PARTNERSHIP LTD
INSERTED DETAIL,,Ealing Council,http://opendatacommunities.org/id/london-borough-council/ealing,PLACE,6,HOUSING BUSINESS PLANNING,PAYMENTS TO CONTRACTORS,4000,,30/11/2022,41039954,1750,16396,THE OYSTER PARTNERSHIP LTD
INSERTED DETAIL,,Ealing Council,http://opendatacommunities.org/id/london-borough-council/ealing,PLACE,6,HOUSING BUSINESS PLANNING,PAYMENTS TO CONTRACTORS,4000,,02/11/2022,41035151,700,16396,THE OYSTER PARTNERSHIP LTD
INSERTED DETAIL,,Ealing Council,http://opendatacommunities.org/id/london-borough-council/ealing,PLACE,6,HOUSING BUSINESS PLANNING,PAYMENTS TO CONTRACTORS,4000,,09/11/2022,41036505,1750,16396,THE OYSTER PARTNERSHIP LTD
INSERTED DETAIL,,Ealing Council,http://opendatacommunities.org/id/london-borough-council/ealing,PLACE,6,HOUSING BUSINESS PLANNING,PAYMENTS TO CONTRACTORS,4000,,16/11/2022,41037615,1750,16396,THE OYSTER PARTNERSHIP LTD
INSERTED DETAIL,,Ealing Council,http://opendatacommunities.org/id/london-borough-council/ealing,PLACE,6,HOUSING PROPERTY & ASSETS,REPAIR AND MAINTENANCE,1410,,26/10/2022,41035599,3564,14283,R&R SECURITY SERVICES LIMITED
INSERTED DETAIL,,Ealing Council,http://opendatacommunities.org/id/london-borough-council/ealing,PLACE,6,HOUSING PROPERTY & ASSETS,REPAIR AND MAINTENANCE,1410,,04/10/2022,41035623,335.4,27319,EVANS AND BROOKS FIRE LTD
INSERTED DETAIL,,Ealing Council,http://opendatacommunities.org/id/london-borough-council/ealing,PLACE,6,HOUSING PROPERTY & ASSETS,REPAIR AND MAINTENANCE,1410,,04/10/2022,41035630,1019.88,27319,EVANS AND BROOKS FIRE LTD
INSERTED DETAIL,,Ealing Council,http://opendatacommunities.org/id/london-borough-council/ealing,PLACE,6,HOUSING PROPERTY & ASSETS,REPAIR AND MAINTENANCE,1410,,03/10/2022,41035602,278.72,27319,EVANS AND BROOKS FIRE LTD
INSERTED DETAIL,,Ealing Council,http://opendatacommunities.org/id/london-borough-council/ealing,PLACE,6,HOUSING PROPERTY & ASSETS,REPAIR AND MAINTENANCE,1410,,03/10/2022,41035601,283.72,27319,EVANS AND BROOKS FIRE LTD
INSERTED DETAIL,,Ealing Council,http://opendatacommunities.org/id/london-borough-council/ealing,PLACE,6,HOUSING PROPERTY & ASSETS,REPAIR AND MAINTENANCE,1410,,03/10/2022,41035605,624.44,27319,EVANS AND BROOKS FIRE LTD
INSERTED DETAIL,,Ealing Council,http://opendatacommunities.org/id/london-borough-council/ealing,PLACE,6,HOUSING PROPERTY & ASSETS,REPAIR AND MAINTENANCE,1410,,03/10/2022,41035606,1675.5,27319,EVANS AND BROOKS FIRE LTD
INSERTED DETAIL,,Ealing Council,http://opendatacommunities.org/id/london-borough-council/ealing,PLACE,6,HOUSING PROPERTY & ASSETS,REPAIR AND MAINTENANCE,1410,,04/10/2022,41035620,312.04,27319,EVANS AND BROOKS FIRE LTD
INSERTED DETAIL,,Ealing Council,http://opendatacommunities.org/id/london-borough-council/ealing,PLACE,6,HOUSING PROPERTY & ASSETS,REPAIR AND MAINTENANCE,1410,,04/10/2022,41035622,512.44,27319,EVANS AND BROOKS FIRE LTD
INSERTED DETAIL,,Ealing Council,http://opendatacommunities.org/id/london-borough-council/ealing,PLACE,6,HOUSING PROPERTY & ASSETS,REPAIR AND MAINTENANCE,1410,,04/10/2022,41035648,263.72,27319,EVANS AND BROOKS FIRE LTD
INSERTED DETAIL,,Ealing Council,http://opendatacommunities.org/id/london-borough-council/ealing,PLACE,6,HOUSING PROPERTY & ASSETS,REPAIR AND MAINTENANCE,1410,,04/10/2022,41035631,305.4,27319,EVANS AND BROOKS FIRE LTD
INSERTED DETAIL,,Ealing Council,http://opendatacommunities.org/id/london-borough-council/ealing,PLACE,6,HOUSING PROPERTY & ASSETS,REPAIR AND MAINTENANCE,1410,,04/10/2022,41035633,1002.88,27319,EVANS AND BROOKS FIRE LTD
INSERTED DETAIL,,Ealing Council,http://opendatacommunities.org/id/london-borough-council/ealing,PLACE,6,HOUSING PROPERTY & ASSETS,REPAIR AND MAINTENANCE,1410,,04/10/2022,41035626,251.72,27319,EVANS AND BROOKS FIRE LTD
INSERTED DETAIL,,Ealing Council,http://opendatacommunities.org/id/london-borough-council/ealing,PLACE,6,HOUSING PROPERTY & ASSETS,REPAIR AND MAINTENANCE,1410,,03/10/2022,41035607,672.8,27319,EVANS AND BROOKS FIRE LTD
INSERTED DETAIL,,Ealing Council,http://opendatacommunities.org/id/london-borough-council/ealing,PLACE,6,HOUSING PROPERTY & ASSETS,REPAIR AND MAINTENANCE,1410,,04/10/2022,41035615,358.4,27319,EVANS AND BROOKS FIRE LTD
INSERTED DETAIL,,Ealing Council,http://opendatacommunities.org/id/london-borough-council/ealing,PLACE,6,HOUSING PROPERTY & ASSETS,REPAIR AND MAINTENANCE,1410,,03/10/2022,41035616,273.72,27319,EVANS AND BROOKS FIRE LTD
INSERTED DETAIL,,Ealing Council,http://opendatacommunities.org/id/london-borough-council/ealing,PLACE,6,HOUSING PROPERTY & ASSETS,REPAIR AND MAINTENANCE,1410,,03/10/2022,41035617,263.72,27319,EVANS AND BROOKS FIRE LTD
INSERTED DETAIL,,Ealing Council,http://opendatacommunities.org/id/london-borough-council/ealing,PLACE,6,HOUSING PROPERTY & ASSETS,REPAIR AND MAINTENANCE,1410,,03/10/2022,41035609,328.72,27319,EVANS AND BROOKS FIRE LTD
INSERTED DETAIL,,Ealing Council,http://opendatacommunities.org/id/london-borough-council/ealing,PLACE,6,HOUSING PROPERTY & ASSETS,REPAIR AND MAINTENANCE,1410,,03/10/2022,41035612,368.08,27319,EVANS AND BROOKS FIRE LTD
INSERTED DETAIL,,Ealing Council,http://opendatacommunities.org/id/london-borough-council/ealing,PLACE,6,HOUSING PROPERTY & ASSETS,REPAIR AND MAINTENANCE,1410,,09/08/2022,41033866,4633.39,27319,EVANS AND BROOKS FIRE LTD
INSERTED DETAIL,,Ealing Council,http://opendatacommunities.org/id/london-borough-council/ealing,PLACE,6,RESIDENT SERVICES,CIS REPAIRS AND MAINTENANCE,1411,,10/11/2022,41038436,750,25070,GREENFORD GLASS SERVICES LTD.
INSERTED DETAIL,,Ealing Council,http://opendatacommunities.org/id/london-borough-council/ealing,PLACE,6,RESIDENT SERVICES,PAYMENTS TO CONTRACTORS,4000,,31/10/2022,41036709,1000,28712,RIGHTMOVE GROUP LIMITED
INSERTED DETAIL,,Ealing Council,http://opendatacommunities.org/id/london-borough-council/ealing,PLACE,6,RESIDENT SERVICES,SURVEYS & CONSULTATION,2500,,31/10/2022,41036905,1785,18912,MPP (MURPHY PRICE PARTNERSHIP)
INSERTED DETAIL,,Ealing Council,http://opendatacommunities.org/id/london-borough-council/ealing,PLACE,6,HOUSING BUSINESS PLANNING,RESIDENTS PARTICIPATION,2550,,08/11/2022,41036305,250,9900017,CHARTER COURT ASSOCIATION
INSERTED DETAIL,,Ealing Council,http://opendatacommunities.org/id/london-borough-council/ealing,PLACE,6,HOUSING BUSINESS PLANNING,RESIDENTS PARTICIPATION,2550,,08/11/2022,41036306,250,9900017,LINDSEY HOUSE RESIDENTS ASSOCIATION
INSERTED DETAIL,,Ealing Council,http://opendatacommunities.org/id/london-borough-council/ealing,PLACE,6,HOUSING BUSINESS PLANNING,RESIDENTS PARTICIPATION,2550,,08/11/2022,41036310,250,9900017,PENIOAKS TENNANTS ASSOCIATION
INSERTED DETAIL,,Ealing Council,http://opendatacommunities.org/id/london-borough-council/ealing,PLACE,6,HOUSING BUSINESS PLANNING,RESIDENTS PARTICIPATION,2550,,18/11/2022,41037987,900,9900017,TRINITY WAY RESIDENT
INSERTED DETAIL,,Ealing Council,http://opendatacommunities.org/id/london-borough-council/ealing,CHILDREN & ADULTS,1,SAFEGUARDING & SUPPORT - CIC,CHILDRENS SERVICES -ELIGIBLE CHILDREN ACCOMMODATIO,4281,,14/11/2022,23244528,2767.86,29141,WYF VENTURES LTD T/A TOTAL CARE
INSERTED DETAIL,,Ealing Council,http://opendatacommunities.org/id/london-borough-council/ealing,CHILDREN & ADULTS,1,SAFEGUARDING & SUPPORT - CIC,CHILDRENS SERVICES -ELIGIBLE CHILDREN ACCOMMODATIO,4281,,14/11/2022,23244528,1660.71,29141,WYF VENTURES LTD T/A TOTAL CARE
INSERTED DETAIL,,Ealing Council,http://opendatacommunities.org/id/london-borough-council/ealing,CHILDREN & ADULTS,1,SAFEGUARDING & SUPPORT - CIC,CHILDRENS SERVICES -ELIGIBLE CHILDREN ACCOMMODATIO,4281,,14/11/2022,23244530,10407.14,29784,CHALK HILL HOUSE LTD
INSERTED DETAIL,,Ealing Council,http://opendatacommunities.org/id/london-borough-council/ealing,CHILDREN & ADULTS,1,SAFEGUARDING & SUPPORT - CIC,CHILDRENS SERVICES -ELIGIBLE CHILDREN ACCOMMODATIO,4281,,14/11/2022,23244530,3985.71,29784,CHALK HILL HOUSE LTD
INSERTED DETAIL,,Ealing Council,http://opendatacommunities.org/id/london-borough-council/ealing,CHILDREN & ADULTS,1,SAFEGUARDING & SUPPORT - CIC,CHILDRENS SERVICES -ELIGIBLE CHILDREN ACCOMMODATIO,4281,,14/11/2022,23244530,1550,29784,CHALK HILL HOUSE LTD
INSERTED DETAIL,,Ealing Council,http://opendatacommunities.org/id/london-borough-council/ealing,CHILDREN & ADULTS,1,SAFEGUARDING & SUPPORT - CIC,CHILDRENS SERVICES -ELIGIBLE CHILDREN ACCOMMODATIO,4281,,14/11/2022,23244530,270.36,29784,CHALK HILL HOUSE LTD
INSERTED DETAIL,,Ealing Council,http://opendatacommunities.org/id/london-borough-council/ealing,CHILDREN & ADULTS,1,SAFEGUARDING & SUPPORT - CIC,CHILDRENS SERVICES -ELIGIBLE CHILDREN ACCOMMODATIO,4281,,14/11/2022,23244551,287.86,10000010,DUNFIELD & MEAD LTD
INSERTED DETAIL,,Ealing Council,http://opendatacommunities.org/id/london-borough-council/ealing,CHILDREN & ADULTS,1,SAFEGUARDING & SUPPORT - CIC,CHILDRENS SERVICES -ELIGIBLE CHILDREN ACCOMMODATIO,4281,,14/11/2022,23244551,332.14,10000010,DUNFIELD & MEAD LTD
INSERTED DETAIL,,Ealing Council,http://opendatacommunities.org/id/london-borough-council/ealing,CHILDREN & ADULTS,1,SAFEGUARDING & SUPPORT - CIC,CHILDRENS SERVICES -ELIGIBLE CHILDREN ACCOMMODATIO,4281,,14/11/2022,23244551,442.86,10000010,DUNFIELD & MEAD LTD
INSERTED DETAIL,,Ealing Council,http://opendatacommunities.org/id/london-borough-council/ealing,CHILDREN & ADULTS,1,SAFEGUARDING & SUPPORT - CIC,CHILDRENS SERVICES -ELIGIBLE CHILDREN ACCOMMODATIO,4281,,14/11/2022,23244551,863.57,10000010,DUNFIELD & MEAD LTD
INSERTED DETAIL,,Ealing Council,http://opendatacommunities.org/id/london-borough-council/ealing,CHILDREN & ADULTS,1,SAFEGUARDING & SUPPORT - CIC,CHILDRENS SERVICES -ELIGIBLE CHILDREN ACCOMMODATIO,4281,,14/11/2022,23244557,942.85,10000009,SHPS HOMES LTD
INSERTED DETAIL,,Ealing Council,http://opendatacommunities.org/id/london-borough-council/ealing,CHILDREN & ADULTS,1,SAFEGUARDING & SUPPORT - CIC,CHILDRENS SERVICES -ELIGIBLE CHILDREN ACCOMMODATIO,4281,,14/11/2022,23244557,2121.43,10000009,SHPS HOMES LTD
INSERTED DETAIL,,Ealing Council,http://opendatacommunities.org/id/london-borough-council/ealing,CHILDREN & ADULTS,1,SAFEGUARDING & SUPPORT - CIC,CHILDRENS SERVICES -ELIGIBLE CHILDREN ACCOMMODATIO,4281,,14/11/2022,23244557,1178.57,10000009,SHPS HOMES LTD
INSERTED DETAIL,,Ealing Council,http://opendatacommunities.org/id/london-borough-council/ealing,CHILDREN & ADULTS,1,SAFEGUARDING & SUPPORT - CIC,SOCIAL SERVICES -INDEPENDENT FOSTERING,4221,,14/11/2022,23244429,3210.71,25646,FOSTERING FOR YOU LIMITED
INSERTED DETAIL,,Ealing Council,http://opendatacommunities.org/id/london-borough-council/ealing,CHILDREN & ADULTS,1,SAFEGUARDING & SUPPORT - CIC,SOCIAL SERVICES -INDEPENDENT FOSTERING,4221,,14/11/2022,23244443,3255,26910,COMPASS FOSTERING WALES LTD
INSERTED DETAIL,,Ealing Council,http://opendatacommunities.org/id/london-borough-council/ealing,CHILDREN & ADULTS,1,SAFEGUARDING & SUPPORT - CIC,SOCIAL SERVICES -INDEPENDENT FOSTERING,4221,,14/11/2022,23244466,1904.29,29476,REDACTED SENSITIVE SUPPLIER
INSERTED DETAIL,,Ealing Council,http://opendatacommunities.org/id/london-borough-council/ealing,CHILDREN & ADULTS,1,SAFEGUARDING & SUPPORT - CIC,SOCIAL SERVICES -INDEPENDENT FOSTERING,4221,,14/11/2022,23244471,3387.86,29725,OUTSET FOSTERING AGENCY LTD
INSERTED DETAIL,,Ealing Council,http://opendatacommunities.org/id/london-borough-council/ealing,CHILDREN & ADULTS,1,SAFEGUARDING & SUPPORT - CIC,SOCIAL SERVICES -INDEPENDENT FOSTERING,4221,,14/11/2022,23244471,1444.95,29725,OUTSET FOSTERING AGENCY LTD
INSERTED DETAIL,,Ealing Council,http://opendatacommunities.org/id/london-borough-council/ealing,CHILDREN & ADULTS,1,SAFEGUARDING & SUPPORT - CIC,SOCIAL SERVICES -INDEPENDENT FOSTERING,4221,,14/11/2022,23244471,1402.6,29725,OUTSET FOSTERING AGENCY LTD
INSERTED DETAIL,,Ealing Council,http://opendatacommunities.org/id/london-borough-council/ealing,CHILDREN & ADULTS,1,SAFEGUARDING & SUPPORT - CIC,SOCIAL SERVICES -INDEPENDENT FOSTERING,4221,,14/11/2022,23244475,3631.43,29744,LOTUS FOSTER CARE LTD
INSERTED DETAIL,,Ealing Council,http://opendatacommunities.org/id/london-borough-council/ealing,CHILDREN & ADULTS,1,SAFEGUARDING & SUPPORT - CIC,CHILDRENS SERVICES -ELIGIBLE CHILDREN ACCOMMODATIO,4281,,14/11/2022,23244489,270.36,19820,HESTIA ENTERPRISES LTD-T/A HIGHER LEVEL CARE
INSERTED DETAIL,,Ealing Council,http://opendatacommunities.org/id/london-borough-council/ealing,CHILDREN & ADULTS,1,SAFEGUARDING & SUPPORT - CIC,CHILDRENS SERVICES -ELIGIBLE CHILDREN ACCOMMODATIO,4281,,14/11/2022,23244489,2657.14,19820,HESTIA ENTERPRISES LTD-T/A HIGHER LEVEL CARE
INSERTED DETAIL,,Ealing Council,http://opendatacommunities.org/id/london-borough-council/ealing,CHILDREN & ADULTS,1,SAFEGUARDING & SUPPORT - CIC,CHILDRENS SERVICES -ELIGIBLE CHILDREN ACCOMMODATIO,4281,,14/11/2022,23244489,885.71,19820,HESTIA ENTERPRISES LTD-T/A HIGHER LEVEL CARE
INSERTED DETAIL,,Ealing Council,http://opendatacommunities.org/id/london-borough-council/ealing,CHILDREN & ADULTS,1,SAFEGUARDING & SUPPORT - CIC,CHILDRENS SERVICES -ELIGIBLE CHILDREN ACCOMMODATIO,4281,,14/11/2022,23244489,442.86,19820,HESTIA ENTERPRISES LTD-T/A HIGHER LEVEL CARE
INSERTED DETAIL,,Ealing Council,http://opendatacommunities.org/id/london-borough-council/ealing,CHILDREN & ADULTS,1,SAFEGUARDING & SUPPORT - CIC,CHILDRENS SERVICES -ELIGIBLE CHILDREN ACCOMMODATIO,4281,,14/11/2022,23244489,270.36,19820,HESTIA ENTERPRISES LTD-T/A HIGHER LEVEL CARE
INSERTED DETAIL,,Ealing Council,http://opendatacommunities.org/id/london-borough-council/ealing,CHILDREN & ADULTS,1,SAFEGUARDING & SUPPORT - CIC,CHILDRENS SERVICES -ELIGIBLE CHILDREN ACCOMMODATIO,4281,,14/11/2022,23244489,2657.14,19820,HESTIA ENTERPRISES LTD-T/A HIGHER LEVEL CARE
INSERTED DETAIL,,Ealing Council,http://opendatacommunities.org/id/london-borough-council/ealing,CHILDREN & ADULTS,1,SAFEGUARDING & SUPPORT - CIC,CHILDRENS SERVICES -ELIGIBLE CHILDREN ACCOMMODATIO,4281,,14/11/2022,23244511,1404.64,29552,DYNAMIC LIVING LTD
INSERTED DETAIL,,Ealing Council,http://opendatacommunities.org/id/london-borough-council/ealing,CHILDREN & ADULTS,1,SAFEGUARDING & SUPPORT - CIC,CHILDRENS SERVICES -ELIGIBLE CHILDREN ACCOMMODATIO,4281,,14/11/2022,23244511,553.57,29552,DYNAMIC LIVING LTD
INSERTED DETAIL,,Ealing Council,http://opendatacommunities.org/id/london-borough-council/ealing,CHILDREN & ADULTS,1,SAFEGUARDING & SUPPORT - CIC,CHILDRENS SERVICES -ELIGIBLE CHILDREN ACCOMMODATIO,4281,,14/11/2022,23244511,3210.71,29552,DYNAMIC LIVING LTD
INSERTED DETAIL,,Ealing Council,http://opendatacommunities.org/id/london-borough-council/ealing,PLACE,6,LEISURE,STATION. & CONSUMABLE EQUIP.,3820,,26/10/2022,41035898,422.81,25956,STOCKSIGNS LTD
INSERTED DETAIL,,Ealing Council,http://opendatacommunities.org/id/london-borough-council/ealing,PLACE,6,LEISURE,CLOTHING & UNIFORMS,3100,,01/11/2022,41037013,1269.7,17900,HONEY BROTHERS LTD
INSERTED DETAIL,,Ealing Council,http://opendatacommunities.org/id/london-borough-council/ealing,PLACE,6,LEISURE,REPAIR AND MAINTENANCE,1410,,31/10/2022,41037478,380,20981,CLEARWAY ENVIRONMENTAL SERVICES (UK) LTD
INSERTED DETAIL,,Ealing Council,http://opendatacommunities.org/id/london-borough-council/ealing,PLACE,6,LEISURE,TRAINING,80,,10/08/2022,41035298,2040,9900018,REACT FIRST LTD
INSERTED DETAIL,,Ealing Council,http://opendatacommunities.org/id/london-borough-council/ealing,PLACE,6,LEISURE,PAYMENTS TO CONTRACTORS,4000,,11/12/2021,41035950,1846.8,25552,SKYGUARD LIMITED
INSERTED DETAIL,,Ealing Council,http://opendatacommunities.org/id/london-borough-council/ealing,PLACE,6,LEISURE,DIRECT TRANSPORT COSTS,2000,,02/11/2022,41036607,609.44,13007,LLOYDS TSB AUTOLEASE LTD
INSERTED DETAIL,,Ealing Council,http://opendatacommunities.org/id/london-borough-council/ealing,PLACE,6,LEISURE,CONTRACT PAYMENTS -PARKS GROUNDS MAINTENANCE,4040,,19/10/2022,41036053,3251.98,28826,GREENER EALING LIMITED
INSERTED DETAIL,,Ealing Council,http://opendatacommunities.org/id/london-borough-council/ealing,PLACE,6,LEISURE,CONTRACT PAYMENTS -PARKS GROUNDS MAINTENANCE,4040,,19/10/2022,41036056,1975.97,28826,GREENER EALING LIMITED
INSERTED DETAIL,,Ealing Council,http://opendatacommunities.org/id/london-borough-council/ealing,PLACE,6,LEISURE,CONTRACT PAYMENTS -PARKS GROUNDS MAINTENANCE,4040,,19/10/2022,41036058,2159.15,28826,GREENER EALING LIMITED
INSERTED DETAIL,,Ealing Council,http://opendatacommunities.org/id/london-borough-council/ealing,CHILDREN & ADULTS,1,SAFEGUARDING & SUPPORT - SM,RECRUITMENT COSTS,510,,18/03/2022,41019725,4492.07,29504,TRIPOD PARTNERS LTD
INSERTED DETAIL,,Ealing Council,http://opendatacommunities.org/id/london-borough-council/ealing,CHILDREN & ADULTS,1,OLDER PEOPLE,DOMICILIARY CARE - BLOCK,4240,,07/11/2022,23243851,911.25,29187,PREMIUM HOMECARE LTD
INSERTED DETAIL,,Ealing Council,http://opendatacommunities.org/id/london-borough-council/ealing,CHILDREN & ADULTS,1,OLDER PEOPLE,DOMICILIARY CARE - BLOCK,4240,,07/11/2022,23243851,1980.5,29187,PREMIUM HOMECARE LTD
INSERTED DETAIL,,Ealing Council,http://opendatacommunities.org/id/london-borough-council/ealing,CHILDREN & ADULTS,1,OLDER PEOPLE,DOMICILIARY CARE - BLOCK,4240,,07/11/2022,23243851,525,29187,PREMIUM HOMECARE LTD
INSERTED DETAIL,,Ealing Council,http://opendatacommunities.org/id/london-borough-council/ealing,CHILDREN & ADULTS,1,OLDER PEOPLE,DOMICILIARY CARE - BLOCK,4240,,07/11/2022,23243851,595,29187,PREMIUM HOMECARE LTD
INSERTED DETAIL,,Ealing Council,http://opendatacommunities.org/id/london-borough-council/ealing,CHILDREN & ADULTS,1,OLDER PEOPLE,DOMICILIARY CARE - BLOCK,4240,,07/11/2022,23243851,1045.8,29187,PREMIUM HOMECARE LTD
INSERTED DETAIL,,Ealing Council,http://opendatacommunities.org/id/london-borough-council/ealing,CHILDREN & ADULTS,1,OLDER PEOPLE,DOMICILIARY CARE - BLOCK,4240,,07/11/2022,23243851,1365,29187,PREMIUM HOMECARE LTD
INSERTED DETAIL,,Ealing Council,http://opendatacommunities.org/id/london-borough-council/ealing,CHILDREN & ADULTS,1,OLDER PEOPLE,DOMICILIARY CARE - BLOCK,4240,,07/11/2022,23243851,603.75,29187,PREMIUM HOMECARE LTD
INSERTED DETAIL,,Ealing Council,http://opendatacommunities.org/id/london-borough-council/ealing,CHILDREN & ADULTS,1,OLDER PEOPLE,DOMICILIARY CARE - BLOCK,4240,,07/11/2022,23243851,813.4,29187,PREMIUM HOMECARE LTD
INSERTED DETAIL,,Ealing Council,http://opendatacommunities.org/id/london-borough-council/ealing,CHILDREN & ADULTS,1,OLDER PEOPLE,DOMICILIARY CARE - BLOCK,4240,,07/11/2022,23243851,634.95,29187,PREMIUM HOMECARE LTD
INSERTED DETAIL,,Ealing Council,http://opendatacommunities.org/id/london-borough-council/ealing,CHILDREN & ADULTS,1,OLDER PEOPLE,DOMICILIARY CARE - BLOCK,4240,,07/11/2022,23243851,735,29187,PREMIUM HOMECARE LTD
INSERTED DETAIL,,Ealing Council,http://opendatacommunities.org/id/london-borough-council/ealing,CHILDREN & ADULTS,1,OLDER PEOPLE,DOMICILIARY CARE - BLOCK,4240,,07/11/2022,23243864,420,27968,INVICTA CARE AND TRAINING LTD
INSERTED DETAIL,,Ealing Council,http://opendatacommunities.org/id/london-borough-council/ealing,CHILDREN & ADULTS,1,OLDER PEOPLE,DOMICILIARY CARE - BLOCK,4240,,07/11/2022,23243864,1890,27968,INVICTA CARE AND TRAINING LTD
INSERTED DETAIL,,Ealing Council,http://opendatacommunities.org/id/london-borough-council/ealing,CHILDREN & ADULTS,1,OLDER PEOPLE,DOMICILIARY CARE - BLOCK,4240,,07/11/2022,23243864,735,27968,INVICTA CARE AND TRAINING LTD
INSERTED DETAIL,,Ealing Council,http://opendatacommunities.org/id/london-borough-council/ealing,CHILDREN & ADULTS,1,OLDER PEOPLE,DOMICILIARY CARE - BLOCK,4240,,07/11/2022,23243864,945,27968,INVICTA CARE AND TRAINING LTD
INSERTED DETAIL,,Ealing Council,http://opendatacommunities.org/id/london-borough-council/ealing,CHILDREN & ADULTS,1,OLDER PEOPLE,DOMICILIARY CARE - BLOCK,4240,,07/11/2022,23243864,1890,27968,INVICTA CARE AND TRAINING LTD
INSERTED DETAIL,,Ealing Council,http://opendatacommunities.org/id/london-borough-council/ealing,CHILDREN & ADULTS,1,OLDER PEOPLE,DOMICILIARY CARE - BLOCK,4240,,07/11/2022,23243864,1260,27968,INVICTA CARE AND TRAINING LTD
INSERTED DETAIL,,Ealing Council,http://opendatacommunities.org/id/london-borough-council/ealing,CHILDREN & ADULTS,1,OLDER PEOPLE,DOMICILIARY CARE - BLOCK,4240,,07/11/2022,23243864,524.44,27968,INVICTA CARE AND TRAINING LTD
INSERTED DETAIL,,Ealing Council,http://opendatacommunities.org/id/london-borough-council/ealing,CHILDREN & ADULTS,1,OLDER PEOPLE,DOMICILIARY CARE - BLOCK,4240,,07/11/2022,23243864,810,27968,INVICTA CARE AND TRAINING LTD
INSERTED DETAIL,,Ealing Council,http://opendatacommunities.org/id/london-borough-council/ealing,CHILDREN & ADULTS,1,OLDER PEOPLE,DOMICILIARY CARE - BLOCK,4240,,07/11/2022,23243864,337.5,27968,INVICTA CARE AND TRAINING LTD
INSERTED DETAIL,,Ealing Council,http://opendatacommunities.org/id/london-borough-council/ealing,CHILDREN & ADULTS,1,OLDER PEOPLE,DOMICILIARY CARE - BLOCK,4240,,07/11/2022,23243864,630,27968,INVICTA CARE AND TRAINING LTD
INSERTED DETAIL,,Ealing Council,http://opendatacommunities.org/id/london-borough-council/ealing,CHILDREN & ADULTS,1,OLDER PEOPLE,DOMICILIARY CARE - BLOCK,4240,,07/11/2022,23243864,1470,27968,INVICTA CARE AND TRAINING LTD
INSERTED DETAIL,,Ealing Council,http://opendatacommunities.org/id/london-borough-council/ealing,CHILDREN & ADULTS,1,OLDER PEOPLE,DOMICILIARY CARE - BLOCK,4240,,07/11/2022,23243864,2730,27968,INVICTA CARE AND TRAINING LTD
INSERTED DETAIL,,Ealing Council,http://opendatacommunities.org/id/london-borough-council/ealing,CHILDREN & ADULTS,1,OLDER PEOPLE,DOMICILIARY CARE - BLOCK,4240,,07/11/2022,23243864,672,27968,INVICTA CARE AND TRAINING LTD
INSERTED DETAIL,,Ealing Council,http://opendatacommunities.org/id/london-borough-council/ealing,CHILDREN & ADULTS,1,OLDER PEOPLE,DOMICILIARY CARE - BLOCK,4240,,07/11/2022,23243864,260,27968,INVICTA CARE AND TRAINING LTD
INSERTED DETAIL,,Ealing Council,http://opendatacommunities.org/id/london-borough-council/ealing,CHILDREN & ADULTS,1,OLDER PEOPLE,DOMICILIARY CARE - BLOCK,4240,,07/11/2022,23243864,784,27968,INVICTA CARE AND TRAINING LTD
INSERTED DETAIL,,Ealing Council,http://opendatacommunities.org/id/london-borough-council/ealing,CHILDREN & ADULTS,1,OLDER PEOPLE,DOMICILIARY CARE - BLOCK,4240,,07/11/2022,23243864,1008,27968,INVICTA CARE AND TRAINING LTD
INSERTED DETAIL,,Ealing Council,http://opendatacommunities.org/id/london-borough-council/ealing,CHILDREN & ADULTS,1,EALING SERVICE FOR CHILDREN WITH ADDITIONAL NEEDS,DOMICILIARY CARE - BLOCK,4240,,07/11/2022,23242390,699.84,25216,OLAM QUALITY CARE LTD - T/A CAREMARK EALING
INSERTED DETAIL,,Ealing Council,http://opendatacommunities.org/id/london-borough-council/ealing,CHILDREN & ADULTS,1,EALING SERVICE FOR CHILDREN WITH ADDITIONAL NEEDS,DOMICILIARY CARE - BLOCK,4240,,07/11/2022,23242390,472.56,25216,OLAM QUALITY CARE LTD - T/A CAREMARK EALING
INSERTED DETAIL,,Ealing Council,http://opendatacommunities.org/id/london-borough-council/ealing,CHILDREN & ADULTS,1,EALING SERVICE FOR CHILDREN WITH ADDITIONAL NEEDS,DOMICILIARY CARE - BLOCK,4240,,07/11/2022,23242390,-455,25216,OLAM QUALITY CARE LTD - T/A CAREMARK EALING
INSERTED DETAIL,,Ealing Council,http://opendatacommunities.org/id/london-borough-council/ealing,CHILDREN & ADULTS,1,EALING SERVICE FOR CHILDREN WITH ADDITIONAL NEEDS,DOMICILIARY CARE - BLOCK,4240,,07/11/2022,23242390,-1364,25216,OLAM QUALITY CARE LTD - T/A CAREMARK EALING
INSERTED DETAIL,,Ealing Council,http://opendatacommunities.org/id/london-borough-council/ealing,CHILDREN & ADULTS,1,EALING SERVICE FOR CHILDREN WITH ADDITIONAL NEEDS,DOMICILIARY CARE - BLOCK,4240,,07/11/2022,23242390,1600,25216,OLAM QUALITY CARE LTD - T/A CAREMARK EALING
INSERTED DETAIL,,Ealing Council,http://opendatacommunities.org/id/london-borough-council/ealing,CHILDREN & ADULTS,1,EALING SERVICE FOR CHILDREN WITH ADDITIONAL NEEDS,DOMICILIARY CARE - BLOCK,4240,,07/11/2022,23242390,2460,25216,OLAM QUALITY CARE LTD - T/A CAREMARK EALING
INSERTED DETAIL,,Ealing Council,http://opendatacommunities.org/id/london-borough-council/ealing,CHILDREN & ADULTS,1,EALING SERVICE FOR CHILDREN WITH ADDITIONAL NEEDS,DOMICILIARY CARE - BLOCK,4240,,07/11/2022,23242390,3015,25216,OLAM QUALITY CARE LTD - T/A CAREMARK EALING
INSERTED DETAIL,,Ealing Council,http://opendatacommunities.org/id/london-borough-council/ealing,CHILDREN & ADULTS,1,EALING SERVICE FOR CHILDREN WITH ADDITIONAL NEEDS,DOMICILIARY CARE - BLOCK,4240,,07/11/2022,23242390,1105,25216,OLAM QUALITY CARE LTD - T/A CAREMARK EALING
INSERTED DETAIL,,Ealing Council,http://opendatacommunities.org/id/london-borough-council/ealing,CHILDREN & ADULTS,1,EALING SERVICE FOR CHILDREN WITH ADDITIONAL NEEDS,DOMICILIARY CARE - BLOCK,4240,,07/11/2022,23242390,300,25216,OLAM QUALITY CARE LTD - T/A CAREMARK EALING
INSERTED DETAIL,,Ealing Council,http://opendatacommunities.org/id/london-borough-council/ealing,CHILDREN & ADULTS,1,EALING SERVICE FOR CHILDREN WITH ADDITIONAL NEEDS,DOMICILIARY CARE - BLOCK,4240,,07/11/2022,23242390,2010,25216,OLAM QUALITY CARE LTD - T/A CAREMARK EALING
INSERTED DETAIL,,Ealing Council,http://opendatacommunities.org/id/london-borough-council/ealing,CHILDREN & ADULTS,1,EALING SERVICE FOR CHILDREN WITH ADDITIONAL NEEDS,DOMICILIARY CARE - BLOCK,4240,,07/11/2022,23242390,9600,25216,OLAM QUALITY CARE LTD - T/A CAREMARK EALING
INSERTED DETAIL,,Ealing Council,http://opendatacommunities.org/id/london-borough-council/ealing,CHILDREN & ADULTS,1,EALING SERVICE FOR CHILDREN WITH ADDITIONAL NEEDS,DOMICILIARY CARE - BLOCK,4240,,07/11/2022,23242390,2400,25216,OLAM QUALITY CARE LTD - T/A CAREMARK EALING
INSERTED DETAIL,,Ealing Council,http://opendatacommunities.org/id/london-borough-council/ealing,CHILDREN & ADULTS,1,EALING SERVICE FOR CHILDREN WITH ADDITIONAL NEEDS,DOMICILIARY CARE - BLOCK,4240,,07/11/2022,23242390,2390.4,25216,OLAM QUALITY CARE LTD - T/A CAREMARK EALING
INSERTED DETAIL,,Ealing Council,http://opendatacommunities.org/id/london-borough-council/ealing,CHILDREN & ADULTS,1,EALING SERVICE FOR CHILDREN WITH ADDITIONAL NEEDS,DOMICILIARY CARE - BLOCK,4240,,07/11/2022,23242390,792,25216,OLAM QUALITY CARE LTD - T/A CAREMARK EALING
INSERTED DETAIL,,Ealing Council,http://opendatacommunities.org/id/london-borough-council/ealing,CHILDREN & ADULTS,1,EALING SERVICE FOR CHILDREN WITH ADDITIONAL NEEDS,DOMICILIARY CARE - BLOCK,4240,,07/11/2022,23242390,1968,25216,OLAM QUALITY CARE LTD - T/A CAREMARK EALING
INSERTED DETAIL,,Ealing Council,http://opendatacommunities.org/id/london-borough-council/ealing,CHILDREN & ADULTS,1,EALING SERVICE FOR CHILDREN WITH ADDITIONAL NEEDS,DOMICILIARY CARE - BLOCK,4240,,07/11/2022,23242390,434,25216,OLAM QUALITY CARE LTD - T/A CAREMARK EALING
INSERTED DETAIL,,Ealing Council,http://opendatacommunities.org/id/london-borough-council/ealing,CHILDREN & ADULTS,1,EALING SERVICE FOR CHILDREN WITH ADDITIONAL NEEDS,DOMICILIARY CARE - BLOCK,4240,,07/11/2022,23242390,256,25216,OLAM QUALITY CARE LTD - T/A CAREMARK EALING
INSERTED DETAIL,,Ealing Council,http://opendatacommunities.org/id/london-borough-council/ealing,CHILDREN & ADULTS,1,EALING SERVICE FOR CHILDREN WITH ADDITIONAL NEEDS,DOMICILIARY CARE - BLOCK,4240,,07/11/2022,23242390,1024,25216,OLAM QUALITY CARE LTD - T/A CAREMARK EALING
INSERTED DETAIL,,Ealing Council,http://opendatacommunities.org/id/london-borough-council/ealing,CHILDREN & ADULTS,1,EALING SERVICE FOR CHILDREN WITH ADDITIONAL NEEDS,DOMICILIARY CARE - BLOCK,4240,,07/11/2022,23242390,512,25216,OLAM QUALITY CARE LTD - T/A CAREMARK EALING
INSERTED DETAIL,,Ealing Council,http://opendatacommunities.org/id/london-borough-council/ealing,CHILDREN & ADULTS,1,EALING SERVICE FOR CHILDREN WITH ADDITIONAL NEEDS,DOMICILIARY CARE - BLOCK,4240,,07/11/2022,23242390,1302,25216,OLAM QUALITY CARE LTD - T/A CAREMARK EALING
INSERTED DETAIL,,Ealing Council,http://opendatacommunities.org/id/london-borough-council/ealing,CHILDREN & ADULTS,1,EALING SERVICE FOR CHILDREN WITH ADDITIONAL NEEDS,DOMICILIARY CARE - BLOCK,4240,,07/11/2022,23242390,699.6,25216,OLAM QUALITY CARE LTD - T/A CAREMARK EALING
INSERTED DETAIL,,Ealing Council,http://opendatacommunities.org/id/london-borough-council/ealing,CHILDREN & ADULTS,1,EALING SERVICE FOR CHILDREN WITH ADDITIONAL NEEDS,DOMICILIARY CARE - BLOCK,4240,,07/11/2022,23242390,384,25216,OLAM QUALITY CARE LTD - T/A CAREMARK EALING
INSERTED DETAIL,,Ealing Council,http://opendatacommunities.org/id/london-borough-council/ealing,CHILDREN & ADULTS,1,EALING SERVICE FOR CHILDREN WITH ADDITIONAL NEEDS,DOMICILIARY CARE - BLOCK,4240,,07/11/2022,23242390,1152,25216,OLAM QUALITY CARE LTD - T/A CAREMARK EALING
INSERTED DETAIL,,Ealing Council,http://opendatacommunities.org/id/london-borough-council/ealing,CHILDREN & ADULTS,1,EALING SERVICE FOR CHILDREN WITH ADDITIONAL NEEDS,DOMICILIARY CARE - BLOCK,4240,,07/11/2022,23242390,542.4,25216,OLAM QUALITY CARE LTD - T/A CAREMARK EALING
INSERTED DETAIL,,Ealing Council,http://opendatacommunities.org/id/london-borough-council/ealing,CHILDREN & ADULTS,1,EALING SERVICE FOR CHILDREN WITH ADDITIONAL NEEDS,DOMICILIARY CARE - BLOCK,4240,,07/11/2022,23242390,256,25216,OLAM QUALITY CARE LTD - T/A CAREMARK EALING
INSERTED DETAIL,,Ealing Council,http://opendatacommunities.org/id/london-borough-council/ealing,CHILDREN & ADULTS,1,EALING SERVICE FOR CHILDREN WITH ADDITIONAL NEEDS,DOMICILIARY CARE - BLOCK,4240,,07/11/2022,23242390,406.8,25216,OLAM QUALITY CARE LTD - T/A CAREMARK EALING
INSERTED DETAIL,,Ealing Council,http://opendatacommunities.org/id/london-borough-council/ealing,CHILDREN & ADULTS,1,EALING SERVICE FOR CHILDREN WITH ADDITIONAL NEEDS,DOMICILIARY CARE - BLOCK,4240,,07/11/2022,23242390,1152,25216,OLAM QUALITY CARE LTD - T/A CAREMARK EALING
INSERTED DETAIL,,Ealing Council,http://opendatacommunities.org/id/london-borough-council/ealing,CHILDREN & ADULTS,1,EALING SERVICE FOR CHILDREN WITH ADDITIONAL NEEDS,DOMICILIARY CARE - BLOCK,4240,,07/11/2022,23242390,558,25216,OLAM QUALITY CARE LTD - T/A CAREMARK EALING
INSERTED DETAIL,,Ealing Council,http://opendatacommunities.org/id/london-borough-council/ealing,CHILDREN & ADULTS,1,EALING SERVICE FOR CHILDREN WITH ADDITIONAL NEEDS,DOMICILIARY CARE - BLOCK,4240,,07/11/2022,23242390,1116,25216,OLAM QUALITY CARE LTD - T/A CAREMARK EALING
INSERTED DETAIL,,Ealing Council,http://opendatacommunities.org/id/london-borough-council/ealing,CHILDREN & ADULTS,1,EALING SERVICE FOR CHILDREN WITH ADDITIONAL NEEDS,DOMICILIARY CARE - BLOCK,4240,,07/11/2022,23242391,257.12,25292,ALLFOR CARE
INSERTED DETAIL,,Ealing Council,http://opendatacommunities.org/id/london-borough-council/ealing,CHILDREN & ADULTS,1,EALING SERVICE FOR CHILDREN WITH ADDITIONAL NEEDS,DOMICILIARY CARE - BLOCK,4240,,07/11/2022,23242391,1170,25292,ALLFOR CARE
INSERTED DETAIL,,Ealing Council,http://opendatacommunities.org/id/london-borough-council/ealing,CHILDREN & ADULTS,1,EALING SERVICE FOR CHILDREN WITH ADDITIONAL NEEDS,DOMICILIARY CARE - BLOCK,4240,,07/11/2022,23242391,4680,25292,ALLFOR CARE
INSERTED DETAIL,,Ealing Council,http://opendatacommunities.org/id/london-borough-council/ealing,CHILDREN & ADULTS,1,EALING SERVICE FOR CHILDREN WITH ADDITIONAL NEEDS,DOMICILIARY CARE - BLOCK,4240,,07/11/2022,23242391,754.56,25292,ALLFOR CARE
INSERTED DETAIL,,Ealing Council,http://opendatacommunities.org/id/london-borough-council/ealing,CHILDREN & ADULTS,1,EALING SERVICE FOR CHILDREN WITH ADDITIONAL NEEDS,DOMICILIARY CARE - BLOCK,4240,,07/11/2022,23242391,377.28,25292,ALLFOR CARE
INSERTED DETAIL,,Ealing Council,http://opendatacommunities.org/id/london-borough-council/ealing,CHILDREN & ADULTS,1,EALING SERVICE FOR CHILDREN WITH ADDITIONAL NEEDS,DOMICILIARY CARE - BLOCK,4240,,07/11/2022,23242391,468,25292,ALLFOR CARE
INSERTED DETAIL,,Ealing Council,http://opendatacommunities.org/id/london-borough-council/ealing,CHILDREN & ADULTS,1,EALING SERVICE FOR CHILDREN WITH ADDITIONAL NEEDS,DOMICILIARY CARE - BLOCK,4240,,07/11/2022,23242391,562.08,25292,ALLFOR CARE
INSERTED DETAIL,,Ealing Council,http://opendatacommunities.org/id/london-borough-council/ealing,CHILDREN & ADULTS,1,EALING SERVICE FOR CHILDREN WITH ADDITIONAL NEEDS,DOMICILIARY CARE - BLOCK,4240,,07/11/2022,23242391,385.68,25292,ALLFOR CARE
INSERTED DETAIL,,Ealing Council,http://opendatacommunities.org/id/london-borough-council/ealing,CHILDREN & ADULTS,1,EALING SERVICE FOR CHILDREN WITH ADDITIONAL NEEDS,DOMICILIARY CARE - BLOCK,4240,,07/11/2022,23242391,642.8,25292,ALLFOR CARE
INSERTED DETAIL,,Ealing Council,http://opendatacommunities.org/id/london-borough-council/ealing,CHILDREN & ADULTS,1,EALING SERVICE FOR CHILDREN WITH ADDITIONAL NEEDS,DOMICILIARY CARE - BLOCK,4240,,07/11/2022,23242391,642.8,25292,ALLFOR CARE
INSERTED DETAIL,,Ealing Council,http://opendatacommunities.org/id/london-borough-council/ealing,CHILDREN & ADULTS,1,EALING SERVICE FOR CHILDREN WITH ADDITIONAL NEEDS,DOMICILIARY CARE - BLOCK,4240,,07/11/2022,23242391,-777.6,25292,ALLFOR CARE
INSERTED DETAIL,,Ealing Council,http://opendatacommunities.org/id/london-borough-council/ealing,CHILDREN & ADULTS,1,EALING SERVICE FOR CHILDREN WITH ADDITIONAL NEEDS,DOMICILIARY CARE - BLOCK,4240,,07/11/2022,23242391,-1446.3,25292,ALLFOR CARE
INSERTED DETAIL,,Ealing Council,http://opendatacommunities.org/id/london-borough-council/ealing,CHILDREN & ADULTS,1,EALING SERVICE FOR CHILDREN WITH ADDITIONAL NEEDS,DOMICILIARY CARE - BLOCK,4240,,07/11/2022,23242391,312,25292,ALLFOR CARE
INSERTED DETAIL,,Ealing Council,http://opendatacommunities.org/id/london-borough-council/ealing,CHILDREN & ADULTS,1,EALING SERVICE FOR CHILDREN WITH ADDITIONAL NEEDS,DOMICILIARY CARE - BLOCK,4240,,07/11/2022,23242391,257.12,25292,ALLFOR CARE
INSERTED DETAIL,,Ealing Council,http://opendatacommunities.org/id/london-borough-council/ealing,CHILDREN & ADULTS,1,EALING SERVICE FOR CHILDREN WITH ADDITIONAL NEEDS,DOMICILIARY CARE - BLOCK,4240,,07/11/2022,23242391,1705.2,25292,ALLFOR CARE
INSERTED DETAIL,,Ealing Council,http://opendatacommunities.org/id/london-borough-council/ealing,CHILDREN & ADULTS,1,EALING SERVICE FOR CHILDREN WITH ADDITIONAL NEEDS,DOMICILIARY CARE - BLOCK,4240,,07/11/2022,23242391,880.32,25292,ALLFOR CARE
INSERTED DETAIL,,Ealing Council,http://opendatacommunities.org/id/london-borough-council/ealing,CHILDREN & ADULTS,1,EALING SERVICE FOR CHILDREN WITH ADDITIONAL NEEDS,DOMICILIARY CARE - BLOCK,4240,,07/11/2022,23242391,780,25292,ALLFOR CARE
INSERTED DETAIL,,Ealing Council,http://opendatacommunities.org/id/london-borough-council/ealing,CHILDREN & ADULTS,1,EALING SERVICE FOR CHILDREN WITH ADDITIONAL NEEDS,DOMICILIARY CARE - BLOCK,4240,,07/11/2022,23242391,-8343,25292,ALLFOR CARE
INSERTED DETAIL,,Ealing Council,http://opendatacommunities.org/id/london-borough-council/ealing,CHILDREN & ADULTS,1,EALING SERVICE FOR CHILDREN WITH ADDITIONAL NEEDS,DOMICILIARY CARE - BLOCK,4240,,07/11/2022,23242391,-4457.1,25292,ALLFOR CARE
INSERTED DETAIL,,Ealing Council,http://opendatacommunities.org/id/london-borough-council/ealing,CHILDREN & ADULTS,1,EALING SERVICE FOR CHILDREN WITH ADDITIONAL NEEDS,DOMICILIARY CARE - BLOCK,4240,,07/11/2022,23242391,690.48,25292,ALLFOR CARE
INSERTED DETAIL,,Ealing Council,http://opendatacommunities.org/id/london-borough-council/ealing,CHILDREN & ADULTS,1,EALING SERVICE FOR CHILDREN WITH ADDITIONAL NEEDS,DOMICILIARY CARE - BLOCK,4240,,07/11/2022,23242391,1806.56,25292,ALLFOR CARE
INSERTED DETAIL,,Ealing Council,http://opendatacommunities.org/id/london-borough-council/ealing,CHILDREN & ADULTS,1,EALING SERVICE FOR CHILDREN WITH ADDITIONAL NEEDS,DOMICILIARY CARE - BLOCK,4240,,07/11/2022,23242391,468,25292,ALLFOR CARE
INSERTED DETAIL,,Ealing Council,http://opendatacommunities.org/id/london-borough-council/ealing,CHILDREN & ADULTS,1,EALING SERVICE FOR CHILDREN WITH ADDITIONAL NEEDS,DOMICILIARY CARE - BLOCK,4240,,07/11/2022,23242391,739.04,25292,ALLFOR CARE
INSERTED DETAIL,,Ealing Council,http://opendatacommunities.org/id/london-borough-council/ealing,CHILDREN & ADULTS,1,EALING SERVICE FOR CHILDREN WITH ADDITIONAL NEEDS,DOMICILIARY CARE - BLOCK,4240,,07/11/2022,23242391,419.2,25292,ALLFOR CARE
INSERTED DETAIL,,Ealing Council,http://opendatacommunities.org/id/london-borough-council/ealing,CHILDREN & ADULTS,1,EALING SERVICE FOR CHILDREN WITH ADDITIONAL NEEDS,SOCIAL SERVICES DIRECT PAYMENTS,4231,,01/11/2022,23239204,1047.12,81023,REDACTED SENSITIVE SUPPLIER
INSERTED DETAIL,,Ealing Council,http://opendatacommunities.org/id/london-borough-council/ealing,CHILDREN & ADULTS,1,EALING SERVICE FOR CHILDREN WITH ADDITIONAL NEEDS,CHILDRENS SERVICE -RESPITE CARE SCHEME,4661,,07/11/2022,23242391,780,25292,ALLFOR CARE
INSERTED DETAIL,,Ealing Council,http://opendatacommunities.org/id/london-borough-council/ealing,CHILDREN & ADULTS,1,EALING SERVICE FOR CHILDREN WITH ADDITIONAL NEEDS,CHILDRENS SERVICE -RESPITE CARE SCHEME,4661,,07/11/2022,23242397,985.68,27850,CHILDREN'S COMPLEX CARE LTD
INSERTED DETAIL,,Ealing Council,http://opendatacommunities.org/id/london-borough-council/ealing,CHILDREN & ADULTS,1,EALING SERVICE FOR CHILDREN WITH ADDITIONAL NEEDS,HOME & SCHOOL,2130,,31/08/2022,41035892,748,26869,REDACTED SENSITIVE SUPPLIER
INSERTED DETAIL,,Ealing Council,http://opendatacommunities.org/id/london-borough-council/ealing,CHILDREN & ADULTS,1,EALING SERVICE FOR CHILDREN WITH ADDITIONAL NEEDS,HOME & SCHOOL,2130,,31/08/2022,41035892,2992,26869,REDACTED SENSITIVE SUPPLIER
INSERTED DETAIL,,Ealing Council,http://opendatacommunities.org/id/london-borough-council/ealing,CHILDREN & ADULTS,1,SAFEGUARDING & SUPP - BS &A&F,PAYMENTS TO CONTRACTORS,4000,,06/11/2022,41038028,2210,25902,REDACTED SENSITIVE SUPPLIER
INSERTED DETAIL,,Ealing Council,http://opendatacommunities.org/id/london-borough-council/ealing,CHILDREN & ADULTS,1,SAFEGUARDING & SUPP - BS &A&F,PAYMENTS TO CONTRACTORS,4000,,30/09/2022,41033751,394.8,11872,FAMILY ACTION LTD T/A PAC-UK
INSERTED DETAIL,,Ealing Council,http://opendatacommunities.org/id/london-borough-council/ealing,CHILDREN & ADULTS,1,SAFEGUARDING & SUPP - BS &A&F,PAYMENTS TO CONTRACTORS,4000,,30/09/2022,41033755,1240.47,11872,FAMILY ACTION LTD T/A PAC-UK
INSERTED DETAIL,,Ealing Council,http://opendatacommunities.org/id/london-borough-council/ealing,CHILDREN & ADULTS,1,SAFEGUARDING & SUPP - BS &A&F,PAYMENTS TO CONTRACTORS,4000,,26/10/2022,41034084,940,28815,THE PURPLE ELEPHANT PROJECT
INSERTED DETAIL,,Ealing Council,http://opendatacommunities.org/id/london-borough-council/ealing,CHILDREN & ADULTS,1,SAFEGUARDING & SUPP - BS &A&F,PAYMENTS TO CONTRACTORS,4000,,26/10/2022,41034085,515,28815,THE PURPLE ELEPHANT PROJECT
INSERTED DETAIL,,Ealing Council,http://opendatacommunities.org/id/london-borough-council/ealing,CHILDREN & ADULTS,1,SAFEGUARDING & SUPP - BS &A&F,PAYMENTS TO CONTRACTORS,4000,,26/10/2022,41034086,410,28815,THE PURPLE ELEPHANT PROJECT
INSERTED DETAIL,,Ealing Council,http://opendatacommunities.org/id/london-borough-council/ealing,CHILDREN & ADULTS,1,SAFEGUARDING & SUPP - BS &A&F,PAYMENTS TO CONTRACTORS,4000,,26/10/2022,41034099,735,28815,THE PURPLE ELEPHANT PROJECT
INSERTED DETAIL,,Ealing Council,http://opendatacommunities.org/id/london-borough-council/ealing,CHILDREN & ADULTS,1,SAFEGUARDING & SUPP - BS &A&F,PAYMENTS TO CONTRACTORS,4000,,26/10/2022,41034100,315,28815,THE PURPLE ELEPHANT PROJECT
INSERTED DETAIL,,Ealing Council,http://opendatacommunities.org/id/london-borough-council/ealing,CHILDREN & ADULTS,1,SAFEGUARDING & SUPP - BS &A&F,PAYMENTS TO CONTRACTORS,4000,,26/10/2022,41034101,725,28815,THE PURPLE ELEPHANT PROJECT
INSERTED DETAIL,,Ealing Council,http://opendatacommunities.org/id/london-borough-council/ealing,CHILDREN & ADULTS,1,SAFEGUARDING & SUPP - BS &A&F,PAYMENTS TO CONTRACTORS,4000,,09/10/2022,41033436,300,29369,HIRAETH SERVICES LTD T/A COPE COMMUNITY
INSERTED DETAIL,,Ealing Council,http://opendatacommunities.org/id/london-borough-council/ealing,CHILDREN & ADULTS,1,SAFEGUARDING & SUPP - BS &A&F,PAYMENTS TO CONTRACTORS,4000,,13/10/2022,41034076,340,29645,TMC PSYCHOLOGY LTD
INSERTED DETAIL,,Ealing Council,http://opendatacommunities.org/id/london-borough-council/ealing,CHILDREN & ADULTS,1,SAFEGUARDING & SUPP - BS &A&F,PAYMENTS TO CONTRACTORS,4000,,13/10/2022,41034080,700,29645,TMC PSYCHOLOGY LTD
INSERTED DETAIL,,Ealing Council,http://opendatacommunities.org/id/london-borough-council/ealing,CHILDREN & ADULTS,1,SAFEGUARDING & SUPP - BS &A&F,PAYMENTS TO CONTRACTORS,4000,,11/11/2022,41038880,1010,29645,TMC PSYCHOLOGY LTD
INSERTED DETAIL,,Ealing Council,http://opendatacommunities.org/id/london-borough-council/ealing,CHILDREN & ADULTS,1,SAFEGUARDING & SUPP - BS &A&F,PAYMENTS TO CONTRACTORS,4000,,10/11/2022,41038539,680,13929,PACT
INSERTED DETAIL,,Ealing Council,http://opendatacommunities.org/id/london-borough-council/ealing,CHILDREN & ADULTS,1,SAFEGUARDING & SUPP - BS &A&F,PAYMENTS TO CONTRACTORS,4000,,02/11/2022,41036873,1130,13929,PACT
INSERTED DETAIL,,Ealing Council,http://opendatacommunities.org/id/london-borough-council/ealing,CHILDREN & ADULTS,1,SAFEGUARDING & SUPP - BS &A&F,PAYMENTS TO CONTRACTORS,4000,,20/10/2022,41036458,285,29496,REDACTED SENSITIVE SUPPLIER
INSERTED DETAIL,,Ealing Council,http://opendatacommunities.org/id/london-borough-council/ealing,CHILDREN & ADULTS,1,SAFEGUARDING & SUPP - BS &A&F,PAYMENTS TO CONTRACTORS,4000,,01/09/2022,41035264,1290,29519,STERLING PRACTICE LTD
INSERTED DETAIL,,Ealing Council,http://opendatacommunities.org/id/london-borough-council/ealing,CHILDREN & ADULTS,1,SAFEGUARDING & SUPP - BS &A&F,PAYMENTS TO CONTRACTORS,4000,,22/04/2022,41036733,310,29759,LIGHTNSHADE COUPLES & FAMILY THERAPY LTD
INSERTED DETAIL,,Ealing Council,http://opendatacommunities.org/id/london-borough-council/ealing,CHILDREN & ADULTS,1,SAFEGUARDING & SUPP - BS &A&F,PAYMENTS TO CONTRACTORS,4000,,28/01/2022,41036743,310,29759,LIGHTNSHADE COUPLES & FAMILY THERAPY LTD
INSERTED DETAIL,,Ealing Council,http://opendatacommunities.org/id/london-borough-council/ealing,CHILDREN & ADULTS,1,SAFEGUARDING & SUPP - BS &A&F,PAYMENTS TO CONTRACTORS,4000,,31/08/2022,41037035,280,28744,REDACTED SENSITIVE SUPPLIER
INSERTED DETAIL,,Ealing Council,http://opendatacommunities.org/id/london-borough-council/ealing,CHILDREN & ADULTS,1,SAFEGUARDING & SUPP - BS &A&F,PAYMENTS TO CONTRACTORS,4000,,27/10/2022,41036026,1440,25896,REDACTED SENSITIVE SUPPLIER
INSERTED DETAIL,,Ealing Council,http://opendatacommunities.org/id/london-borough-council/ealing,CHILDREN & ADULTS,1,SAFEGUARDING & SUPP - BS &A&F,PAYMENTS TO CONTRACTORS,4000,,26/10/2022,41036029,300,28798,REDACTED SENSITIVE SUPPLIER
INSERTED DETAIL,,Ealing Council,http://opendatacommunities.org/id/london-borough-council/ealing,CHILDREN & ADULTS,1,SAFEGUARDING & SUPP - BS &A&F,PAYMENTS TO CONTRACTORS,4000,,26/10/2022,41036031,700,28798,REDACTED SENSITIVE SUPPLIER
INSERTED DETAIL,,Ealing Council,http://opendatacommunities.org/id/london-borough-council/ealing,CHILDREN & ADULTS,1,SAFEGUARDING & SUPP - BS &A&F,PAYMENTS TO CONTRACTORS,4000,,26/10/2022,41036033,500,28798,REDACTED SENSITIVE SUPPLIER
INSERTED DETAIL,,Ealing Council,http://opendatacommunities.org/id/london-borough-council/ealing,CHILDREN & ADULTS,1,SAFEGUARDING & SUPP - BS &A&F,PAYMENTS TO CONTRACTORS,4000,,26/10/2022,41036034,450,28798,REDACTED SENSITIVE SUPPLIER
INSERTED DETAIL,,Ealing Council,http://opendatacommunities.org/id/london-borough-council/ealing,CHILDREN & ADULTS,1,SAFEGUARDING & SUPP - BS &A&F,PAYMENTS TO CONTRACTORS,4000,,26/10/2022,41036037,300,28798,REDACTED SENSITIVE SUPPLIER
INSERTED DETAIL,,Ealing Council,http://opendatacommunities.org/id/london-borough-council/ealing,CHILDREN & ADULTS,1,SAFEGUARDING & SUPP - BS &A&F,PAYMENTS TO CONTRACTORS,4000,,26/10/2022,41036038,500,28798,REDACTED SENSITIVE SUPPLIER
INSERTED DETAIL,,Ealing Council,http://opendatacommunities.org/id/london-borough-council/ealing,CHILDREN & ADULTS,1,SAFEGUARDING & SUPP - BS &A&F,PAYMENTS TO CONTRACTORS,4000,,26/10/2022,41036039,400,28798,REDACTED SENSITIVE SUPPLIER
INSERTED DETAIL,,Ealing Council,http://opendatacommunities.org/id/london-borough-council/ealing,CHILDREN & ADULTS,1,SAFEGUARDING & SUPP - BS &A&F,PAYMENTS TO CONTRACTORS,4000,,26/10/2022,41036042,400,28798,REDACTED SENSITIVE SUPPLIER
INSERTED DETAIL,,Ealing Council,http://opendatacommunities.org/id/london-borough-council/ealing,CHILDREN & ADULTS,1,SAFEGUARDING & SUPP - BS &A&F,PAYMENTS TO CONTRACTORS,4000,,15/11/2022,41039249,600,28911,REDACTED SENSITIVE SUPPLIER
INSERTED DETAIL,,Ealing Council,http://opendatacommunities.org/id/london-borough-council/ealing,CHILDREN & ADULTS,1,SAFEGUARDING & SUPP - BS &A&F,PAYMENTS TO CONTRACTORS,4000,,15/11/2022,41039250,600,28911,REDACTED SENSITIVE SUPPLIER
INSERTED DETAIL,,Ealing Council,http://opendatacommunities.org/id/london-borough-council/ealing,CHILDREN & ADULTS,1,SAFEGUARDING & SUPP - BS &A&F,PAYMENTS TO CONTRACTORS,4000,,10/11/2022,41036662,1209,29862,CHROMA THERAPIES LTD T/A CHROMA
INSERTED DETAIL,,Ealing Council,http://opendatacommunities.org/id/london-borough-council/ealing,CHILDREN & ADULTS,1,DISABILITIES,RESIDENTIAL HOMES EXTERNAL,4220,,06/11/2022,23252888,10228.44,12213,GROVE CARE PARTNERSHIP LTD
INSERTED DETAIL,,Ealing Council,http://opendatacommunities.org/id/london-borough-council/ealing,CHILDREN & ADULTS,1,DISABILITIES,RESIDENTIAL HOMES EXTERNAL,4220,,06/11/2022,23252892,8052,12213,GROVE CARE PARTNERSHIP LTD
INSERTED DETAIL,,Ealing Council,http://opendatacommunities.org/id/london-borough-council/ealing,CHILDREN & ADULTS,1,DISABILITIES,RESIDENTIAL HOMES EXTERNAL,4220,,06/11/2022,23252892,5994,12213,GROVE CARE PARTNERSHIP LTD
INSERTED DETAIL,,Ealing Council,http://opendatacommunities.org/id/london-borough-council/ealing,CHILDREN & ADULTS,1,DISABILITIES,RESIDENTIAL HOMES EXTERNAL,4220,,06/11/2022,23252894,8008.44,12213,GROVE CARE PARTNERSHIP LTD
INSERTED DETAIL,,Ealing Council,http://opendatacommunities.org/id/london-borough-council/ealing,CHILDREN & ADULTS,1,DISABILITIES,RESIDENTIAL HOMES EXTERNAL,4220,,06/11/2022,23252894,2045.4,12213,GROVE CARE PARTNERSHIP LTD
INSERTED DETAIL,,Ealing Council,http://opendatacommunities.org/id/london-borough-council/ealing,CHILDREN & ADULTS,1,DISABILITIES,SOCIAL SERVICES CONTRACTUAL CARERS ALLOWANCES,4380,,04/10/2022,41032734,1491.72,12140,GOLDEN LANE HOUSING LTD
INSERTED DETAIL,,Ealing Council,http://opendatacommunities.org/id/london-borough-council/ealing,CHILDREN & ADULTS,1,DISABILITIES,SOCIAL SERVICES CONTRACTUAL CARERS ALLOWANCES,4380,,04/10/2022,41032746,1497.48,12140,GOLDEN LANE HOUSING LTD
INSERTED DETAIL,,Ealing Council,http://opendatacommunities.org/id/london-borough-council/ealing,CHILDREN & ADULTS,1,DISABILITIES,SOCIAL SERVICES CONTRACTUAL CARERS ALLOWANCES,4380,,04/10/2022,41032757,1431.48,12140,GOLDEN LANE HOUSING LTD
INSERTED DETAIL,,Ealing Council,http://opendatacommunities.org/id/london-borough-council/ealing,CHILDREN & ADULTS,1,DISABILITIES,SOCIAL SERVICES DIRECT PAYMENTS,4231,,31/10/2022,23239131,368.24,80701,REDACTED SENSITIVE SUPPLIER
INSERTED DETAIL,,Ealing Council,http://opendatacommunities.org/id/london-borough-council/ealing,CHILDREN & ADULTS,1,DISABILITIES,SOCIAL SERVICES DIRECT PAYMENTS,4231,,31/10/2022,23239140,1610.72,80674,REDACTED SENSITIVE SUPPLIER
INSERTED DETAIL,,Ealing Council,http://opendatacommunities.org/id/london-borough-council/ealing,CHILDREN & ADULTS,1,DISABILITIES,SUPPORTED LIVING,4236,,03/11/2022,23241359,-16636.53,15494,UNITED RESPONSE
INSERTED DETAIL,,Ealing Council,http://opendatacommunities.org/id/london-borough-council/ealing,CHILDREN & ADULTS,1,DISABILITIES,SUPPORTED LIVING,4236,,03/11/2022,23241359,17784.41,15494,UNITED RESPONSE
INSERTED DETAIL,,Ealing Council,http://opendatacommunities.org/id/london-borough-council/ealing,CHILDREN & ADULTS,1,DISABILITIES,SUPPORTED LIVING,4236,,03/11/2022,23241359,-16636.53,15494,UNITED RESPONSE
INSERTED DETAIL,,Ealing Council,http://opendatacommunities.org/id/london-borough-council/ealing,CHILDREN & ADULTS,1,DISABILITIES,SUPPORTED LIVING,4236,,03/11/2022,23241359,17784.41,15494,UNITED RESPONSE
INSERTED DETAIL,,Ealing Council,http://opendatacommunities.org/id/london-borough-council/ealing,CHILDREN & ADULTS,1,DISABILITIES,SUPPORTED LIVING,4236,,03/11/2022,23241359,-16636.53,15494,UNITED RESPONSE
INSERTED DETAIL,,Ealing Council,http://opendatacommunities.org/id/london-borough-council/ealing,CHILDREN & ADULTS,1,DISABILITIES,SUPPORTED LIVING,4236,,03/11/2022,23241359,17784.41,15494,UNITED RESPONSE
INSERTED DETAIL,,Ealing Council,http://opendatacommunities.org/id/london-borough-council/ealing,CHILDREN & ADULTS,1,DISABILITIES,SUPPORTED LIVING,4236,,03/11/2022,23241359,-16636.53,15494,UNITED RESPONSE
INSERTED DETAIL,,Ealing Council,http://opendatacommunities.org/id/london-borough-council/ealing,CHILDREN & ADULTS,1,DISABILITIES,SUPPORTED LIVING,4236,,03/11/2022,23241359,17784.41,15494,UNITED RESPONSE
INSERTED DETAIL,,Ealing Council,http://opendatacommunities.org/id/london-borough-council/ealing,CHILDREN & ADULTS,1,DISABILITIES,SUPPORTED LIVING,4236,,03/11/2022,23241359,-16636.53,15494,UNITED RESPONSE
INSERTED DETAIL,,Ealing Council,http://opendatacommunities.org/id/london-borough-council/ealing,CHILDREN & ADULTS,1,DISABILITIES,SUPPORTED LIVING,4236,,03/11/2022,23241359,17784.41,15494,UNITED RESPONSE
INSERTED DETAIL,,Ealing Council,http://opendatacommunities.org/id/london-borough-council/ealing,CHILDREN & ADULTS,1,DISABILITIES,SUPPORTED LIVING,4236,,03/11/2022,23241359,-16636.53,15494,UNITED RESPONSE
INSERTED DETAIL,,Ealing Council,http://opendatacommunities.org/id/london-borough-council/ealing,CHILDREN & ADULTS,1,DISABILITIES,SUPPORTED LIVING,4236,,03/11/2022,23241359,17784.41,15494,UNITED RESPONSE
INSERTED DETAIL,,Ealing Council,http://opendatacommunities.org/id/london-borough-council/ealing,CHILDREN & ADULTS,1,DISABILITIES,SUPPORTED LIVING,4236,,09/11/2022,23243523,2593.56,15494,UNITED RESPONSE
INSERTED DETAIL,,Ealing Council,http://opendatacommunities.org/id/london-borough-council/ealing,CHILDREN & ADULTS,1,DISABILITIES,SUPPORTED LIVING,4236,,09/11/2022,23243523,2593.56,15494,UNITED RESPONSE
INSERTED DETAIL,,Ealing Council,http://opendatacommunities.org/id/london-borough-council/ealing,CHILDREN & ADULTS,1,DISABILITIES,SUPPORTED LIVING,4236,,09/11/2022,23243523,2593.56,15494,UNITED RESPONSE
INSERTED DETAIL,,Ealing Council,http://opendatacommunities.org/id/london-borough-council/ealing,CHILDREN & ADULTS,1,DISABILITIES,SUPPORTED LIVING,4236,,09/11/2022,23243523,2593.56,15494,UNITED RESPONSE
INSERTED DETAIL,,Ealing Council,http://opendatacommunities.org/id/london-borough-council/ealing,CHILDREN & ADULTS,1,DISABILITIES,SUPPORTED LIVING,4236,,09/11/2022,23243523,2593.56,15494,UNITED RESPONSE
INSERTED DETAIL,,Ealing Council,http://opendatacommunities.org/id/london-borough-council/ealing,CHILDREN & ADULTS,1,DISABILITIES,SUPPORTED LIVING,4236,,09/11/2022,23243631,2800,26387,INFINITY SERVICES (UK) LIMITED
INSERTED DETAIL,,Ealing Council,http://opendatacommunities.org/id/london-borough-council/ealing,CHILDREN & ADULTS,1,DISABILITIES,SUPPORTED LIVING,4236,,09/11/2022,23243666,3861.4,19568,CONNIFERS CARE
INSERTED DETAIL,,Ealing Council,http://opendatacommunities.org/id/london-borough-council/ealing,CHILDREN & ADULTS,1,DISABILITIES,SUPPORTED LIVING,4236,,09/11/2022,23243673,1931.4,27868,ASSISTED LIVING SOUTHWEST LTD
INSERTED DETAIL,,Ealing Council,http://opendatacommunities.org/id/london-borough-council/ealing,CHILDREN & ADULTS,1,DISABILITIES,SUPPORTED LIVING,4236,,09/11/2022,23243709,3328,26408,NEWTON CARE HOMES LTD
INSERTED DETAIL,,Ealing Council,http://opendatacommunities.org/id/london-borough-council/ealing,CHILDREN & ADULTS,1,DISABILITIES,SUPPORTED LIVING,4236,,09/11/2022,23243782,6024.08,29539,THE BRANDON TRUST
INSERTED DETAIL,,Ealing Council,http://opendatacommunities.org/id/london-borough-council/ealing,CHILDREN & ADULTS,1,DISABILITIES,SOCIAL SERVICES DIRECT PAYMENTS,4231,,31/10/2022,23239189,269.76,81018,REDACTED SENSITIVE SUPPLIER
INSERTED DETAIL,,Ealing Council,http://opendatacommunities.org/id/london-borough-council/ealing,CHILDREN & ADULTS,1,DISABILITIES,SUPPORTED LIVING,4236,,09/11/2022,23243420,4053.24,30088,THE REGARD PARTNERSHIP LTD (ACHIEVE TOGETHER)
INSERTED DETAIL,,Ealing Council,http://opendatacommunities.org/id/london-borough-council/ealing,CHILDREN & ADULTS,1,DISABILITIES,DAY CARE CENTRES,4250,,09/11/2022,23243548,1991.96,13361,VOYAGE 1 LIMITED
INSERTED DETAIL,,Ealing Council,http://opendatacommunities.org/id/london-borough-council/ealing,CHILDREN & ADULTS,1,DISABILITIES,DAY CARE CENTRES,4250,,09/11/2022,23243548,1974.28,13361,VOYAGE 1 LIMITED
INSERTED DETAIL,,Ealing Council,http://opendatacommunities.org/id/london-borough-council/ealing,CHILDREN & ADULTS,1,DISABILITIES,DAY CARE CENTRES,4250,,09/11/2022,23243548,1706.96,13361,VOYAGE 1 LIMITED
INSERTED DETAIL,,Ealing Council,http://opendatacommunities.org/id/london-borough-council/ealing,CHILDREN & ADULTS,1,SAFEGUARDING & SUPPORT - CIC,CHILDRENS SERVICES -ELIGIBLE CHILDREN ACCOMMODATIO,4281,,14/11/2022,23244533,442.86,29808,PHASE II CARE LTD
INSERTED DETAIL,,Ealing Council,http://opendatacommunities.org/id/london-borough-council/ealing,CHILDREN & ADULTS,1,SAFEGUARDING & SUPPORT - CIC,CHILDRENS SERVICES -ELIGIBLE CHILDREN ACCOMMODATIO,4281,,01/11/2022,23239532,269.95,200448,REDACTED SENSITIVE SUPPLIER
INSERTED DETAIL,,Ealing Council,http://opendatacommunities.org/id/london-borough-council/ealing,CHILDREN & ADULTS,1,SAFEGUARDING & SUPPORT - CIC,CHILDRENS SERVICES -ELIGIBLE CHILDREN ACCOMMODATIO,4281,,01/11/2022,23239557,269.95,200634,REDACTED SENSITIVE SUPPLIER
INSERTED DETAIL,,Ealing Council,http://opendatacommunities.org/id/london-borough-council/ealing,CHILDREN & ADULTS,1,SAFEGUARDING & SUPPORT - CIC,CHILDRENS SERVICES -ELIGIBLE CHILDREN ACCOMMODATIO,4281,,01/11/2022,23239670,269.95,200270,REDACTED SENSITIVE SUPPLIER
INSERTED DETAIL,,Ealing Council,http://opendatacommunities.org/id/london-borough-council/ealing,CHILDREN & ADULTS,1,SAFEGUARDING & SUPPORT - CIC,CHILDRENS SERVICES -ELIGIBLE CHILDREN ACCOMMODATIO,4281,,01/11/2022,23239706,269.95,200211,REDACTED SENSITIVE SUPPLIER
INSERTED DETAIL,,Ealing Council,http://opendatacommunities.org/id/london-borough-council/ealing,CHILDREN & ADULTS,1,SAFEGUARDING & SUPPORT - CIC,CHILDRENS SERVICES -ELIGIBLE CHILDREN ACCOMMODATIO,4281,,01/11/2022,23239401,269.95,200344,REDACTED SENSITIVE SUPPLIER
INSERTED DETAIL,,Ealing Council,http://opendatacommunities.org/id/london-borough-council/ealing,CHILDREN & ADULTS,1,SAFEGUARDING & SUPPORT - CIC,CHILDRENS SERVICES -ELIGIBLE CHILDREN ACCOMMODATIO,4281,,01/11/2022,23239402,269.95,200345,REDACTED SENSITIVE SUPPLIER
INSERTED DETAIL,,Ealing Council,http://opendatacommunities.org/id/london-borough-council/ealing,CHILDREN & ADULTS,1,SAFEGUARDING & SUPPORT - CIC,CHILDRENS SERVICES -ELIGIBLE CHILDREN ACCOMMODATIO,4281,,08/11/2022,23242478,269.95,200344,REDACTED SENSITIVE SUPPLIER
INSERTED DETAIL,,Ealing Council,http://opendatacommunities.org/id/london-borough-council/ealing,CHILDREN & ADULTS,1,SAFEGUARDING & SUPPORT - CIC,CHILDRENS SERVICES -ELIGIBLE CHILDREN ACCOMMODATIO,4281,,08/11/2022,23242480,269.95,200345,REDACTED SENSITIVE SUPPLIER
INSERTED DETAIL,,Ealing Council,http://opendatacommunities.org/id/london-borough-council/ealing,CHILDREN & ADULTS,1,SAFEGUARDING & SUPPORT - CIC,CHILDRENS SERVICES -ELIGIBLE CHILDREN ACCOMMODATIO,4281,,08/11/2022,23242745,269.95,200270,REDACTED SENSITIVE SUPPLIER
INSERTED DETAIL,,Ealing Council,http://opendatacommunities.org/id/london-borough-council/ealing,CHILDREN & ADULTS,1,SAFEGUARDING & SUPPORT - CIC,CHILDRENS SERVICES -ELIGIBLE CHILDREN ACCOMMODATIO,4281,,08/11/2022,23242781,269.95,200211,REDACTED SENSITIVE SUPPLIER
INSERTED DETAIL,,Ealing Council,http://opendatacommunities.org/id/london-borough-council/ealing,CHILDREN & ADULTS,1,SAFEGUARDING & SUPPORT - CIC,CHILDRENS SERVICES -ELIGIBLE CHILDREN OTHER COSTS,4282,,09/11/2022,23242791,2000,201043,REDACTED SENSITIVE SUPPLIER
INSERTED DETAIL,,Ealing Council,http://opendatacommunities.org/id/london-borough-council/ealing,CHILDREN & ADULTS,1,SAFEGUARDING & SUPPORT - CIC,CHILDRENS SERVICES -ELIGIBLE CHILDREN ACCOMMODATIO,4281,,14/11/2022,23244527,270.36,19820,HESTIA ENTERPRISES LTD-T/A HIGHER LEVEL CARE
INSERTED DETAIL,,Ealing Council,http://opendatacommunities.org/id/london-borough-council/ealing,CHILDREN & ADULTS,1,SAFEGUARDING & SUPPORT - CIC,CHILDRENS SERVICES -ELIGIBLE CHILDREN ACCOMMODATIO,4281,,14/11/2022,23244527,3432.14,19820,HESTIA ENTERPRISES LTD-T/A HIGHER LEVEL CARE
INSERTED DETAIL,,Ealing Council,http://opendatacommunities.org/id/london-borough-council/ealing,CHILDREN & ADULTS,1,SAFEGUARDING & SUPPORT - CIC,CHILDRENS SERVICES -ELIGIBLE CHILDREN ACCOMMODATIO,4281,,14/11/2022,23244527,885.71,19820,HESTIA ENTERPRISES LTD-T/A HIGHER LEVEL CARE
INSERTED DETAIL,,Ealing Council,http://opendatacommunities.org/id/london-borough-council/ealing,CHILDREN & ADULTS,1,SAFEGUARDING & SUPPORT - CIC,CHILDRENS SERVICES -ELIGIBLE CHILDREN ACCOMMODATIO,4281,,14/11/2022,23244539,2103.57,29314,SUPPORTIVE LINK LIMITED
INSERTED DETAIL,,Ealing Council,http://opendatacommunities.org/id/london-borough-council/ealing,CHILDREN & ADULTS,1,SAFEGUARDING & SUPPORT - CIC,CHILDRENS SERVICES -ELIGIBLE CHILDREN ACCOMMODATIO,4281,,14/11/2022,23244539,553.57,29314,SUPPORTIVE LINK LIMITED
INSERTED DETAIL,,Ealing Council,http://opendatacommunities.org/id/london-borough-council/ealing,CHILDREN & ADULTS,1,SAFEGUARDING & SUPPORT - CIC,CHILDRENS SERVICES -ELIGIBLE CHILDREN OTHER COSTS,4282,,15/11/2022,23244603,790,200862,REDACTED SENSITIVE SUPPLIER
INSERTED DETAIL,,Ealing Council,http://opendatacommunities.org/id/london-borough-council/ealing,CHILDREN & ADULTS,1,SAFEGUARDING & SUPPORT - CIC,CHILDRENS SERVICES -ELIGIBLE CHILDREN ACCOMMODATIO,4281,,15/11/2022,23244640,269.95,200344,REDACTED SENSITIVE SUPPLIER
INSERTED DETAIL,,Ealing Council,http://opendatacommunities.org/id/london-borough-council/ealing,CHILDREN & ADULTS,1,SAFEGUARDING & SUPPORT - CIC,CHILDRENS SERVICES -ELIGIBLE CHILDREN ACCOMMODATIO,4281,,15/11/2022,23244642,269.95,200345,REDACTED SENSITIVE SUPPLIER
INSERTED DETAIL,,Ealing Council,http://opendatacommunities.org/id/london-borough-council/ealing,CHILDREN & ADULTS,1,SAFEGUARDING & SUPP - BS &A&F,SPECIAL GUARDIANSHIP ALLOWANCE (SOC SERV),4663,,22/11/2022,23246396,314.21,200049,REDACTED SENSITIVE SUPPLIER
INSERTED DETAIL,,Ealing Council,http://opendatacommunities.org/id/london-borough-council/ealing,CHILDREN & ADULTS,1,SAFEGUARDING & SUPP - BS &A&F,SPECIAL GUARDIANSHIP ALLOWANCE (SOC SERV),4663,,08/11/2022,23242422,350,200012,REDACTED SENSITIVE SUPPLIER
INSERTED DETAIL,,Ealing Council,http://opendatacommunities.org/id/london-borough-council/ealing,CHILDREN & ADULTS,1,SAFEGUARDING & SUPP - BS &A&F,SPECIAL GUARDIANSHIP ALLOWANCE (SOC SERV),4663,,08/11/2022,23242422,350,200012,REDACTED SENSITIVE SUPPLIER
INSERTED DETAIL,,Ealing Council,http://opendatacommunities.org/id/london-borough-council/ealing,CHILDREN & ADULTS,1,SAFEGUARDING & SUPP - BS &A&F,SPECIAL GUARDIANSHIP ALLOWANCE (SOC SERV),4663,,01/11/2022,23239346,350,200012,REDACTED SENSITIVE SUPPLIER
INSERTED DETAIL,,Ealing Council,http://opendatacommunities.org/id/london-borough-council/ealing,CHILDREN & ADULTS,1,SAFEGUARDING & SUPP - BS &A&F,SPECIAL GUARDIANSHIP ALLOWANCE (SOC SERV),4663,,01/11/2022,23239346,350,200012,REDACTED SENSITIVE SUPPLIER
INSERTED DETAIL,,Ealing Council,http://opendatacommunities.org/id/london-borough-council/ealing,CHILDREN & ADULTS,1,SAFEGUARDING & SUPP - BS &A&F,SPECIAL GUARDIANSHIP ALLOWANCE (SOC SERV),4663,,15/11/2022,23244582,350,200012,REDACTED SENSITIVE SUPPLIER
INSERTED DETAIL,,Ealing Council,http://opendatacommunities.org/id/london-borough-council/ealing,CHILDREN & ADULTS,1,SAFEGUARDING & SUPP - BS &A&F,SPECIAL GUARDIANSHIP ALLOWANCE (SOC SERV),4663,,15/11/2022,23244582,350,200012,REDACTED SENSITIVE SUPPLIER
INSERTED DETAIL,,Ealing Council,http://opendatacommunities.org/id/london-borough-council/ealing,CHILDREN & ADULTS,1,SAFEGUARDING & SUPP - BS &A&F,SPECIAL GUARDIANSHIP ALLOWANCE (SOC SERV),4663,,22/11/2022,23246308,350,200012,REDACTED SENSITIVE SUPPLIER
INSERTED DETAIL,,Ealing Council,http://opendatacommunities.org/id/london-borough-council/ealing,CHILDREN & ADULTS,1,SAFEGUARDING & SUPP - BS &A&F,SPECIAL GUARDIANSHIP ALLOWANCE (SOC SERV),4663,,22/11/2022,23246308,350,200012,REDACTED SENSITIVE SUPPLIER
INSERTED DETAIL,,Ealing Council,http://opendatacommunities.org/id/london-borough-council/ealing,CHILDREN & ADULTS,1,SAFEGUARDING & SUPP - BS &A&F,SPECIAL GUARDIANSHIP ALLOWANCE (SOC SERV),4663,,08/11/2022,23242496,410,200735,REDACTED SENSITIVE SUPPLIER
INSERTED DETAIL,,Ealing Council,http://opendatacommunities.org/id/london-borough-council/ealing,CHILDREN & ADULTS,1,SAFEGUARDING & SUPP - BS &A&F,SPECIAL GUARDIANSHIP ALLOWANCE (SOC SERV),4663,,08/11/2022,23242496,410,200735,REDACTED SENSITIVE SUPPLIER
INSERTED DETAIL,,Ealing Council,http://opendatacommunities.org/id/london-borough-council/ealing,CHILDREN & ADULTS,1,SAFEGUARDING & SUPP - BS &A&F,SPECIAL GUARDIANSHIP ALLOWANCE (SOC SERV),4663,,01/11/2022,23239507,492.66,200619,REDACTED SENSITIVE SUPPLIER
INSERTED DETAIL,,Ealing Council,http://opendatacommunities.org/id/london-borough-council/ealing,CHILDREN & ADULTS,1,SAFEGUARDING & SUPP - BS &A&F,SPECIAL GUARDIANSHIP ALLOWANCE (SOC SERV),4663,,01/11/2022,23239585,360,200869,REDACTED SENSITIVE SUPPLIER
INSERTED DETAIL,,Ealing Council,http://opendatacommunities.org/id/london-borough-council/ealing,CHILDREN & ADULTS,1,SAFEGUARDING & SUPP - BS &A&F,SPECIAL GUARDIANSHIP ALLOWANCE (SOC SERV),4663,,08/11/2022,23242584,492.66,200619,REDACTED SENSITIVE SUPPLIER
INSERTED DETAIL,,Ealing Council,http://opendatacommunities.org/id/london-borough-council/ealing,CHILDREN & ADULTS,1,SAFEGUARDING & SUPP - BS &A&F,SPECIAL GUARDIANSHIP ALLOWANCE (SOC SERV),4663,,08/11/2022,23242659,360,200869,REDACTED SENSITIVE SUPPLIER
INSERTED DETAIL,,Ealing Council,http://opendatacommunities.org/id/london-borough-council/ealing,CHILDREN & ADULTS,1,SAFEGUARDING & SUPP - BS &A&F,SPECIAL GUARDIANSHIP ALLOWANCE (SOC SERV),4663,,15/11/2022,23244747,492.66,200619,REDACTED SENSITIVE SUPPLIER
INSERTED DETAIL,,Ealing Council,http://opendatacommunities.org/id/london-borough-council/ealing,CHILDREN & ADULTS,1,SAFEGUARDING & SUPP - BS &A&F,SPECIAL GUARDIANSHIP ALLOWANCE (SOC SERV),4663,,15/11/2022,23244822,360,200869,REDACTED SENSITIVE SUPPLIER
INSERTED DETAIL,,Ealing Council,http://opendatacommunities.org/id/london-borough-council/ealing,CHILDREN & ADULTS,1,SAFEGUARDING & SUPP - BS &A&F,SPECIAL GUARDIANSHIP ALLOWANCE (SOC SERV),4663,,22/11/2022,23246475,492.66,200619,REDACTED SENSITIVE SUPPLIER
INSERTED DETAIL,,Ealing Council,http://opendatacommunities.org/id/london-borough-council/ealing,CHILDREN & ADULTS,1,SAFEGUARDING & SUPP - BS &A&F,SPECIAL GUARDIANSHIP ALLOWANCE (SOC SERV),4663,,22/11/2022,23246548,360,200869,REDACTED SENSITIVE SUPPLIER
INSERTED DETAIL,,Ealing Council,http://opendatacommunities.org/id/london-borough-council/ealing,CHILDREN & ADULTS,1,SAFEGUARDING & SUPP - BS &A&F,CHILDRENS SERVICES ADOPTION ALLOWANCE,4387,,01/11/2022,23239477,284.69,200127,REDACTED SENSITIVE SUPPLIER
INSERTED DETAIL,,Ealing Council,http://opendatacommunities.org/id/london-borough-council/ealing,PLACE,6,HOUSING  DEMAND,FURNITURE,3360,,28/10/2022,41037831,270,12789,KENWAYS FURNITURE
INSERTED DETAIL,,Ealing Council,http://opendatacommunities.org/id/london-borough-council/ealing,PLACE,6,HOUSING  DEMAND,FURNITURE,3360,,28/10/2022,41037833,315,12789,KENWAYS FURNITURE
INSERTED DETAIL,,Ealing Council,http://opendatacommunities.org/id/london-borough-council/ealing,PLACE,6,HOUSING  DEMAND,CIS REPAIRS AND MAINTENANCE,1411,,14/10/2022,41037874,250,25070,GREENFORD GLASS SERVICES LTD.
INSERTED DETAIL,,Ealing Council,http://opendatacommunities.org/id/london-borough-council/ealing,PLACE,6,HOUSING  DEMAND,RENTS,1200,,12/09/2022,41036704,2000,9900017,ROYALTY LETTINGS LTD
INSERTED DETAIL,,Ealing Council,http://opendatacommunities.org/id/london-borough-council/ealing,PLACE,6,HOUSING  DEMAND,RENTS,1200,,31/10/2022,41035455,4500,9900017,REDACTED SENSITIVE SUPPLIER
INSERTED DETAIL,,Ealing Council,http://opendatacommunities.org/id/london-borough-council/ealing,PLACE,6,HOUSING  DEMAND,REMOVALS,2680,,24/11/2022,41039157,616.34,16472,CLOCKWORK REMOVALS LTD
INSERTED DETAIL,,Ealing Council,http://opendatacommunities.org/id/london-borough-council/ealing,CHILDREN & ADULTS,1,EARLY YEARS CHILDCARE & SAFE,CHILDCARE PROVISION,4690,,27/10/2022,50001920,500,29999,REDACTED SENSITIVE SUPPLIER
INSERTED DETAIL,,Ealing Council,http://opendatacommunities.org/id/london-borough-council/ealing,CHILDREN & ADULTS,1,EARLY YEARS CHILDCARE & SAFE,CHILDCARE PROVISION,4690,,27/10/2022,50001920,2000,29586,OUR PARKS LTD
INSERTED DETAIL,,Ealing Council,http://opendatacommunities.org/id/london-borough-council/ealing,CHILDREN & ADULTS,1,EARLY YEARS CHILDCARE & SAFE,CHILDCARE PROVISION,4690,,27/10/2022,50001920,600,29388,ZNANIYE FOUNDATION
INSERTED DETAIL,,Ealing Council,http://opendatacommunities.org/id/london-borough-council/ealing,CHILDREN & ADULTS,1,EARLY YEARS CHILDCARE & SAFE,CHILDCARE PROVISION,4690,,27/10/2022,50001920,800,29367,PSD CHILDCARE LIMITED
INSERTED DETAIL,,Ealing Council,http://opendatacommunities.org/id/london-borough-council/ealing,CHILDREN & ADULTS,1,EARLY YEARS CHILDCARE & SAFE,CHILDCARE PROVISION,4690,,27/10/2022,50001920,1600,29367,PSD CHILDCARE LIMITED
INSERTED DETAIL,,Ealing Council,http://opendatacommunities.org/id/london-borough-council/ealing,CHILDREN & ADULTS,1,EARLY YEARS CHILDCARE & SAFE,ADVERTISING,2690,,20/10/2022,41036836,5727,27970,RED BLAZER
INSERTED DETAIL,,Ealing Council,http://opendatacommunities.org/id/london-borough-council/ealing,CHILDREN & ADULTS,1,EARLY YEARS CHILDCARE & SAFE,ADVERTISING,2690,,07/11/2022,41038503,4190,27970,RED BLAZER
INSERTED DETAIL,,Ealing Council,http://opendatacommunities.org/id/london-borough-council/ealing,CHILDREN & ADULTS,1,EARLY YEARS CHILDCARE & SAFE,CHILDCARE PROVISION,4690,,27/10/2022,50001920,1200,22324,A2DOMINION HOUSING GROUP LTD
INSERTED DETAIL,,Ealing Council,http://opendatacommunities.org/id/london-borough-council/ealing,CHILDREN & ADULTS,1,EARLY YEARS CHILDCARE & SAFE,CHILDCARE PROVISION,4690,,27/10/2022,50001920,800,29885,REDACTED SENSITIVE SUPPLIER
INSERTED DETAIL,,Ealing Council,http://opendatacommunities.org/id/london-borough-council/ealing,CHILDREN & ADULTS,1,EARLY YEARS CHILDCARE & SAFE,CHILDCARE PROVISION,4690,,14/11/2022,50001941,1000,17114,BRENTFORD FC COMMUNITY SPORTS TRUST
INSERTED DETAIL,,Ealing Council,http://opendatacommunities.org/id/london-borough-council/ealing,CHILDREN & ADULTS,1,EARLY YEARS CHILDCARE & SAFE,CHILDCARE PROVISION,4690,,14/11/2022,50001941,2000,29375,SKIPZ PRODUCTIONS CIC
INSERTED DETAIL,,Ealing Council,http://opendatacommunities.org/id/london-borough-council/ealing,CHILDREN & ADULTS,1,EARLY YEARS CHILDCARE & SAFE,CHILDCARE PROVISION,4690,,27/10/2022,50001920,657.5,29575,PARENTS OF EALING SELF-HELP TRAINING SCHEME (P.E.S.T.S.)
INSERTED DETAIL,,Ealing Council,http://opendatacommunities.org/id/london-borough-council/ealing,CHILDREN & ADULTS,1,EARLY YEARS CHILDCARE & SAFE,CHILDCARE PROVISION,4690,,27/10/2022,50001920,2000,29534,FOOTGOLF LONDON LIMITED
INSERTED DETAIL,,Ealing Council,http://opendatacommunities.org/id/london-borough-council/ealing,CHILDREN & ADULTS,1,EARLY YEARS CHILDCARE & SAFE,CHILDCARE PROVISION,4690,,14/11/2022,50001941,1000,28440,BUILDING BRIDGES CAREERS SERVICE
INSERTED DETAIL,,Ealing Council,http://opendatacommunities.org/id/london-borough-council/ealing,CHILDREN & ADULTS,1,EARLY YEARS CHILDCARE & SAFE,CHILDCARE PROVISION,4690,,14/11/2022,50001941,1600,28440,BUILDING BRIDGES CAREERS SERVICE
INSERTED DETAIL,,Ealing Council,http://opendatacommunities.org/id/london-borough-council/ealing,CHILDREN & ADULTS,1,EARLY YEARS CHILDCARE & SAFE,CHILDCARE PROVISION,4690,,14/11/2022,50001941,1600,28440,BUILDING BRIDGES CAREERS SERVICE
INSERTED DETAIL,,Ealing Council,http://opendatacommunities.org/id/london-borough-council/ealing,CHILDREN & ADULTS,1,EARLY YEARS CHILDCARE & SAFE,CHILDCARE PROVISION,4690,,14/11/2022,50001941,518,29575,PARENTS OF EALING SELF-HELP TRAINING SCHEME (P.E.S.T.S.)
INSERTED DETAIL,,Ealing Council,http://opendatacommunities.org/id/london-borough-council/ealing,CHILDREN & ADULTS,1,EARLY YEARS CHILDCARE & SAFE,CHILDCARE PROVISION,4690,,27/10/2022,50001920,800,19728,FIT FOR SPORT LTD
INSERTED DETAIL,,Ealing Council,http://opendatacommunities.org/id/london-borough-council/ealing,CHILDREN & ADULTS,1,EARLY YEARS CHILDCARE & SAFE,CHILDCARE PROVISION,4690,,27/10/2022,50001920,560,19728,FIT FOR SPORT LTD
INSERTED DETAIL,,Ealing Council,http://opendatacommunities.org/id/london-borough-council/ealing,CHILDREN & ADULTS,1,EARLY YEARS CHILDCARE & SAFE,CHILDCARE PROVISION,4690,,27/10/2022,50001920,560,19728,FIT FOR SPORT LTD
INSERTED DETAIL,,Ealing Council,http://opendatacommunities.org/id/london-borough-council/ealing,CHILDREN & ADULTS,1,EARLY YEARS CHILDCARE & SAFE,CHILDCARE PROVISION,4690,,27/10/2022,50001920,560,19728,FIT FOR SPORT LTD
INSERTED DETAIL,,Ealing Council,http://opendatacommunities.org/id/london-borough-council/ealing,CHILDREN & ADULTS,1,EARLY YEARS CHILDCARE & SAFE,CHILDCARE PROVISION,4690,,27/10/2022,50001920,560,19728,FIT FOR SPORT LTD
INSERTED DETAIL,,Ealing Council,http://opendatacommunities.org/id/london-borough-council/ealing,CHILDREN & ADULTS,1,EARLY YEARS CHILDCARE & SAFE,CHILDCARE PROVISION,4690,,27/10/2022,50001920,2000,20079,LONDON TIGERS
INSERTED DETAIL,,Ealing Council,http://opendatacommunities.org/id/london-borough-council/ealing,CHILDREN & ADULTS,1,EARLY YEARS CHILDCARE & SAFE,CHILDCARE PROVISION,4690,,27/10/2022,50001920,1000,20079,LONDON TIGERS
INSERTED DETAIL,,Ealing Council,http://opendatacommunities.org/id/london-borough-council/ealing,CHILDREN & ADULTS,1,EALING SERVICE FOR CHILDREN WITH ADDITIONAL NEEDS,VEHICLE HIRE,2010,,30/09/2022,41036409,672,26869,REDACTED SENSITIVE SUPPLIER
INSERTED DETAIL,,Ealing Council,http://opendatacommunities.org/id/london-borough-council/ealing,CHILDREN & ADULTS,1,EALING SERVICE FOR CHILDREN WITH ADDITIONAL NEEDS,DOMICILIARY CARE - BLOCK,4240,,07/11/2022,23242400,317.8,29190,CARE RESOLUTION LTD
INSERTED DETAIL,,Ealing Council,http://opendatacommunities.org/id/london-borough-council/ealing,CHILDREN & ADULTS,1,EALING SERVICE FOR CHILDREN WITH ADDITIONAL NEEDS,DOMICILIARY CARE - BLOCK,4240,,07/11/2022,23242400,308.88,29190,CARE RESOLUTION LTD
INSERTED DETAIL,,Ealing Council,http://opendatacommunities.org/id/london-borough-council/ealing,CHILDREN & ADULTS,1,EALING SERVICE FOR CHILDREN WITH ADDITIONAL NEEDS,DOMICILIARY CARE - BLOCK,4240,,07/11/2022,23242400,308.88,29190,CARE RESOLUTION LTD
INSERTED DETAIL,,Ealing Council,http://opendatacommunities.org/id/london-borough-council/ealing,CHILDREN & ADULTS,1,EALING SERVICE FOR CHILDREN WITH ADDITIONAL NEEDS,DOMICILIARY CARE - BLOCK,4240,,07/11/2022,23242400,303.36,29190,CARE RESOLUTION LTD
INSERTED DETAIL,,Ealing Council,http://opendatacommunities.org/id/london-borough-council/ealing,CHILDREN & ADULTS,1,EALING SERVICE FOR CHILDREN WITH ADDITIONAL NEEDS,DOMICILIARY CARE - BLOCK,4240,,07/11/2022,23242400,282.56,29190,CARE RESOLUTION LTD
INSERTED DETAIL,,Ealing Council,http://opendatacommunities.org/id/london-borough-council/ealing,CHILDREN & ADULTS,1,EALING SERVICE FOR CHILDREN WITH ADDITIONAL NEEDS,DOMICILIARY CARE - BLOCK,4240,,07/11/2022,23242400,317.8,29190,CARE RESOLUTION LTD
INSERTED DETAIL,,Ealing Council,http://opendatacommunities.org/id/london-borough-council/ealing,CHILDREN & ADULTS,1,EALING SERVICE FOR CHILDREN WITH ADDITIONAL NEEDS,SOCIAL SERVICES -INDEPENDENT FOSTERING,4221,,14/11/2022,23244441,5190.84,15020,TACT
INSERTED DETAIL,,Ealing Council,http://opendatacommunities.org/id/london-borough-council/ealing,CHILDREN & ADULTS,1,EALING SERVICE FOR CHILDREN WITH ADDITIONAL NEEDS,SOCIAL SERVICES -INDEPENDENT FOSTERING,4221,,14/11/2022,23244441,-3617.15,15020,TACT
INSERTED DETAIL,,Ealing Council,http://opendatacommunities.org/id/london-borough-council/ealing,CHILDREN & ADULTS,1,EALING SERVICE FOR CHILDREN WITH ADDITIONAL NEEDS,DOMICILIARY CARE - BLOCK,4240,,07/11/2022,23242394,349.6,27070,YOUTH ENGAGEMENT PROGRAMME CIC
INSERTED DETAIL,,Ealing Council,http://opendatacommunities.org/id/london-borough-council/ealing,CHILDREN & ADULTS,1,EALING SERVICE FOR CHILDREN WITH ADDITIONAL NEEDS,DOMICILIARY CARE - BLOCK,4240,,07/11/2022,23242394,764.64,27070,YOUTH ENGAGEMENT PROGRAMME CIC
INSERTED DETAIL,,Ealing Council,http://opendatacommunities.org/id/london-borough-council/ealing,CHILDREN & ADULTS,1,EALING SERVICE FOR CHILDREN WITH ADDITIONAL NEEDS,DOMICILIARY CARE - BLOCK,4240,,07/11/2022,23242394,422.64,27070,YOUTH ENGAGEMENT PROGRAMME CIC
INSERTED DETAIL,,Ealing Council,http://opendatacommunities.org/id/london-borough-council/ealing,CHILDREN & ADULTS,1,EALING SERVICE FOR CHILDREN WITH ADDITIONAL NEEDS,DOMICILIARY CARE - BLOCK,4240,,07/11/2022,23242394,281.76,27070,YOUTH ENGAGEMENT PROGRAMME CIC
INSERTED DETAIL,,Ealing Council,http://opendatacommunities.org/id/london-borough-council/ealing,CHILDREN & ADULTS,1,EALING SERVICE FOR CHILDREN WITH ADDITIONAL NEEDS,DOMICILIARY CARE - BLOCK,4240,,07/11/2022,23242394,1048.8,27070,YOUTH ENGAGEMENT PROGRAMME CIC
INSERTED DETAIL,,Ealing Council,http://opendatacommunities.org/id/london-borough-council/ealing,CHILDREN & ADULTS,1,EALING SERVICE FOR CHILDREN WITH ADDITIONAL NEEDS,DOMICILIARY CARE - BLOCK,4240,,07/11/2022,23242396,338.52,27926,INFINITY CARE SERVICES LIMITED
INSERTED DETAIL,,Ealing Council,http://opendatacommunities.org/id/london-borough-council/ealing,CHILDREN & ADULTS,1,EALING SERVICE FOR CHILDREN WITH ADDITIONAL NEEDS,DOMICILIARY CARE - BLOCK,4240,,07/11/2022,23242396,262.32,27926,INFINITY CARE SERVICES LIMITED
INSERTED DETAIL,,Ealing Council,http://opendatacommunities.org/id/london-borough-council/ealing,CHILDREN & ADULTS,1,EALING SERVICE FOR CHILDREN WITH ADDITIONAL NEEDS,DOMICILIARY CARE - BLOCK,4240,,07/11/2022,23242396,338.52,27926,INFINITY CARE SERVICES LIMITED
INSERTED DETAIL,,Ealing Council,http://opendatacommunities.org/id/london-borough-council/ealing,CHILDREN & ADULTS,1,EALING SERVICE FOR CHILDREN WITH ADDITIONAL NEEDS,DOMICILIARY CARE - BLOCK,4240,,07/11/2022,23242396,262.32,27926,INFINITY CARE SERVICES LIMITED
INSERTED DETAIL,,Ealing Council,http://opendatacommunities.org/id/london-borough-council/ealing,CHILDREN & ADULTS,1,EALING SERVICE FOR CHILDREN WITH ADDITIONAL NEEDS,DOMICILIARY CARE - BLOCK,4240,,07/11/2022,23242396,960,27926,INFINITY CARE SERVICES LIMITED
INSERTED DETAIL,,Ealing Council,http://opendatacommunities.org/id/london-borough-council/ealing,CHILDREN & ADULTS,1,EALING SERVICE FOR CHILDREN WITH ADDITIONAL NEEDS,DOMICILIARY CARE - BLOCK,4240,,07/11/2022,23242396,524.72,27926,INFINITY CARE SERVICES LIMITED
INSERTED DETAIL,,Ealing Council,http://opendatacommunities.org/id/london-borough-council/ealing,CHILDREN & ADULTS,1,EALING SERVICE FOR CHILDREN WITH ADDITIONAL NEEDS,DOMICILIARY CARE - BLOCK,4240,,07/11/2022,23242396,640,27926,INFINITY CARE SERVICES LIMITED
INSERTED DETAIL,,Ealing Council,http://opendatacommunities.org/id/london-borough-council/ealing,CHILDREN & ADULTS,1,EALING SERVICE FOR CHILDREN WITH ADDITIONAL NEEDS,DOMICILIARY CARE - BLOCK,4240,,07/11/2022,23242396,344,27926,INFINITY CARE SERVICES LIMITED
INSERTED DETAIL,,Ealing Council,http://opendatacommunities.org/id/london-borough-council/ealing,CHILDREN & ADULTS,1,EALING SERVICE FOR CHILDREN WITH ADDITIONAL NEEDS,DOMICILIARY CARE - BLOCK,4240,,07/11/2022,23242396,1680,27926,INFINITY CARE SERVICES LIMITED
INSERTED DETAIL,,Ealing Council,http://opendatacommunities.org/id/london-borough-council/ealing,CHILDREN & ADULTS,1,EALING SERVICE FOR CHILDREN WITH ADDITIONAL NEEDS,DOMICILIARY CARE - BLOCK,4240,,07/11/2022,23242396,349.76,27926,INFINITY CARE SERVICES LIMITED
INSERTED DETAIL,,Ealing Council,http://opendatacommunities.org/id/london-borough-council/ealing,CHILDREN & ADULTS,1,EALING SERVICE FOR CHILDREN WITH ADDITIONAL NEEDS,DOMICILIARY CARE - BLOCK,4240,,07/11/2022,23242396,257.92,27926,INFINITY CARE SERVICES LIMITED
INSERTED DETAIL,,Ealing Council,http://opendatacommunities.org/id/london-borough-council/ealing,CHILDREN & ADULTS,1,EALING SERVICE FOR CHILDREN WITH ADDITIONAL NEEDS,DOMICILIARY CARE - BLOCK,4240,,07/11/2022,23242396,338.52,27926,INFINITY CARE SERVICES LIMITED
INSERTED DETAIL,,Ealing Council,http://opendatacommunities.org/id/london-borough-council/ealing,CHILDREN & ADULTS,1,EALING SERVICE FOR CHILDREN WITH ADDITIONAL NEEDS,DOMICILIARY CARE - BLOCK,4240,,07/11/2022,23242396,262.32,27926,INFINITY CARE SERVICES LIMITED
INSERTED DETAIL,,Ealing Council,http://opendatacommunities.org/id/london-borough-council/ealing,CHILDREN & ADULTS,1,EALING SERVICE FOR CHILDREN WITH ADDITIONAL NEEDS,DOMICILIARY CARE - BLOCK,4240,,07/11/2022,23242396,524.64,27926,INFINITY CARE SERVICES LIMITED
INSERTED DETAIL,,Ealing Council,http://opendatacommunities.org/id/london-borough-council/ealing,CHILDREN & ADULTS,1,EALING SERVICE FOR CHILDREN WITH ADDITIONAL NEEDS,DOMICILIARY CARE - BLOCK,4240,,07/11/2022,23242396,262.32,27926,INFINITY CARE SERVICES LIMITED
INSERTED DETAIL,,Ealing Council,http://opendatacommunities.org/id/london-borough-council/ealing,CHILDREN & ADULTS,1,EALING SERVICE FOR CHILDREN WITH ADDITIONAL NEEDS,DOMICILIARY CARE - BLOCK,4240,,07/11/2022,23242396,524.64,27926,INFINITY CARE SERVICES LIMITED
INSERTED DETAIL,,Ealing Council,http://opendatacommunities.org/id/london-borough-council/ealing,CHILDREN & ADULTS,1,EALING SERVICE FOR CHILDREN WITH ADDITIONAL NEEDS,DOMICILIARY CARE - BLOCK,4240,,07/11/2022,23242402,311.28,29518,INTEGRATED FAMILY SUPPORT LTD
INSERTED DETAIL,,Ealing Council,http://opendatacommunities.org/id/london-borough-council/ealing,CHILDREN & ADULTS,1,EALING SERVICE FOR CHILDREN WITH ADDITIONAL NEEDS,SOCIAL SERVICES DIRECT PAYMENTS,4231,,01/11/2022,23239199,459.08,81013,REDACTED SENSITIVE SUPPLIER
INSERTED DETAIL,,Ealing Council,http://opendatacommunities.org/id/london-borough-council/ealing,CHILDREN & ADULTS,1,EALING SERVICE FOR CHILDREN WITH ADDITIONAL NEEDS,SOCIAL SERVICES DIRECT PAYMENTS,4231,,01/11/2022,23239199,291.08,81013,REDACTED SENSITIVE SUPPLIER
INSERTED DETAIL,,Ealing Council,http://opendatacommunities.org/id/london-borough-council/ealing,CHILDREN & ADULTS,1,EALING SERVICE FOR CHILDREN WITH ADDITIONAL NEEDS,SOCIAL SERVICES DIRECT PAYMENTS,4231,,01/11/2022,23239199,350.76,81013,REDACTED SENSITIVE SUPPLIER
INSERTED DETAIL,,Ealing Council,http://opendatacommunities.org/id/london-borough-council/ealing,CHILDREN & ADULTS,1,EALING SERVICE FOR CHILDREN WITH ADDITIONAL NEEDS,SOCIAL SERVICES DIRECT PAYMENTS,4231,,01/11/2022,23239200,1524.48,80928,REDACTED SENSITIVE SUPPLIER
INSERTED DETAIL,,Ealing Council,http://opendatacommunities.org/id/london-borough-council/ealing,CHILDREN & ADULTS,1,EALING SERVICE FOR CHILDREN WITH ADDITIONAL NEEDS,SOCIAL SERVICES DIRECT PAYMENTS,4231,,02/11/2022,23239725,500,80928,REDACTED SENSITIVE SUPPLIER
INSERTED DETAIL,,Ealing Council,http://opendatacommunities.org/id/london-borough-council/ealing,CHILDREN & ADULTS,1,EALING SERVICE FOR CHILDREN WITH ADDITIONAL NEEDS,DOMICILIARY CARE - BLOCK,4240,,07/11/2022,23242393,1745.36,14819,SPECIAL PEOPLE PARTNERSHIP LTD T/A SPECIAL PEOPLE
INSERTED DETAIL,,Ealing Council,http://opendatacommunities.org/id/london-borough-council/ealing,CHILDREN & ADULTS,1,EALING SERVICE FOR CHILDREN WITH ADDITIONAL NEEDS,DOMICILIARY CARE - BLOCK,4240,,07/11/2022,23242393,2046.64,14819,SPECIAL PEOPLE PARTNERSHIP LTD T/A SPECIAL PEOPLE
INSERTED DETAIL,,Ealing Council,http://opendatacommunities.org/id/london-borough-council/ealing,CHILDREN & ADULTS,1,EALING SERVICE FOR CHILDREN WITH ADDITIONAL NEEDS,SOCIAL SERVICES DIRECT PAYMENTS,4231,,01/11/2022,23239203,4498.6,80933,REDACTED SENSITIVE SUPPLIER
INSERTED DETAIL,,Ealing Council,http://opendatacommunities.org/id/london-borough-council/ealing,CHILDREN & ADULTS,1,EALING SERVICE FOR CHILDREN WITH ADDITIONAL NEEDS,DOMICILIARY CARE - BLOCK,4240,,07/11/2022,23242382,612,14744,CAPITAL HOMECARE (UK) LTD
INSERTED DETAIL,,Ealing Council,http://opendatacommunities.org/id/london-borough-council/ealing,CHILDREN & ADULTS,1,EALING SERVICE FOR CHILDREN WITH ADDITIONAL NEEDS,DOMICILIARY CARE - BLOCK,4240,,07/11/2022,23242382,1108,14744,CAPITAL HOMECARE (UK) LTD
INSERTED DETAIL,,Ealing Council,http://opendatacommunities.org/id/london-borough-council/ealing,CHILDREN & ADULTS,1,EALING SERVICE FOR CHILDREN WITH ADDITIONAL NEEDS,DOMICILIARY CARE - BLOCK,4240,,07/11/2022,23242382,349.76,14744,CAPITAL HOMECARE (UK) LTD
INSERTED DETAIL,,Ealing Council,http://opendatacommunities.org/id/london-borough-council/ealing,CHILDREN & ADULTS,1,EALING SERVICE FOR CHILDREN WITH ADDITIONAL NEEDS,DOMICILIARY CARE - BLOCK,4240,,07/11/2022,23242385,1067.2,20408,PROJECT WEST LTD
INSERTED DETAIL,,Ealing Council,http://opendatacommunities.org/id/london-borough-council/ealing,CHILDREN & ADULTS,1,EALING SERVICE FOR CHILDREN WITH ADDITIONAL NEEDS,RESIDENTIAL HOMES EXTERNAL,4220,,14/11/2022,23244412,24396.56,28416,THE VINE RESIDENTIAL SERVICES LTD
INSERTED DETAIL,,Ealing Council,http://opendatacommunities.org/id/london-borough-council/ealing,CHILDREN & ADULTS,1,EALING SERVICE FOR CHILDREN WITH ADDITIONAL NEEDS,CHILDRENS SERVICE -RESPITE CARE SCHEME,4661,,07/11/2022,23242382,3872,14744,CAPITAL HOMECARE (UK) LTD
INSERTED DETAIL,,Ealing Council,http://opendatacommunities.org/id/london-borough-council/ealing,CHILDREN & ADULTS,1,EALING SERVICE FOR CHILDREN WITH ADDITIONAL NEEDS,VEHICLE HIRE,2010,,01/10/2022,41039195,1179.16,27468,MASTER CARS UK LTD
INSERTED DETAIL,,Ealing Council,http://opendatacommunities.org/id/london-borough-council/ealing,CHILDREN & ADULTS,1,EALING SERVICE FOR CHILDREN WITH ADDITIONAL NEEDS,SOCIAL SERVICES DIRECT PAYMENTS,4231,,01/11/2022,23239206,1192.4,80764,CARE IN FINANCE LTD
INSERTED DETAIL,,Ealing Council,http://opendatacommunities.org/id/london-borough-council/ealing,CHILDREN & ADULTS,1,EALING SERVICE FOR CHILDREN WITH ADDITIONAL NEEDS,SOCIAL SERVICES DIRECT PAYMENTS,4231,,01/11/2022,23239206,502.4,80764,CARE IN FINANCE LTD
INSERTED DETAIL,,Ealing Council,http://opendatacommunities.org/id/london-borough-council/ealing,CHILDREN & ADULTS,1,EALING SERVICE FOR CHILDREN WITH ADDITIONAL NEEDS,SOCIAL SERVICES DIRECT PAYMENTS,4231,,01/11/2022,23239206,1967.16,80764,CARE IN FINANCE LTD
INSERTED DETAIL,,Ealing Council,http://opendatacommunities.org/id/london-borough-council/ealing,CHILDREN & ADULTS,1,EALING SERVICE FOR CHILDREN WITH ADDITIONAL NEEDS,SOCIAL SERVICES DIRECT PAYMENTS,4231,,01/11/2022,23239206,598.72,80764,CARE IN FINANCE LTD
INSERTED DETAIL,,Ealing Council,http://opendatacommunities.org/id/london-borough-council/ealing,CHILDREN & ADULTS,1,EALING SERVICE FOR CHILDREN WITH ADDITIONAL NEEDS,SOCIAL SERVICES DIRECT PAYMENTS,4231,,01/11/2022,23239206,526.44,80764,CARE IN FINANCE LTD
INSERTED DETAIL,,Ealing Council,http://opendatacommunities.org/id/london-borough-council/ealing,CHILDREN & ADULTS,1,EALING SERVICE FOR CHILDREN WITH ADDITIONAL NEEDS,SOCIAL SERVICES DIRECT PAYMENTS,4231,,01/11/2022,23239206,1384.28,80764,CARE IN FINANCE LTD
INSERTED DETAIL,,Ealing Council,http://opendatacommunities.org/id/london-borough-council/ealing,CHILDREN & ADULTS,1,EALING SERVICE FOR CHILDREN WITH ADDITIONAL NEEDS,SOCIAL SERVICES DIRECT PAYMENTS,4231,,01/11/2022,23239206,773.72,80764,CARE IN FINANCE LTD
INSERTED DETAIL,,Ealing Council,http://opendatacommunities.org/id/london-borough-council/ealing,CHILDREN & ADULTS,1,EALING SERVICE FOR CHILDREN WITH ADDITIONAL NEEDS,SOCIAL SERVICES DIRECT PAYMENTS,4231,,01/11/2022,23239206,766.54,80764,CARE IN FINANCE LTD
INSERTED DETAIL,,Ealing Council,http://opendatacommunities.org/id/london-borough-council/ealing,CHILDREN & ADULTS,1,EALING SERVICE FOR CHILDREN WITH ADDITIONAL NEEDS,SOCIAL SERVICES DIRECT PAYMENTS,4231,,01/11/2022,23239206,326.4,80764,CARE IN FINANCE LTD
INSERTED DETAIL,,Ealing Council,http://opendatacommunities.org/id/london-borough-council/ealing,CHILDREN & ADULTS,1,EALING SERVICE FOR CHILDREN WITH ADDITIONAL NEEDS,SOCIAL SERVICES DIRECT PAYMENTS,4231,,01/11/2022,23239206,1470,80764,CARE IN FINANCE LTD
INSERTED DETAIL,,Ealing Council,http://opendatacommunities.org/id/london-borough-council/ealing,CHILDREN & ADULTS,1,EALING SERVICE FOR CHILDREN WITH ADDITIONAL NEEDS,SOCIAL SERVICES DIRECT PAYMENTS,4231,,01/11/2022,23239206,361.04,80764,CARE IN FINANCE LTD
INSERTED DETAIL,,Ealing Council,http://opendatacommunities.org/id/london-borough-council/ealing,CHILDREN & ADULTS,1,EALING SERVICE FOR CHILDREN WITH ADDITIONAL NEEDS,SOCIAL SERVICES DIRECT PAYMENTS,4231,,01/11/2022,23239206,5880.6,80764,CARE IN FINANCE LTD
INSERTED DETAIL,,Ealing Council,http://opendatacommunities.org/id/london-borough-council/ealing,CHILDREN & ADULTS,1,EALING SERVICE FOR CHILDREN WITH ADDITIONAL NEEDS,SOCIAL SERVICES DIRECT PAYMENTS,4231,,01/11/2022,23239206,2642.48,80764,CARE IN FINANCE LTD
INSERTED DETAIL,,Ealing Council,http://opendatacommunities.org/id/london-borough-council/ealing,CHILDREN & ADULTS,1,DISABILITIES,SUPPORTED LIVING,4236,,09/11/2022,23243589,4272,30117,STANMORE HOUSE
INSERTED DETAIL,,Ealing Council,http://opendatacommunities.org/id/london-borough-council/ealing,CHILDREN & ADULTS,1,DISABILITIES,DAY CARE CENTRES,4250,,09/11/2022,23243624,623.26,26510,BEAD SEW CRAFTY LTD
INSERTED DETAIL,,Ealing Council,http://opendatacommunities.org/id/london-borough-council/ealing,CHILDREN & ADULTS,1,DISABILITIES,DAY CARE CENTRES,4250,,09/11/2022,23243624,389.97,26510,BEAD SEW CRAFTY LTD
INSERTED DETAIL,,Ealing Council,http://opendatacommunities.org/id/london-borough-council/ealing,CHILDREN & ADULTS,1,DISABILITIES,DAY CARE CENTRES,4250,,09/11/2022,23243624,381.45,26510,BEAD SEW CRAFTY LTD
INSERTED DETAIL,,Ealing Council,http://opendatacommunities.org/id/london-borough-council/ealing,CHILDREN & ADULTS,1,DISABILITIES,DAY CARE CENTRES,4250,,09/11/2022,23243624,498.65,26510,BEAD SEW CRAFTY LTD
INSERTED DETAIL,,Ealing Council,http://opendatacommunities.org/id/london-borough-council/ealing,CHILDREN & ADULTS,1,DISABILITIES,DAY CARE CENTRES,4250,,09/11/2022,23243624,373.97,26510,BEAD SEW CRAFTY LTD
INSERTED DETAIL,,Ealing Council,http://opendatacommunities.org/id/london-borough-council/ealing,CHILDREN & ADULTS,1,DISABILITIES,DAY CARE CENTRES,4250,,09/11/2022,23243636,538.08,26492,PLAY ASSOCIATION HAMMERSMITH & FULHAM
INSERTED DETAIL,,Ealing Council,http://opendatacommunities.org/id/london-borough-council/ealing,CHILDREN & ADULTS,1,DISABILITIES,DAY CARE CENTRES,4250,,09/11/2022,23243636,333.12,26492,PLAY ASSOCIATION HAMMERSMITH & FULHAM
INSERTED DETAIL,,Ealing Council,http://opendatacommunities.org/id/london-borough-council/ealing,CHILDREN & ADULTS,1,DISABILITIES,DAY CARE CENTRES,4250,,09/11/2022,23243636,486.84,26492,PLAY ASSOCIATION HAMMERSMITH & FULHAM
INSERTED DETAIL,,Ealing Council,http://opendatacommunities.org/id/london-borough-council/ealing,CHILDREN & ADULTS,1,DISABILITIES,SUPPORTED LIVING,4236,,09/11/2022,23243692,2762.08,28298,CARE PLUS MORE LTD
INSERTED DETAIL,,Ealing Council,http://opendatacommunities.org/id/london-borough-council/ealing,CHILDREN & ADULTS,1,DISABILITIES,SUPPORTED LIVING,4236,,09/11/2022,23243694,3388.44,27609,COMFORT CARE SERVICES UK LTD
INSERTED DETAIL,,Ealing Council,http://opendatacommunities.org/id/london-borough-council/ealing,CHILDREN & ADULTS,1,DISABILITIES,SUPPORTED LIVING,4236,,09/11/2022,23243734,3467.84,30088,THE REGARD PARTNERSHIP LTD (ACHIEVE TOGETHER)
INSERTED DETAIL,,Ealing Council,http://opendatacommunities.org/id/london-borough-council/ealing,CHILDREN & ADULTS,1,DISABILITIES,SUPPORTED LIVING,4236,,09/11/2022,23243750,3069.36,28298,CARE PLUS MORE LTD
INSERTED DETAIL,,Ealing Council,http://opendatacommunities.org/id/london-borough-council/ealing,CHILDREN & ADULTS,1,DISABILITIES,SUPPORTED LIVING,4236,,09/11/2022,23243765,3362,28881,INNOVATIVE SUPPORT LTD
INSERTED DETAIL,,Ealing Council,http://opendatacommunities.org/id/london-borough-council/ealing,CHILDREN & ADULTS,1,DISABILITIES,SUPPORTED LIVING,4236,,09/11/2022,23243787,4320.36,30088,THE REGARD PARTNERSHIP LTD (ACHIEVE TOGETHER)
INSERTED DETAIL,,Ealing Council,http://opendatacommunities.org/id/london-borough-council/ealing,CHILDREN & ADULTS,1,DISABILITIES,DOMICILIARY CARE - BLOCK,4240,,07/11/2022,23243861,1134.92,24099,AVANT HEALTHCARE SERVICES LIMITED
INSERTED DETAIL,,Ealing Council,http://opendatacommunities.org/id/london-borough-council/ealing,CHILDREN & ADULTS,1,DISABILITIES,DOMICILIARY CARE - BLOCK,4240,,08/11/2022,23243865,1218,28266,SOMCARE AGENCY LIMITED
INSERTED DETAIL,,Ealing Council,http://opendatacommunities.org/id/london-borough-council/ealing,CHILDREN & ADULTS,1,DISABILITIES,DOMICILIARY CARE - BLOCK,4240,,08/11/2022,23243865,4200,28266,SOMCARE AGENCY LIMITED
INSERTED DETAIL,,Ealing Council,http://opendatacommunities.org/id/london-borough-council/ealing,CHILDREN & ADULTS,1,DISABILITIES,DOMICILIARY CARE - BLOCK,4240,,08/11/2022,23243865,2688,28266,SOMCARE AGENCY LIMITED
INSERTED DETAIL,,Ealing Council,http://opendatacommunities.org/id/london-borough-council/ealing,CHILDREN & ADULTS,1,DISABILITIES,DOMICILIARY CARE - BLOCK,4240,,07/11/2022,23244406,-382.5,25009,ELEADA LIMITED
INSERTED DETAIL,,Ealing Council,http://opendatacommunities.org/id/london-borough-council/ealing,CHILDREN & ADULTS,1,DISABILITIES,DOMICILIARY CARE - BLOCK,4240,,07/11/2022,23244406,720,25009,ELEADA LIMITED
INSERTED DETAIL,,Ealing Council,http://opendatacommunities.org/id/london-borough-council/ealing,CHILDREN & ADULTS,1,DISABILITIES,RESIDENTIAL HOMES EXTERNAL,4220,,01/11/2022,23245486,6810.48,25288,HONEYBOURNE HOUSE LTD
INSERTED DETAIL,,Ealing Council,http://opendatacommunities.org/id/london-borough-council/ealing,CHILDREN & ADULTS,1,DISABILITIES,RESIDENTIAL HOMES EXTERNAL,4220,,30/04/2022,23246283,1736,23482,ALTWOOD HOUSING LTD
INSERTED DETAIL,,Ealing Council,http://opendatacommunities.org/id/london-borough-council/ealing,CHILDREN & ADULTS,1,DISABILITIES,DOMICILIARY CARE - BLOCK,4240,,07/11/2022,23243841,3200,28297,PRIME WAY CARE LTD
INSERTED DETAIL,,Ealing Council,http://opendatacommunities.org/id/london-borough-council/ealing,CHILDREN & ADULTS,1,DISABILITIES,DOMICILIARY CARE - BLOCK,4240,,07/11/2022,23243841,1440,28297,PRIME WAY CARE LTD
INSERTED DETAIL,,Ealing Council,http://opendatacommunities.org/id/london-borough-council/ealing,CHILDREN & ADULTS,1,DISABILITIES,DAY CARE CENTRES,4250,,31/10/2022,23245475,-1560,28863,SEVA EDUCATION HEALTH & CARE LTD
INSERTED DETAIL,,Ealing Council,http://opendatacommunities.org/id/london-borough-council/ealing,CHILDREN & ADULTS,1,DISABILITIES,DAY CARE CENTRES,4250,,31/10/2022,23245475,1800,28863,SEVA EDUCATION HEALTH & CARE LTD
INSERTED DETAIL,,Ealing Council,http://opendatacommunities.org/id/london-borough-council/ealing,CHILDREN & ADULTS,1,DISABILITIES,DAY CARE CENTRES,4250,,31/10/2022,23245475,1800,28863,SEVA EDUCATION HEALTH & CARE LTD
INSERTED DETAIL,,Ealing Council,http://opendatacommunities.org/id/london-borough-council/ealing,CHILDREN & ADULTS,1,DISABILITIES,DAY CARE CENTRES,4250,,31/10/2022,23245475,1040,28863,SEVA EDUCATION HEALTH & CARE LTD
INSERTED DETAIL,,Ealing Council,http://opendatacommunities.org/id/london-borough-council/ealing,CHILDREN & ADULTS,1,DISABILITIES,DAY CARE CENTRES,4250,,31/10/2022,23245475,3000,28863,SEVA EDUCATION HEALTH & CARE LTD
INSERTED DETAIL,,Ealing Council,http://opendatacommunities.org/id/london-borough-council/ealing,CHILDREN & ADULTS,1,DISABILITIES,DAY CARE CENTRES,4250,,31/10/2022,23245475,320,28863,SEVA EDUCATION HEALTH & CARE LTD
INSERTED DETAIL,,Ealing Council,http://opendatacommunities.org/id/london-borough-council/ealing,CHILDREN & ADULTS,1,DISABILITIES,RESIDENTIAL HOMES EXTERNAL,4220,,31/10/2022,23245475,1600,28863,SEVA EDUCATION HEALTH & CARE LTD
INSERTED DETAIL,,Ealing Council,http://opendatacommunities.org/id/london-borough-council/ealing,CHILDREN & ADULTS,1,DISABILITIES,DAY CARE CENTRES,4250,,31/10/2022,23245475,2800,28863,SEVA EDUCATION HEALTH & CARE LTD
INSERTED DETAIL,,Ealing Council,http://opendatacommunities.org/id/london-borough-council/ealing,CHILDREN & ADULTS,1,DISABILITIES,DAY CARE CENTRES,4250,,31/10/2022,23245475,400,28863,SEVA EDUCATION HEALTH & CARE LTD
INSERTED DETAIL,,Ealing Council,http://opendatacommunities.org/id/london-borough-council/ealing,CHILDREN & ADULTS,1,DISABILITIES,DAY CARE CENTRES,4250,,31/10/2022,23245475,2800,28863,SEVA EDUCATION HEALTH & CARE LTD
INSERTED DETAIL,,Ealing Council,http://opendatacommunities.org/id/london-borough-council/ealing,CHILDREN & ADULTS,1,DISABILITIES,DAY CARE CENTRES,4250,,31/10/2022,23245475,2400,28863,SEVA EDUCATION HEALTH & CARE LTD
INSERTED DETAIL,,Ealing Council,http://opendatacommunities.org/id/london-borough-council/ealing,CHILDREN & ADULTS,1,SAFEGUARDING & SUPP - BS &A&F,PAYMENTS TO CONTRACTORS,4000,,28/11/2022,41039335,468,29862,CHROMA THERAPIES LTD T/A CHROMA
INSERTED DETAIL,,Ealing Council,http://opendatacommunities.org/id/london-borough-council/ealing,CHILDREN & ADULTS,1,SAFEGUARDING & SUPP - BS &A&F,PAYMENTS TO CONTRACTORS,4000,,02/10/2022,41032641,900,28459,THE PARENT CHILD CLINIC
INSERTED DETAIL,,Ealing Council,http://opendatacommunities.org/id/london-borough-council/ealing,CHILDREN & ADULTS,1,SAFEGUARDING & SUPP - BS &A&F,PAYMENTS TO CONTRACTORS,4000,,05/10/2022,41033018,720,28911,REDACTED SENSITIVE SUPPLIER
INSERTED DETAIL,,Ealing Council,http://opendatacommunities.org/id/london-borough-council/ealing,CHILDREN & ADULTS,1,SAFEGUARDING & SUPP - BS &A&F,PAYMENTS TO CONTRACTORS,4000,,05/10/2022,41033021,720,28911,REDACTED SENSITIVE SUPPLIER
INSERTED DETAIL,,Ealing Council,http://opendatacommunities.org/id/london-borough-council/ealing,CHILDREN & ADULTS,1,SAFEGUARDING & SUPP - BS &A&F,PAYMENTS TO CONTRACTORS,4000,,19/10/2022,41033320,440,28459,THE PARENT CHILD CLINIC
INSERTED DETAIL,,Ealing Council,http://opendatacommunities.org/id/london-borough-council/ealing,CHILDREN & ADULTS,1,SAFEGUARDING & SUPP - BS &A&F,PAYMENTS TO CONTRACTORS,4000,,19/10/2022,41033323,300,28459,THE PARENT CHILD CLINIC
INSERTED DETAIL,,Ealing Council,http://opendatacommunities.org/id/london-borough-council/ealing,CHILDREN & ADULTS,1,SAFEGUARDING & SUPP - BS &A&F,PAYMENTS TO CONTRACTORS,4000,,19/10/2022,41033324,380,28459,THE PARENT CHILD CLINIC
INSERTED DETAIL,,Ealing Council,http://opendatacommunities.org/id/london-borough-council/ealing,CHILDREN & ADULTS,1,SAFEGUARDING & SUPP - BS &A&F,PAYMENTS TO CONTRACTORS,4000,,19/10/2022,41033325,300,28459,THE PARENT CHILD CLINIC
INSERTED DETAIL,,Ealing Council,http://opendatacommunities.org/id/london-borough-council/ealing,CHILDREN & ADULTS,1,SAFEGUARDING & SUPP - BS &A&F,PAYMENTS TO CONTRACTORS,4000,,13/10/2022,41034330,1140,27703,MAXIMUM POTENTIAL VENTURES LTD
INSERTED DETAIL,,Ealing Council,http://opendatacommunities.org/id/london-borough-council/ealing,CHILDREN & ADULTS,1,SAFEGUARDING & SUPP - BS &A&F,PAYMENTS TO CONTRACTORS,4000,,15/10/2022,41034471,1140,26606,REDACTED SENSITIVE SUPPLIER
INSERTED DETAIL,,Ealing Council,http://opendatacommunities.org/id/london-borough-council/ealing,CHILDREN & ADULTS,1,SAFEGUARDING & SUPP - BS &A&F,PAYMENTS TO CONTRACTORS,4000,,19/10/2022,41036957,440,28459,THE PARENT CHILD CLINIC
INSERTED DETAIL,,Ealing Council,http://opendatacommunities.org/id/london-borough-council/ealing,CHILDREN & ADULTS,1,SAFEGUARDING & SUPP - BS &A&F,PAYMENTS TO CONTRACTORS,4000,,02/10/2022,41036958,620,28459,THE PARENT CHILD CLINIC
INSERTED DETAIL,,Ealing Council,http://opendatacommunities.org/id/london-borough-council/ealing,CHILDREN & ADULTS,1,BUSINESS MANAGEMENT,VEHICLE HIRE,2010,,31/08/2022,41030803,4200,26869,REDACTED SENSITIVE SUPPLIER
INSERTED DETAIL,,Ealing Council,http://opendatacommunities.org/id/london-borough-council/ealing,CHILDREN & ADULTS,1,BUSINESS MANAGEMENT,VEHICLE HIRE,2010,,31/08/2022,41030803,1050,26869,REDACTED SENSITIVE SUPPLIER
INSERTED DETAIL,,Ealing Council,http://opendatacommunities.org/id/london-borough-council/ealing,CHILDREN & ADULTS,1,BUSINESS MANAGEMENT,VEHICLE HIRE,2010,,30/09/2022,41035893,1050,26869,REDACTED SENSITIVE SUPPLIER
INSERTED DETAIL,,Ealing Council,http://opendatacommunities.org/id/london-borough-council/ealing,CHILDREN & ADULTS,1,BUSINESS MANAGEMENT,VEHICLE HIRE,2010,,30/09/2022,41035893,4200,26869,REDACTED SENSITIVE SUPPLIER
INSERTED DETAIL,,Ealing Council,http://opendatacommunities.org/id/london-borough-council/ealing,CHILDREN & ADULTS,1,BUSINESS MANAGEMENT,TRANSPORT (BRETS),2060,,30/08/2022,41035061,12044.62,25796,LONDON HIRE COMMUNITY SERVIES LIMITED
INSERTED DETAIL,,Ealing Council,http://opendatacommunities.org/id/london-borough-council/ealing,CHILDREN & ADULTS,1,BUSINESS MANAGEMENT,TRANSPORT (BRETS),2060,,01/11/2022,41037557,11109,11305,CRUISE MINIBUS LTD
INSERTED DETAIL,,Ealing Council,http://opendatacommunities.org/id/london-borough-council/ealing,CHILDREN & ADULTS,1,BUSINESS MANAGEMENT,TRANSPORT (BRETS),2060,,30/09/2022,41034834,8071.35,11591,EALING COMMUNITY TRANSPORT
INSERTED DETAIL,,Ealing Council,http://opendatacommunities.org/id/london-borough-council/ealing,CHILDREN & ADULTS,1,BUSINESS MANAGEMENT,TRANSPORT (BRETS),2060,,31/10/2022,41039288,8071.35,11591,EALING COMMUNITY TRANSPORT
INSERTED DETAIL,,Ealing Council,http://opendatacommunities.org/id/london-borough-council/ealing,CHILDREN & ADULTS,1,BUSINESS MANAGEMENT,TRANSPORT (BRETS),2060,,31/10/2022,41039410,23256.24,11591,EALING COMMUNITY TRANSPORT
INSERTED DETAIL,,Ealing Council,http://opendatacommunities.org/id/london-borough-council/ealing,CHILDREN & ADULTS,1,BUSINESS MANAGEMENT,TRANSPORT (BRETS),2060,,31/10/2022,41039422,17346,11591,EALING COMMUNITY TRANSPORT
INSERTED DETAIL,,Ealing Council,http://opendatacommunities.org/id/london-borough-council/ealing,CHILDREN & ADULTS,1,OLDER PEOPLE,VEHICLE HIRE,2010,,17/11/2022,41037856,278,28709,INTER-COUNTY AMBULANCE SERVICE LTD
INSERTED DETAIL,,Ealing Council,http://opendatacommunities.org/id/london-borough-council/ealing,CHILDREN & ADULTS,1,ADULT MENTAL HEALTH,SOCIAL SERVICES DIRECT PAYMENTS,4231,,31/10/2022,23239191,651,80764,CARE IN FINANCE LTD
INSERTED DETAIL,,Ealing Council,http://opendatacommunities.org/id/london-borough-council/ealing,CHILDREN & ADULTS,1,ADULT MENTAL HEALTH,NURSING HOMES EXTERNAL,4230,,09/11/2022,23243460,3985.12,13351,MIDDLESEX MANOR NURSING CTRE
INSERTED DETAIL,,Ealing Council,http://opendatacommunities.org/id/london-borough-council/ealing,CHILDREN & ADULTS,1,ADULT MENTAL HEALTH,NURSING HOMES EXTERNAL,4230,,09/11/2022,23243577,3341.52,28351,BONDCARE (LONDON) LTD T/A DERWENT LODGE
INSERTED DETAIL,,Ealing Council,http://opendatacommunities.org/id/london-borough-council/ealing,CHILDREN & ADULTS,1,ADULT MENTAL HEALTH,DOMICILIARY CARE - BLOCK,4240,,27/10/2022,23238078,312.27,28374,KRG CARE LTD T/A MY HOMECARE NORTH WEST LONDON
INSERTED DETAIL,,Ealing Council,http://opendatacommunities.org/id/london-borough-council/ealing,CHILDREN & ADULTS,1,ADULT MENTAL HEALTH,DOMICILIARY CARE - BLOCK,4240,,01/11/2022,23239193,401.8,28304,GOLDCREST HEALTHCARE SERVICE LIMITED
INSERTED DETAIL,,Ealing Council,http://opendatacommunities.org/id/london-borough-council/ealing,CHILDREN & ADULTS,1,ADULT MENTAL HEALTH,DOMICILIARY CARE - BLOCK,4240,,03/11/2022,23241368,281.25,28265,SALUS CARE LTD
